Workbook

Sheet Home Page
D2: 2020-10-04
B3: VIM Model V2.2
B4: Vapor Intrusion Mitigation Model
B5: Introduction: This spreadsheet tool was developed to help users: 1) interpret the results of subslab venting pilot tests, 2) calculate building-specific attenuation factors from flow and vacuum data (McAlary et al., 2018), 3) assess the mass removal rate of a vapor mitigation system and 4) interpret high volume sampling (HVS) testing programs (McAlary et al, 2010). Stepwise instructions for use of this spreadsheet are provided in the numbered list below. The user should be familiar with the assumptions and limitations of the Hantush Jacob (1955) model (see Tab 7) and is referred to the Final Report for ESTCP ER201322 for a more complete description: https://www.serdp-estcp.org/Program-Areas/Environmental-Restoration/Contaminated-Groundwater/Emerging-Issues/ER-201322/ER-201322. No warranty is expressed or implied.
B6: Glossary:
C7: Transmissivity (T): the product of the gas condutivity (K) and thickness (b) of the zone of horizontal flow below the floor slab (i.e., T = K b)
C8: Leakance (B): a term that accounts for the vertical gas conductivity of the floor (K'), thickness of the floor (b') and the Transmissivity (B = (Tb'/K')^0.5
C9: Gas conductivity (K): Related to intrinsic permeability (k), but specific to the fluid's kinematic viscosity (v) (i.e., K = kg/v, where g = 9.8m/s^2)
C10: Radius of Influence: radial distance within which the extraction of gas from below the floor is protective of indoor air quality.
C11: Target Level: performance metric considered protective (e.g., static vacuum > ambient fluctuations, velocity > 3 ft/day, travel time < 1day, etc.)
C12: Granular Fill: Sand/gravel purposesfully placed below the floor slab to promote water drainage and typically compacted to provide structual support.
B13: Instructions: | D13: Location
B14: 1 | C14: Perform a test of gas extraction from a suction point and measure static vacuum at communication test points at various radial distances (see details in Tab 6). Measure the flow rate (Q) and enter into cells N36 to N40 on Tab 2. Enter static vacuum and radial distances in cells P44 to Q51 on Tab 2. It is helpful to have static vacuum measurements at various radial distances to provide better calibration of the Transmissibity (T) and Leakance (B) values when fitting the curves on Figures 2.1a and 2.1b on Tab 2 to the measured vacuum data. One point at a short radial distance (e.g. ~3 ft or 1 m) helps calibrate the T value (which affects the y-intercept on Figure 2.1 and is most easily fitted using Figure 2.1a), and one or more points at longer radial distances (e.g., ~30 ft or 10 m or more) helps to calibrate the B value (which affects the slope of the curves on Figure 2.1a,b and is most easily fitted using Figure 2.1b). Figures 2.1a and 2.1b are the same except the axes using linear and logarithmic scales are exchanged. The wellhead vacuum is not recommended to be used as part of the curve-fitting on Figure 2.1a,b because it will often be biased high because of turbulence and frictional losses (this value is still useful for selecting an appropriate fan to overcome the frictional losses). | D14: Tab 2 | E14: N-36-N40
D15: Tab 2 | E15: P44 to Q51
B16: 2 | C16: Enter best estimates of thickness of zone of active flow (b) and effective porosity (n) in cells Q36 to R38 on Tab 2. The thickness can be approximated as the thickness of a granular fill layer if the native soil has lower permeability by an order of magnitude or more. The effective porosity can be estimated to be in the range of 20 to 30% in most cases. In some cases, a gap exists below the floor slab as evidenced by a drop in the bit of a coring tool or hammer drill at the bottom of the slab, in which case, the thickness could be much smaller (e.g. 0.05 ft) and the porosity set to 1, as the "fast" option for the sensitivity analysis (Tab 2, cells M39 to R39). For the "fast" option, use smaller values for b and n. For the "slow" option (Tab 2, cells M40 to R40), use larger values for b and n. | D16: Tab 2 | E16: Q36 to R38
B17: 3 | C17: Adjust T and B values in cells O36 to P38 of Tab 2 until corresponsing lines provide an upper-range, lower-range and best fit through the measured vacuum data in the vacuum vs radial distance plot (Figure 2.1a and 2.1b on Tab 2). T depends on the gas permeability and thickness of the dominant flow layer, which are often controlled during construction and therefore reasonably uniform, therefore a single T value is often adequate to fit the model to the data on both Figure 2.1a and 2.1b. A higher value for T results in a lower y-intercept on Figures 2.1a,b and vice-versa. B depends on leakage, which occurs through discontinuities and is therefore generally not uniform, therefore a range of B values is often required to fit the model to the data. A lower value for B results in a steeper slope on Figure 2.1b, and vice versa. Adjust B and T values in rows 36 to 38 and columns O and P on Tab 2 to establish a best fit between the model and the static vacuum data. The upper and lower estimates of the range are useful where the vacuum vs distance data does not all fit on one model curve. | D17: Tab 2 | E17: O36 to P38
B18: 4 | C18: If tracer tests are conducted (as described on Tab 6 and in the Final Report for ESTCP ER201322), enter the travel time data in cells R44 to R51 on Tab 2. Adjust the thickness and effective porosity values in cells Q39 to R40 of Tab 2 as needed to bracket the travel time vs radial distance data (Figure 2.2 on Tab 2). Lower estimates for thickness and porosity result in fast velocities and short travel times and vice-versa. See Tab 6 for example plots of Inter-Well and Flood tracer test data. The model parameters (T, B, n, b) are established from the calibrations performed in these first four steps, and are used to generate the curves in Figures 2.3 and 2.4 of Tab 2 (i.e., no additional field measurments are required, so Figures 2.3 and 2.4 do not have measured data points). | D18: Tab 2 | E18: R44 to R51
B19: 5 | C19: Adopt or adjust target levels for vacuum, velocity, travel time and proportion of flow per unit area in cells N44 to N54 of Tab 2. If ambient cross-slab differential pressure data are available, use Tab 5 to evaluate the 95th percentile of the magnitude of the measured differential pressure, when averaged over an appropriate interval of time (e.g. averaged over at least one minute or more, and use judgement to select a target vacuum if the 95th percentile values are different for different averaging times). Enter the reasonable maximum cross-slab differential pressure in cell S48 on Tab 2 and the target vacuum value in cells N44 and N45 on Tab 2 will automatically match. | D19: Tab 2 | E19: N44 to N54 and S48
B20: 6 | C20: The radius of influence (ROI) based on flux calculations (McAlary et al., 2020) is calculated in cells S36 to S40 on Tab 2. Figures 2.1, 2.2, 2.3 and 2.4 on Tab 2 also indicate the radius of influence based on vacuum, velocity, travel time and proportion of flow acress the floor, respectively as the radial distance at which the model curves cross the red line corresponding to the target value. Consider a range of ROI values for each line of evidence using the various model curves resulting from the sensitivity analysis. Use this ROI analysis to select an appropriate number and spacing of suction points for a full-scale mitigation system design. In general, the ROI based on velocity and travel-time is more appropriate when T values are high (i.e., a sub-slab ventilation scenario), and the ROI based on vacuum is more appropriate when T is low (i.e., a sub-slab depressurization scenario). Professional judgement is required where the ROI values from the five lines of evidence are dissimilar. | D20: Tab 2 | E20: S36 to S40 and Figures 2.1, 2.2, 2.3 and 2.4
B21: 7 | C21: The user may wish to consider the effect of fan selection on the analysis. The fan curve for the selected fan can be used to assign a new value for Q in cells N36 to N40, which will cause the model curves to adjust accordingly, resulting in new values for the ROI. More details on fan curves is available at http://www.wpb-radon.com/radon_fan_performance.html. | D21: Tab 2 | E21: N36 to N40
B22: 8 | C22: As with all mathematical models, professional judgement is required when selecting model inputs and interpreting model outputs. The model assumes that there is a layer of material through which horizontal radial flow occurs in response to gas extraction from a suction point, with downward leakage across the slab being the only supply of air to the system. Locations with measured vacuum much less than expected from the calibrated model indicate that there is a supply of air with limited resistance that contributes to dissipating the vacuum, which could either be preferential leakage across the floor slab (i.e., a floor drain or poorly unsealed expansion joint) or preferential supply of gas from a subsurface utility, gravel-filled trench, or similar feature (see for example the data in tab 2 that are pre-populated in this spreadsheet - a vacuum of only 5 Pa at a radial distance of 15 ft is low compared to the rest of the trend, indicating a supply of air to the subsurface in proximity to that probe). Locations where the measured travel time from tracer testing is faster than expected indicate that there may be a thin plenum below the floor slab from differential settlement or dessication shrinkage of geologic materials below the floor. In either case, field measurements that appear to be outliers compared to the majority of the data provide clues that local conditions differ from the model assumptions, and should not be overlooked or ignored.
B23: Copyright: Geosyntec Consultants, Inc., 2020.
B24: Authors: Gordon Thrupp, John Gallinatti, Todd McAlary, Darius Mali, Paul Nicholson, William Wertz, Elham Shirazi
B25: Relevant Literature:
C26: ESTCP ER2013-22 Final Report: https://www.serdp-estcp.org/Program-Areas/Environmental-Restoration/Contaminated-Groundwater/Emerging-Issues/ER-201322/ER-201322
C27: Hantush, M.S. and C.E. Jacob, 1955. Non-steady radial flow in an infinite leaky aquifer, Am. Geophys. Union Trans., vol. 36, pp. 95-100.
C28: Massmann, J. W. Applying groundwater flow models in vapor extraction system design. J. Environ. Eng. 1989, 115(1), 129-149.
C29: McAlary, T.A., Nicholson, P., Yik, L.K., Bertrand, D. and G. Thrupp, 2010. High Purge Volume Sampling - A New Paradigm for Sub-Slab Soil Gas Monitoring, Groundwater Monitoring and Remediation, V. 30, No. 2, pp 73–85, Spring 2010.
C30: McAlary ,T., Wertz, W., Mali, D. and P. Nicholson, 2020. Mathematical Analysis and Flux-Based Radius of Influence for Radon/VOC Vapor Intrusion Mitigation Systems, accepted on June 3 2020 for publication in the Science of the Total Environment, https://doi.org/10.1016/j.scitotenv.2020.139988
C31: McAlary, T., Gallinatti, J., Thrupp, G., Wertz, W., Mali, D. and H. Dawson, 2018. Fluid Flow Model for Predicting the Intrusion Rate of Subsurface Contaminant Vapors into Buildings, Environmental Science & Technology, 2018, 52(15), pp 8438-8445.
C32: Thrupp, G., J. Gallinatti, and K. Johnson, 1996. Tools to Improve Models for Design and Assessment of Soil Vapor Extraction Systems. Subsurface Fluid-Flow Modeling, ASTM STP 1288, eds. J.D. Ritchey and J.O. Rumbaugh, American Society for Testing and Materials, Philadelphia, pp. 268-285.
C33: Thrupp, G., J. Baker, and J. Gallinatti. 1998. Leakage controls radius of influence of landfill gas extraction wells. In Proceedings of the 20th International Madison Waste Conference, University of Wisconsin, Madison, 363–372.

Sheet Tab 2 Inputs and Plots
M32: SENSITIVITY ANALYSIS
M34: Legend Label | N34: Flow rate, Q | O34: Transmissivity, T | P34: Leakance, B | Q34: Thickness, b | R34: Effective Porosity, n | S34: ROI based on Flux
N35: (ft3/min) | O35: (ft2/d) | P35: (ft) | Q35: (ft) | R35: (v/v) | S35: (ft)
M36: Upper bound | N36: 15 | O36: 98 | P36: 16 | Q36: 0.5 | R36: 0.25 | S36: =AF72 -> 77.16987452
M37: Lower Bound | N37: 15 | O37: 32 | P37: 4 | Q37: 0.5 | R37: 0.25 | S37: =AF73 -> 22.65816261
M38: Best Fit | N38: 15 | O38: 86 | P38: 14 | Q38: 0.5 | R38: 0.25 | S38: 68.89464361
M39: Best Fit (fast) | N39: 15 | O39: 86 | P39: 14 | Q39: 0.4 | R39: 0.2 | S39: 69.5905491
M40: Best Fit (slow) | N40: 15 | O40: 86 | P40: 14 | Q40: 0.6 | R40: 0.3 | S40: 68.89464361
M42: Radius (ft) | N42: Target Levels | O42: Monitoring Point | P42: Field Measurments | S42: Reasonable Maximum Ambient Cross-Slab Pressure Differential (Pa)
M43: Vacuum (Pascals) | O43: ID Number | P43: radius (ft) | Q43: Vacuum (Pa) | R43: Travel Time (min)
M44: 0 | N44: =S48 -> 3 | P44: 3 | Q44: 250
M45: 500 | N45: =S48 -> 3 | P45: 5 | Q45: 180 | R45: 0.7
M46: Velocity (ft/day) | P46: 10 | Q46: 90 | R46: 3.3
M47: 0 | N47: 3 | P47: 15 | Q47: 5 | R47: 7
M48: 500 | N48: =N47 -> 3 | P48: 25 | Q48: 20 | S48: 3
M49: Travel Time (minutes) | P49: 40 | Q49: 5
M50: 0 | N50: 1440 | P50: 50 | Q50: 3
M51: 500 | N51: =N50 -> 1440
M52: Qsoil/Area (L/min/1000ft2)
M53: 0 | N53: 5
M54: 500 | N54: =N53 -> 5
Y66: Constants | Z66: value | AA66: units
Y67: deltaP | Z67: =S48*0.0832 -> 0.2496 | AA67: m of air | AB67: differential pressure across the floor slab (positive for flow into building)
Y68: Deff | Z68: 1e-06 | AA68: m2/s | AB68: effective diffusion coefficient for vapor or gas of interest through material below the floor slab
W70: gas extraction flow rate | Y70: Transmissivity | AA70: Leakance | AC70: flux balance | AD70: argument | AE70: ROI via flux balance
W71: Q (scfm) | X71: Q (m3/s) | Y71: T (ft2/day) | Z71: T (m2/s) | AA71: B (ft) | AB71: B (m) | AC71: K1(r/B) | AD71: (r/B) | AE71: r (m) | AF71: r (ft) | AP71: K1(r/B) | AQ71: (r/B)
W72: =N36 -> 15 | X72: =W72*0.3048*0.3048*0.3048/60 -> 0.007079211648 | Y72: =O36 -> 98 | Z72: =Y72*0.3048*0.3048/1440/60 -> 0.0001053761333 | AA72: =P36 -> 16 | AB72: =AA72*0.3048 -> 4.8768 | AC72: =(2*3.14159*(Q36*0.3048)*AB72/X72)*((Z72*$Z$67/(AB72^2))+($Z$68/(Q36*0.3048))) -> 0.00505793191 | AD72: =VLOOKUP(AC72,$AP$72:$AQ$574,2,TRUE) -> 4.823117157 | AE72: =AB72*AD72 -> 23.52137775 | AF72: =AE72/0.3048 -> 77.16987452 | AP72: =BESSELK(AQ72,1) -> 7.360784862e-67 | AQ72: 150
W73: =N37 -> 15 | X73: =W73*0.3048*0.3048*0.3048/60 -> 0.007079211648 | Y73: =O37 -> 32 | Z73: =Y73*0.3048*0.3048/1440/60 -> 3.440853333e-05 | AA73: =P37 -> 4 | AB73: =AA73*0.3048 -> 1.2192 | AC73: =(2*3.14159*(Q37*0.3048)*AB73/X73)*((Z73*$Z$67/(AB73^2))+($Z$68/(Q37*0.3048))) -> 0.002034935249 | AD73: =VLOOKUP(AC73,$AP$72:$AQ$574,2,TRUE) -> 5.664540652 | AE73: =AB73*AD73 -> 6.906207962 | AF73: =AE73/0.3048 -> 22.65816261 | AP73: =BESSELK(AQ73,1) -> 3.315577196e-66 | AQ73: =AQ72*0.99 -> 148.5
W74: 15 | X74: 0.007079211648 | Y74: 86 | Z74: 9.247293333e-05 | AA74: 14 | AB74: 4.2672 | AC74: 0.004519006069 | AD74: =VLOOKUP(AC74,$AP$72:$AQ$574,2,TRUE) -> 4.921045972 | AE74: 20.99908737 | AF74: 68.89464361 | AP74: 1.471227573e-65 | AQ74: =AQ73*0.99 -> 147.015
W75: 15 | X75: 0.007079211648 | Y75: 86 | Z75: 9.247293333e-05 | AA75: 14 | AB75: 4.2672 | AC75: 0.004372678625 | AD75: =VLOOKUP(AC75,$AP$72:$AQ$574,2,TRUE) -> 4.970753507 | AE75: 21.21119937 | AF75: 69.5905491 | AP75: 6.432079511e-65 | AQ75: 145.54485
W76: 15 | X76: 0.007079211648 | Y76: 86 | Z76: 9.247293333e-05 | AA76: 14 | AB76: 4.2672 | AC76: 0.004665333512 | AD76: =VLOOKUP(AC76,$AP$72:$AQ$574,2,TRUE) -> 4.921045972 | AE76: 20.99908737 | AF76: 68.89464361 | AP76: 2.771011221e-64 | AQ76: 144.0894015
AP77: 1.176533627e-63 | AQ77: 142.6485075
AP78: 4.923940486e-63 | AQ78: 141.2220224
AP79: 2.031543915e-62 | AQ79: 139.8098022
AP80: 8.264309167e-62 | AQ80: 138.4117042
AP81: 3.315241356e-61 | AQ81: 137.0275871
AP82: 1.311634168e-60 | AQ82: 135.6573113
AP83: 5.118696482e-60 | AQ83: 134.3007381
AP84: 1.970673306e-59 | AQ84: 132.9577308
AP85: 7.485785946e-59 | AQ85: 131.6281534
AP86: 2.805989342e-58 | AQ86: 130.3118719
AP87: 1.038049865e-57 | AQ87: 129.0087532
AP88: 3.790453454e-57 | AQ88: 127.7186657
AP89: 1.366348447e-56 | AQ89: 126.441479
AP90: 4.862785849e-56 | AQ90: 125.1770642
AP91: 1.708904001e-55 | AQ91: 123.9252936
AP92: 5.930809146e-55 | AQ92: 122.6860406
AP93: 2.032957762e-54 | AQ93: 121.4591802
AP94: 6.883585462e-54 | AQ94: 120.2445884
AP95: 2.302641307e-53 | AQ95: 119.0421425
AP96: 7.610546669e-53 | AQ96: 117.8517211
AP97: 2.485625058e-52 | AQ97: 116.6732039
AP98: 8.023009138e-52 | AQ98: 115.5064719
AP99: 2.559599652e-51 | AQ99: 114.3514072
AP100: 8.072174784e-51 | AQ100: 113.2078931
AP101: 2.516766913e-50 | AQ101: 112.0758141
AP102: 7.758522475e-50 | AQ102: 110.955056
AP103: 2.365090721e-49 | AQ103: 109.8455054
AP104: 7.130139321e-49 | AQ104: 108.7470504
AP105: 2.126071406e-48 | AQ105: 107.6595799
AP106: 6.27097404e-48 | AQ106: 106.5829841
AP107: 1.829855158e-47 | AQ107: 105.5171542
AP108: 5.282867753e-47 | AQ108: 104.4619827
AP109: 1.509177655e-46 | AQ109: 103.4173629
AP110: 4.266526262e-46 | AQ110: 102.3831893
AP111: 1.193760704e-45 | AQ111: 101.3593574
AP112: 3.306083728e-45 | AQ112: 100.3457638
AP113: 9.063764173e-45 | AQ113: 99.34230615
AP114: 2.460059139e-44 | AQ114: 98.34888309
AP115: 6.611017095e-44 | AQ115: 97.36539426
AP116: 1.759219137e-43 | AQ116: 96.39174031
AP117: 4.635998033e-43 | AQ117: 95.42782291
AP118: 1.209986359e-42 | AQ118: 94.47354468
AP119: 3.128048644e-42 | AQ119: 93.52880923
AP120: 8.010576279e-42 | AQ120: 92.59352114
AP121: 2.032320939e-41 | AQ121: 91.66758593
AP122: 5.108574291e-41 | AQ122: 90.75091007
AP123: 1.272407557e-40 | AQ123: 89.84340097
AP124: 3.14059318e-40 | AQ124: 88.94496696
AP125: 7.682374218e-40 | AQ125: 88.05551729
AP126: 1.862587076e-39 | AQ126: 87.17496212
AP127: 4.476243404e-39 | AQ127: 86.3032125
AP128: 1.066412013e-38 | AQ128: 85.44018037
AP129: 2.518769644e-38 | AQ129: 84.58577857
AP130: 5.898498082e-38 | AQ130: 83.73992078
AP131: 1.369686303e-37 | AQ131: 82.90252157
AP132: 3.154018222e-37 | AQ132: 82.07349636
AP133: 7.202894741e-37 | AQ133: 81.2527614
AP134: 1.631494934e-36 | AQ134: 80.44023378
AP135: 3.665521977e-36 | AQ135: 79.63583144
D136: =0.5*75*28 -> 1050 | AP136: 8.169446864e-36 | AQ136: 78.83947313
D137: =25*28 -> 700 | AP137: =BESSELK(AQ137,1) -> 1.806305234e-35 | AQ137: 78.0510784
D138: =SUM(D136:D137) -> 1750 | AP138: 3.962469013e-35 | AQ138: =AQ137*0.99 -> 77.27056761
D139: =1-(D138/2800) -> 0.375 | AP139: 8.624841245e-35 | AQ139: 76.49786194
AP140: 1.862862208e-34 | AQ140: 75.73288332
AP141: 3.992898829e-34 | AQ141: 74.97555448
AP142: 8.4938983e-34 | AQ142: 74.22579894
AP143: 1.793369899e-33 | AQ143: 73.48354095
AP144: 3.758454766e-33 | AQ144: 72.74870554
AP145: 7.819115889e-33 | AQ145: 72.02121849
AP146: 1.614904178e-32 | AQ146: 71.3010063
AP147: 3.311374112e-32 | AQ147: 70.58799624
AP148: 6.74176179e-32 | AQ148: 69.88211628
AP149: 1.362928863e-31 | AQ149: 69.18329511
AP150: 2.736139674e-31 | AQ150: 68.49146216
AP151: 5.455053058e-31 | AQ151: 67.80654754
AP152: 1.080153268e-30 | AQ152: 67.12848206
AP153: 2.124355649e-30 | AQ153: 66.45719724
AP154: 4.150055984e-30 | AQ154: 65.79262527
AP155: 8.053686645e-30 | AQ155: 65.13469902
AP156: 1.552667306e-29 | AQ156: 64.48335203
AP157: 2.973949378e-29 | AQ157: 63.83851851
AP158: 5.659636111e-29 | AQ158: 63.20013332
AP159: 1.070215476e-28 | AQ159: 62.56813199
AP160: 2.010987876e-28 | AQ160: 61.94245067
AP161: 3.755178932e-28 | AQ161: 61.32302616
AP162: 6.968863412e-28 | AQ162: 60.7097959
AP163: 1.285376354e-27 | AQ163: 60.10269794
AP164: 2.356472264e-27 | AQ164: 59.50167096
AP165: 4.294221072e-27 | AQ165: 58.90665425
AP166: 7.778979203e-27 | AQ166: 58.31758771
AP167: 1.400886052e-26 | AQ167: 57.73441183
AP168: 2.508133143e-26 | AQ168: 57.15706772
AP169: 4.464689563e-26 | AQ169: 56.58549704
AP170: 7.90223477e-26 | AQ170: 56.01964207
AP171: 1.390757452e-25 | AQ171: 55.45944565
AP172: 2.433998171e-25 | AQ172: 54.90485119
AP173: 4.236242522e-25 | AQ173: 54.35580268
AP174: 7.332586375e-25 | AQ174: 53.81224465
AP175: 1.262330896e-24 | AQ175: 53.27412221
AP176: 2.161486353e-24 | AQ176: 52.74138098
AP177: 3.681445866e-24 | AQ177: 52.21396717
AP178: 6.237263818e-24 | AQ178: 51.6918275
AP179: 1.051241486e-23 | AQ179: 51.17490923
AP180: 1.762650592e-23 | AQ180: 50.66316013
AP181: 2.940409282e-23 | AQ181: 50.15652853
AP182: 4.880332156e-23 | AQ182: 49.65496325
AP183: 8.059591412e-23 | AQ183: 49.15841362
AP184: 1.324404061e-22 | AQ184: 48.66682948
AP185: 2.165675501e-22 | AQ185: 48.18016118
AP186: 3.524138906e-22 | AQ186: 47.69835957
AP187: 5.707166537e-22 | AQ187: 47.22137598
AP188: 9.198497484e-22 | AQ188: 46.74916222
AP189: 1.475580072e-21 | AQ189: 46.2816706
AP190: 2.356018624e-21 | AQ190: 45.81885389
AP191: 3.744423943e-21 | AQ191: 45.36066535
AP192: 5.92381883e-21 | AQ192: 44.9070587
AP193: 9.329296249e-21 | AQ193: 44.45798811
AP194: 1.462669029e-20 | AQ194: 44.01340823
AP195: 2.283036311e-20 | AQ195: 43.57327415
AP196: 3.547876183e-20 | AQ196: 43.13754141
AP197: 5.48949119e-20 | AQ197: 42.70616599
AP198: 8.457123216e-20 | AQ198: 42.27910433
AP199: 1.297355179e-19 | AQ199: 41.85631329
AP200: 1.981797786e-19 | AQ200: 41.43775015
AP201: =BESSELK(AQ201,1) -> 3.014687984e-19 | AQ201: 41.02337265
AP202: 4.566949029e-19 | AQ202: =AQ201*0.99 -> 40.61313893
AP203: 6.890150733e-19 | AQ203: 40.20700754
AP204: 1.035303935e-18 | AQ204: 39.80493746
AP205: 1.549391724e-18 | AQ205: 39.40688809
AP206: 2.309544262e-18 | AQ206: 39.01281921
AP207: 3.429101416e-18 | AQ207: 38.62269101
AP208: 5.071547168e-18 | AQ208: 38.2364641
AP209: 7.471772758e-18 | AQ209: 37.85409946
AP210: 1.09659602e-17 | AQ210: 37.47555847
AP211: 1.603341781e-17 | AQ211: 37.10080288
AP212: 2.335492258e-17 | AQ212: 36.72979486
AP213: 3.389377261e-17 | AQ213: 36.36249691
AP214: 4.900796454e-17 | AQ214: 35.99887194
AP215: 7.060486851e-17 | AQ215: 35.63888322
AP216: 1.013537117e-16 | AQ216: 35.28249439
AP217: 1.449764067e-16 | AQ217: 34.92966944
AP218: 2.066441671e-16 | AQ218: 34.58037275
AP219: 2.935164486e-16 | AQ219: 34.23456902
AP220: 4.154706836e-16 | AQ220: 33.89222333
AP221: 5.860868739e-16 | AQ221: 33.5533011
AP222: 8.239714186e-16 | AQ222: 33.21776809
AP223: 1.154530913e-15 | AQ223: 32.8855904
AP224: 1.612340734e-15 | AQ224: 32.5567345
AP225: 2.244297158e-15 | AQ225: 32.23116716
AP226: 3.113798122e-15 | AQ226: 31.90885548
AP227: 4.306269924e-15 | AQ227: 31.58976693
AP228: 5.936449129e-15 | AQ228: 31.27386926
AP229: 8.157945897e-15 | AQ229: 30.96113057
AP230: 1.1175763e-14 | AQ230: 30.65151926
AP231: 1.52626317e-14 | AQ231: 30.34500407
AP232: 2.078026089e-14 | AQ232: 30.04155403
AP233: 2.820689057e-14 | AQ233: 29.74113849
AP234: 3.81729094e-14 | AQ234: 29.4437271
AP235: 5.150675523e-14 | AQ235: 29.14928983
AP236: 6.929388718e-14 | AQ236: 28.85779693
AP237: 9.295232417e-14 | AQ237: 28.56921896
AP238: 1.243291149e-13 | AQ238: 28.28352678
AP239: 1.658231757e-13 | AQ239: 28.00069151
AP240: 2.205412464e-13 | AQ240: 27.72068459
AP241: 2.92495319e-13 | AQ241: 27.44347775
AP242: 3.86851852e-13 | AQ242: 27.16904297
AP243: 5.1024546e-13 | AQ243: 26.89735254
AP244: 6.711726498e-13 | AQ244: 26.62837901
AP245: 8.804846513e-13 | AQ245: 26.36209522
... 329 more rows

Sheet Tab 3 Attenuation Factor
A1: Building-Specific Attenuation Factor
A3: Instructions
A4: 1. Replace values in the grey shaded cells with site-specific data
A5: 2. Cells will populate automatically based on Tab 2
A6: 3. Range of site specifc attenuation factors
A7: Column1 | B7: Differential Pressure (ΔP) | C7: Transmissivity (T) | D7: Leakance (B) | E7: Building Height (h) | F7: Air Exchange Rate (AER) | G7: Attenuation Factor (AF)
B8: (ft of air head) | C8: (ft2/d) | D8: (ft) | E8: (ft) | F8: (day-1) | G8: dimensionless
A9: Upper Estimate | B9: ='Tab 2 Inputs and Plots'!Z67/0.3048 -> 0.8188976378 | C9: ='Tab 2 Inputs and Plots'!O36 -> 98 | D9: ='Tab 2 Inputs and Plots'!P37 -> 4 | E9: 6 | F9: 6 | G9: =(B9*C9)/(D9^2*E9*F9) -> 0.1393263342
A10: Lower Estimate | B10: 0.01 | C10: ='Tab 2 Inputs and Plots'!O37 -> 32 | D10: ='Tab 2 Inputs and Plots'!P36 -> 16 | E10: 10 | F10: 24 | G10: =(B10*C10)/(D10^2*E10*F10) -> 5.208333333e-06
A11: Best Estimate | B11: 0.03 | C11: ='Tab 2 Inputs and Plots'!O38 -> 86 | D11: ='Tab 2 Inputs and Plots'!P38 -> 14 | E11: 8 | F11: 12 | G11: =(B11*C11)/(D11^2*E11*F11) -> 0.0001371173469
A14: Notes: | B14: For Best Estimate, use values for all 5 inputs parameters that are mid-range values
B15: For lower estimate of AF, use lower estimates of T and ΔP, and upper estimates of B, h and AER
B16: For upper estimate of AF, use upper estimates of T and ΔP, and lower estimates of B, h and AER
B17: Transmissivity and Leakance values are drawn from the flow and vacuum analysis on Tab 2
B18: 1 pascal of differential pressure = 0.27 feet of air column = 0.004 inches of water column = 0.0075 millimeters of mercury
B19: 1 foot of air column differential pressure = 3.7 pascals = 0.015 inches of water column = 0.027 mm Hg
A21: Reference:
A22: McAlary, T., Gallinatti, J., Thrupp, G., Wertz, W., Mali, D. and H. Dawson, 2018. Fluid Flow Model for Predicting the Intrusion Rate of Subsurface Contaminant Vapors into Buildings, Environmental Science & Technology, 2018, 52(15), pp 8438-8445.

Sheet Tab 4 Mass Loading
A1: Mass Loading Calculations
A3: Instructions
A4: 1. Replace values in the blue shaded cells with site-specific data
A5: 2. Replace values in the green shaded cells with compound-specific indoor air screening level
A6: 3. If Mass Removal Rate > Mass Loading Screening Level, the system operation is justified
A8: SSV SYSTEM OPERATIONS | B8: Extraction Flow Rate (Q) | C8: Extraction Flow Rate (Q)2 | D8: Concentration of Target Compound | E8: Mass Removal Rate
B9: (ft3/min) | C9: (m3/day) | D9: (µg/m3) or (Bq/m3) | E9: (g/day) or (MBq/day)
A10: Suction Point 1 | B10: 50 | C10: =B10*0.0283*1440 -> 2037.6 | D10: 100 | E10: =D10*C10/1000000 -> 0.20376
A11: Suction Point 2 | B11: 70 | C11: =B11*0.0283*1440 -> 2852.64 | D11: 200 | E11: =D11*C11/1000000 -> 0.570528
A12: Suction Point 3 | B12: 30 | C12: 1222.56 | D12: 400 | E12: 0.489024
A13: Suction Point 4 | B13: 40 | C13: 1630.08 | D13: 300 | E13: 0.489024
A14: Suction Point 5 | B14: 50 | C14: 2037.6 | D14: 1200 | E14: 2.44512
A15: Suction Point 6 | B15: 60 | C15: 2445.12 | D15: 200 | E15: 0.489024
A16: Suction Point 7 | B16: 40 | C16: 1630.08 | D16: 400 | E16: 0.652032
A17: Suction Point 8 | B17: 70 | C17: 2852.64 | D17: 300 | E17: 0.855792
A18: Suction Point 9 | B18: 30 | C18: 1222.56 | D18: 200 | E18: 0.244512
A19: Suction Point 10 | B19: 60 | C19: 2445.12 | D19: 500 | E19: 1.22256
A20: Suction Point 11 | B20: 50 | C20: 2037.6 | D20: 700 | E20: 1.42632
A21: Suction Point 12 | B21: 25 | C21: 1018.8 | D21: 1100 | E21: =D21*C21/1000000 -> 1.12068
B22: Total Mass Removal Rate (g/day) or (MBq/day) = | E22: =SUM(E10:E21) -> 10.208376
A24: SCREENING LEVEL CALCULATION | B24: Floor Area (A) | C24: Height | D24: Volume | E24: Air Exchange Rate (AER) (exchanges per day) | F24: Indoor Air Screening Level | G24: Mass Loading Screening Level (MLSL)
B25: (ft2) | C25: (ft) | D25: (m3) | E25: (day-1) | F25: (µg/m3) or (Bq/m3) | G25: (g/day) or (MBq/day)
A26: Air Zone 1 | B26: 1000 | C26: 10 | D26: =C26*B26*0.3048*0.3048*0.3048 -> 283.1684659 | E26: 12 | F26: 2.1 | G26: =F26*E26*D26/1000000 -> 0.007135845341
A27: Air Zone 2 | B27: 1500 | C27: 10 | D27: =C27*B27*0.3048*0.3048*0.3048 -> 424.7526989 | E27: 12 | F27: 2.1 | G27: =F27*E27*D27/1000000 -> 0.01070376801
A28: Air Zone 3 | B28: 1200 | C28: 10 | D28: 339.8021591 | E28: 12 | F28: 2.1 | G28: 0.008563014409
A29: Air Zone 4 | B29: 2000 | C29: 15 | D29: 849.5053978 | E29: 12 | F29: 2.1 | G29: 0.02140753602
A30: Air Zone 5 | B30: 300 | C30: 10 | D30: 84.95053978 | E30: 12 | F30: 2.1 | G30: 0.002140753602
A31: Air Zone 6 | B31: 3000 | C31: 15 | D31: 1274.258097 | E31: 12 | F31: 2.1 | G31: 0.03211130404
A32: Air Zone 7 | B32: 2100 | C32: 10 | D32: 594.6537784 | E32: 12 | F32: 2.1 | G32: 0.01498527522
A33: Air Zone 8 | B33: 1400 | C33: 10 | D33: 396.4358523 | E33: 12 | F33: 2.1 | G33: 0.009990183478
A34: Air Zone 9 | B34: 1800 | C34: 10 | D34: 509.7032387 | E34: 12 | F34: 2.1 | G34: 0.01284452161
A35: Air Zone 10 | B35: 1000 | C35: 10 | D35: 283.1684659 | E35: 12 | F35: 2.1 | G35: 0.007135845341
A36: Air Zone 11 | B36: 1100 | C36: 10 | D36: 311.4853125 | E36: 12 | F36: 2.1 | G36: 0.007849429875
A37: Air Zone 12 | B37: 1800 | C37: 10 | D37: 509.7032387 | E37: 12 | F37: 2.1 | G37: 0.01284452161
D38: Total Building MLSL (g/day) or (MBq/day) = | G38: =SUM(G26:G37) -> 0.1477119986

Sheet Tab 5 Differential Pressure
A1: CROSS-SLAB DIFFERENTIAL PRESSURE ANALYSIS AND INTERPRETATION
A2: Instructions
A3: 1. Use this tab to calculate a building-specific target value for the cross-slab differential pressure based on ambient cross-slab monitoring data
A4: 2. Collect the ambient cross-slab differential pressure using a digital micromanometer with data-logging capabilities, at a 10 second interval and enter data as shown in columns A to I
A5: 3. Column J calculates a 1-minute rolling average (as long as column J measurements are every 10 seconds), and Column K calculates 5-minute rolling average
A6: 4. Order Statistics are calculated in Columns M to P. The 95th percentile values are highlighted in yellow. Enter this value in cell S48 of Tab 2.
A7: 5. Charts are provided for visualization
G9: CALCULATED ORDER STATISTICS
G11: Order statistics | H11: 10 second Average | I11: 1-Min Moving Average | J11: 5-Min Moving Average
G13: Average | H13: =AVERAGE(G$56:G$12385) -> -0.3400754258 | I13: =AVERAGE(J$61:J$12385) -> -0.3401630832 | J13: =AVERAGE(K$81:K$124385) -> -0.3402258619
G14: Min | H14: =MIN(G$56:G$12385) -> -1.8 | I14: =MIN(J$61:J$12385) -> -1.135 | J14: =MIN(K$81:K$12385) -> -0.9992307692
G15: 5th% | H15: =PERCENTILE(G$56:G$12385,0.05) -> -0.72 | I15: =PERCENTILE(J$61:J$12385,0.05) -> -0.695 | J15: =PERCENTILE(K$81:K$12385,0.05) -> -0.63
G16: 25th% | H16: =PERCENTILE(G$56:G$12385,0.25) -> -0.48 | I16: =PERCENTILE(J$61:J$12385,0.25) -> -0.47 | J16: =PERCENTILE(K$81:K$12385,0.25) -> -0.4534615385
G17: 50th% | H17: =PERCENTILE(G$56:G$12385,0.5) -> -0.33 | I17: =PERCENTILE(J$61:J$12385,0.5) -> -0.325 | J17: =PERCENTILE(K$81:K$12385,0.5) -> -0.3276923077
G18: 75th% | H18: =PERCENTILE(G$56:G$12385,0.75) -> -0.18 | I18: =PERCENTILE(J$61:J$12385,0.75) -> -0.2 | J18: =PERCENTILE(K$81:K$12385,0.75) -> -0.2203846154
G19: 95th% | H19: =PERCENTILE(G$56:G$12385,0.95) -> 0 | I19: =PERCENTILE(J$61:J$12385,0.95) -> -0.03 | J19: =PERCENTILE(K$81:K$12385,0.95) -> -0.08192307692 | K19: Enter this value in cell S48 of Tab 2
G20: Max | H20: =MAX(G$56:G$12385) -> 0.66 | I20: =MAX(J$61:J$12385) -> 0.325 | J20: =MAX(K$81:K$12385) -> 0.2365384615
A54: Raw data entered in this row, delete left over data on end of dataset
A55: Month | B55: Day | C55: Year | D55: Hour | E55: Minute | F55: Sec | G55: Ch A | H55: Ch B | I55: Date and Time | J55: Calculated 1-minute Moving Average (Pa) | K55: Calculated 5-minute Moving Average (Pa)
A56: 6 | B56: 28 | C56: 2018 | D56: 8 | E56: 34 | F56: 49 | G56: 0.06 | H56: 0.06 | I56: =DATE(C56,A56,B56)+TIME(D56,E56,F56) -> 2018-06-28T08:34:49
A57: 6 | B57: 28 | C57: 2018 | D57: 8 | E57: 34 | F57: 59 | G57: 0.06 | H57: 0.06 | I57: =DATE(C57,A57,B57)+TIME(D57,E57,F57) -> 2018-06-28T08:34:59
A58: 6 | B58: 28 | C58: 2018 | D58: 8 | E58: 35 | F58: 9 | G58: 0.06 | H58: 0.06 | I58: 2018-06-28T08:35:09
A59: 6 | B59: 28 | C59: 2018 | D59: 8 | E59: 35 | F59: 19 | G59: -0.15 | H59: -0.15 | I59: 2018-06-28T08:35:19
A60: 6 | B60: 28 | C60: 2018 | D60: 8 | E60: 35 | F60: 29 | G60: 0.06 | H60: 0.06 | I60: 2018-06-28T08:35:29
A61: 6 | B61: 28 | C61: 2018 | D61: 8 | E61: 35 | F61: 39 | G61: 0.33 | H61: 0.33 | I61: 2018-06-28T08:35:39 | J61: =AVERAGE(G56:G61) -> 0.07
A62: 6 | B62: 28 | C62: 2018 | D62: 8 | E62: 35 | F62: 49 | G62: 0.63 | H62: 0.63 | I62: 2018-06-28T08:35:49 | J62: 0.165
A63: 6 | B63: 28 | C63: 2018 | D63: 8 | E63: 35 | F63: 59 | G63: 0.54 | H63: 0.54 | I63: 2018-06-28T08:35:59 | J63: 0.245
A64: 6 | B64: 28 | C64: 2018 | D64: 8 | E64: 36 | F64: 9 | G64: -0.51 | H64: -0.51 | I64: 2018-06-28T08:36:09 | J64: 0.15
A65: 6 | B65: 28 | C65: 2018 | D65: 8 | E65: 36 | F65: 19 | G65: -0.51 | H65: -0.51 | I65: 2018-06-28T08:36:19 | J65: 0.09
A66: 6 | B66: 28 | C66: 2018 | D66: 8 | E66: 36 | F66: 29 | G66: -0.54 | H66: -0.54 | I66: 2018-06-28T08:36:29 | J66: -0.01
A67: 6 | B67: 28 | C67: 2018 | D67: 8 | E67: 36 | F67: 39 | G67: -0.51 | H67: -0.51 | I67: 2018-06-28T08:36:39 | J67: -0.15
A68: 6 | B68: 28 | C68: 2018 | D68: 8 | E68: 36 | F68: 49 | G68: -0.51 | H68: -0.51 | I68: 2018-06-28T08:36:49 | J68: -0.34
A69: 6 | B69: 28 | C69: 2018 | D69: 8 | E69: 36 | F69: 59 | G69: -0.48 | H69: -0.48 | I69: 2018-06-28T08:36:59 | J69: -0.51
A70: 6 | B70: 28 | C70: 2018 | D70: 8 | E70: 37 | F70: 9 | G70: -0.48 | H70: -0.48 | I70: 2018-06-28T08:37:09 | J70: -0.505
A71: 6 | B71: 28 | C71: 2018 | D71: 8 | E71: 37 | F71: 19 | G71: -0.45 | H71: -0.45 | I71: 2018-06-28T08:37:19 | J71: -0.495
A72: 6 | B72: 28 | C72: 2018 | D72: 8 | E72: 37 | F72: 29 | G72: -0.45 | H72: -0.45 | I72: 2018-06-28T08:37:29 | J72: -0.48
A73: 6 | B73: 28 | C73: 2018 | D73: 8 | E73: 37 | F73: 39 | G73: -0.45 | H73: -0.45 | I73: 2018-06-28T08:37:39 | J73: -0.47
A74: 6 | B74: 28 | C74: 2018 | D74: 8 | E74: 37 | F74: 49 | G74: -0.45 | H74: -0.45 | I74: 2018-06-28T08:37:49 | J74: -0.46
A75: 6 | B75: 28 | C75: 2018 | D75: 8 | E75: 37 | F75: 59 | G75: -0.42 | H75: -0.42 | I75: 2018-06-28T08:37:59 | J75: -0.45
A76: 6 | B76: 28 | C76: 2018 | D76: 8 | E76: 38 | F76: 9 | G76: -0.42 | H76: -0.42 | I76: 2018-06-28T08:38:09 | J76: -0.44
A77: 6 | B77: 28 | C77: 2018 | D77: 8 | E77: 38 | F77: 19 | G77: -0.42 | H77: -0.42 | I77: 2018-06-28T08:38:19 | J77: -0.435
A78: 6 | B78: 28 | C78: 2018 | D78: 8 | E78: 38 | F78: 29 | G78: -0.39 | H78: -0.39 | I78: 2018-06-28T08:38:29 | J78: -0.425
A79: 6 | B79: 28 | C79: 2018 | D79: 8 | E79: 38 | F79: 39 | G79: -0.36 | H79: -0.36 | I79: 2018-06-28T08:38:39 | J79: -0.41
A80: 6 | B80: 28 | C80: 2018 | D80: 8 | E80: 38 | F80: 49 | G80: -0.54 | H80: -0.54 | I80: 2018-06-28T08:38:49 | J80: -0.425
A81: 6 | B81: 28 | C81: 2018 | D81: 8 | E81: 38 | F81: 59 | G81: -0.48 | H81: -0.48 | I81: 2018-06-28T08:38:59 | J81: -0.435 | K81: =AVERAGE(G56:G81) -> -0.2607692308
A82: 6 | B82: 28 | C82: 2018 | D82: 8 | E82: 39 | F82: 9 | G82: -0.45 | H82: -0.45 | I82: 2018-06-28T08:39:09 | J82: -0.44 | K82: -0.2803846154
A83: 6 | B83: 28 | C83: 2018 | D83: 8 | E83: 39 | F83: 19 | G83: -0.45 | H83: -0.45 | I83: 2018-06-28T08:39:19 | J83: -0.445 | K83: -0.3
A84: 6 | B84: 28 | C84: 2018 | D84: 8 | E84: 39 | F84: 29 | G84: -0.45 | H84: -0.45 | I84: 2018-06-28T08:39:29 | J84: -0.455 | K84: -0.3196153846
A85: 6 | B85: 28 | C85: 2018 | D85: 8 | E85: 39 | F85: 39 | G85: -0.45 | H85: -0.45 | I85: 2018-06-28T08:39:39 | J85: -0.47 | K85: -0.3311538462
A86: 6 | B86: 28 | C86: 2018 | D86: 8 | E86: 39 | F86: 49 | G86: -0.3 | H86: -0.3 | I86: 2018-06-28T08:39:49 | J86: -0.43 | K86: -0.345
A87: 6 | B87: 28 | C87: 2018 | D87: 8 | E87: 39 | F87: 59 | G87: -0.3 | H87: -0.3 | I87: 2018-06-28T08:39:59 | J87: -0.4 | K87: -0.3692307692
A88: 6 | B88: 28 | C88: 2018 | D88: 8 | E88: 40 | F88: 9 | G88: -0.3 | H88: -0.3 | I88: 2018-06-28T08:40:09 | J88: -0.375 | K88: -0.405
A89: 6 | B89: 28 | C89: 2018 | D89: 8 | E89: 40 | F89: 19 | G89: -0.24 | H89: -0.24 | I89: 2018-06-28T08:40:19 | J89: -0.34 | K89: -0.435
A90: 6 | B90: 28 | C90: 2018 | D90: 8 | E90: 40 | F90: 29 | G90: -0.33 | H90: -0.33 | I90: 2018-06-28T08:40:29 | J90: -0.32 | K90: -0.4280769231
A91: 6 | B91: 28 | C91: 2018 | D91: 8 | E91: 40 | F91: 39 | G91: -0.27 | H91: -0.27 | I91: 2018-06-28T08:40:39 | J91: -0.29 | K91: -0.4188461538
A92: 6 | B92: 28 | C92: 2018 | D92: 8 | E92: 40 | F92: 49 | G92: -0.42 | H92: -0.42 | I92: 2018-06-28T08:40:49 | J92: -0.31 | K92: -0.4142307692
A93: 6 | B93: 28 | C93: 2018 | D93: 8 | E93: 40 | F93: 59 | G93: -0.45 | H93: -0.45 | I93: 2018-06-28T08:40:59 | J93: -0.335 | K93: -0.4119230769
A94: 6 | B94: 28 | C94: 2018 | D94: 8 | E94: 41 | F94: 9 | G94: -0.42 | H94: -0.42 | I94: 2018-06-28T08:41:09 | J94: -0.355 | K94: -0.4084615385
A95: 6 | B95: 28 | C95: 2018 | D95: 8 | E95: 41 | F95: 19 | G95: -0.39 | H95: -0.39 | I95: 2018-06-28T08:41:19 | J95: -0.38 | K95: -0.405
A96: 6 | B96: 28 | C96: 2018 | D96: 8 | E96: 41 | F96: 29 | G96: -0.42 | H96: -0.42 | I96: 2018-06-28T08:41:29 | J96: -0.395 | K96: -0.4026923077
A97: 6 | B97: 28 | C97: 2018 | D97: 8 | E97: 41 | F97: 39 | G97: -0.42 | H97: -0.42 | I97: 2018-06-28T08:41:39 | J97: -0.42 | K97: -0.4015384615
A98: 6 | B98: 28 | C98: 2018 | D98: 8 | E98: 41 | F98: 49 | G98: -0.27 | H98: -0.27 | I98: 2018-06-28T08:41:49 | J98: -0.395 | K98: -0.3946153846
A99: 6 | B99: 28 | C99: 2018 | D99: 8 | E99: 41 | F99: 59 | G99: -0.27 | H99: -0.27 | I99: 2018-06-28T08:41:59 | J99: -0.365 | K99: -0.3876923077
A100: 6 | B100: 28 | C100: 2018 | D100: 8 | E100: 42 | F100: 9 | G100: -0.27 | H100: -0.27 | I100: 2018-06-28T08:42:09 | J100: -0.34 | K100: -0.3807692308
A101: 6 | B101: 28 | C101: 2018 | D101: 8 | E101: 42 | F101: 19 | G101: -0.3 | H101: -0.3 | I101: 2018-06-28T08:42:19 | J101: -0.325 | K101: -0.3761538462
A102: 6 | B102: 28 | C102: 2018 | D102: 8 | E102: 42 | F102: 29 | G102: -0.3 | H102: -0.3 | I102: 2018-06-28T08:42:29 | J102: -0.305 | K102: -0.3715384615
A103: 6 | B103: 28 | C103: 2018 | D103: 8 | E103: 42 | F103: 39 | G103: -0.27 | H103: -0.27 | I103: 2018-06-28T08:42:39 | J103: -0.28 | K103: -0.3657692308
A104: 6 | B104: 28 | C104: 2018 | D104: 8 | E104: 42 | F104: 49 | G104: -0.27 | H104: -0.27 | I104: 2018-06-28T08:42:49 | J104: -0.28 | K104: -0.3611538462
A105: 6 | B105: 28 | C105: 2018 | D105: 8 | E105: 42 | F105: 59 | G105: -0.3 | H105: -0.3 | I105: 2018-06-28T08:42:59 | J105: -0.285 | K105: -0.3588461538
A106: 6 | B106: 28 | C106: 2018 | D106: 8 | E106: 43 | F106: 9 | G106: -0.3 | H106: -0.3 | I106: 2018-06-28T08:43:09 | J106: -0.29 | K106: -0.3496153846
A107: 6 | B107: 28 | C107: 2018 | D107: 8 | E107: 43 | F107: 19 | G107: -0.27 | H107: -0.27 | I107: 2018-06-28T08:43:19 | J107: -0.285 | K107: -0.3415384615
A108: 6 | B108: 28 | C108: 2018 | D108: 8 | E108: 43 | F108: 29 | G108: -0.27 | H108: -0.27 | I108: 2018-06-28T08:43:29 | J108: -0.28 | K108: -0.3346153846
A109: 6 | B109: 28 | C109: 2018 | D109: 8 | E109: 43 | F109: 39 | G109: -0.24 | H109: -0.24 | I109: 2018-06-28T08:43:39 | J109: -0.275 | K109: -0.3265384615
A110: 6 | B110: 28 | C110: 2018 | D110: 8 | E110: 43 | F110: 49 | G110: -0.24 | H110: -0.24 | I110: 2018-06-28T08:43:49 | J110: -0.27 | K110: -0.3184615385
A111: 6 | B111: 28 | C111: 2018 | D111: 8 | E111: 43 | F111: 59 | G111: -0.24 | H111: -0.24 | I111: 2018-06-28T08:43:59 | J111: -0.26 | K111: -0.3103846154
A112: 6 | B112: 28 | C112: 2018 | D112: 8 | E112: 44 | F112: 9 | G112: -0.21 | H112: -0.21 | I112: 2018-06-28T08:44:09 | J112: -0.245 | K112: -0.3069230769
A113: 6 | B113: 28 | C113: 2018 | D113: 8 | E113: 44 | F113: 19 | G113: -0.18 | H113: -0.18 | I113: 2018-06-28T08:44:19 | J113: -0.23 | K113: -0.3023076923
A114: 6 | B114: 28 | C114: 2018 | D114: 8 | E114: 44 | F114: 29 | G114: -0.21 | H114: -0.21 | I114: 2018-06-28T08:44:29 | J114: -0.22 | K114: -0.2988461538
A115: 6 | B115: 28 | C115: 2018 | D115: 8 | E115: 44 | F115: 39 | G115: -0.18 | H115: -0.18 | I115: 2018-06-28T08:44:39 | J115: -0.21 | K115: -0.2965384615
A116: 6 | B116: 28 | C116: 2018 | D116: 8 | E116: 44 | F116: 49 | G116: -0.18 | H116: -0.18 | I116: 2018-06-28T08:44:49 | J116: -0.2 | K116: -0.2907692308
A117: 6 | B117: 28 | C117: 2018 | D117: 8 | E117: 44 | F117: 59 | G117: -0.12 | H117: -0.12 | I117: 2018-06-28T08:44:59 | J117: -0.18 | K117: -0.285
A118: 6 | B118: 28 | C118: 2018 | D118: 8 | E118: 45 | F118: 9 | G118: -0.12 | H118: -0.12 | I118: 2018-06-28T08:45:09 | J118: -0.165 | K118: -0.2734615385
A119: 6 | B119: 28 | C119: 2018 | D119: 8 | E119: 45 | F119: 19 | G119: -0.09 | H119: -0.09 | I119: 2018-06-28T08:45:19 | J119: -0.15 | K119: -0.2596153846
A120: 6 | B120: 28 | C120: 2018 | D120: 8 | E120: 45 | F120: 29 | G120: -0.09 | H120: -0.09 | I120: 2018-06-28T08:45:29 | J120: -0.13 | K120: -0.2469230769
A121: 6 | B121: 28 | C121: 2018 | D121: 8 | E121: 45 | F121: 39 | G121: -0.12 | H121: -0.12 | I121: =DATE(C121,A121,B121)+TIME(D121,E121,F121) -> 2018-06-28T08:45:39 | J121: -0.12 | K121: -0.2365384615
A122: 6 | B122: 28 | C122: 2018 | D122: 8 | E122: 45 | F122: 49 | G122: -0.09 | H122: -0.09 | I122: 2018-06-28T08:45:49 | J122: -0.105 | K122: -0.2238461538
A123: 6 | B123: 28 | C123: 2018 | D123: 8 | E123: 45 | F123: 59 | G123: -0.09 | H123: -0.09 | I123: 2018-06-28T08:45:59 | J123: -0.1 | K123: -0.2111538462
A124: 6 | B124: 28 | C124: 2018 | D124: 8 | E124: 46 | F124: 9 | G124: -0.09 | H124: -0.09 | I124: 2018-06-28T08:46:09 | J124: -0.095 | K124: -0.2042307692
A125: 6 | B125: 28 | C125: 2018 | D125: 8 | E125: 46 | F125: 19 | G125: -0.12 | H125: -0.12 | I125: 2018-06-28T08:46:19 | J125: =AVERAGE(G120:G125) -> -0.1 | K125: -0.1984615385
A126: 6 | B126: 28 | C126: 2018 | D126: 8 | E126: 46 | F126: 29 | G126: -0.09 | H126: -0.09 | I126: 2018-06-28T08:46:29 | J126: -0.1 | K126: -0.1915384615
A127: 6 | B127: 28 | C127: 2018 | D127: 8 | E127: 46 | F127: 39 | G127: -0.12 | H127: -0.12 | I127: 2018-06-28T08:46:39 | J127: -0.1 | K127: -0.1846153846
A128: 6 | B128: 28 | C128: 2018 | D128: 8 | E128: 46 | F128: 49 | G128: 0 | H128: 0 | I128: 2018-06-28T08:46:49 | J128: -0.085 | K128: -0.1730769231
A129: 6 | B129: 28 | C129: 2018 | D129: 8 | E129: 46 | F129: 59 | G129: -0.21 | H129: -0.21 | I129: 2018-06-28T08:46:59 | J129: -0.105 | K129: -0.1707692308
A130: 6 | B130: 28 | C130: 2018 | D130: 8 | E130: 47 | F130: 9 | G130: -0.18 | H130: -0.18 | I130: 2018-06-28T08:47:09 | J130: -0.12 | K130: -0.1673076923
A131: 6 | B131: 28 | C131: 2018 | D131: 8 | E131: 47 | F131: 19 | G131: -0.15 | H131: -0.15 | I131: 2018-06-28T08:47:19 | J131: -0.125 | K131: -0.1615384615
A132: 6 | B132: 28 | C132: 2018 | D132: 8 | E132: 47 | F132: 29 | G132: -0.15 | H132: -0.15 | I132: 2018-06-28T08:47:29 | J132: -0.135 | K132: -0.1557692308
A133: 6 | B133: 28 | C133: 2018 | D133: 8 | E133: 47 | F133: 39 | G133: -0.18 | H133: -0.18 | I133: 2018-06-28T08:47:39 | J133: -0.145 | K133: -0.1523076923
A134: 6 | B134: 28 | C134: 2018 | D134: 8 | E134: 47 | F134: 49 | G134: -0.21 | H134: -0.21 | I134: 2018-06-28T08:47:49 | J134: -0.18 | K134: -0.15
A135: 6 | B135: 28 | C135: 2018 | D135: 8 | E135: 47 | F135: 59 | G135: -0.24 | H135: -0.24 | I135: 2018-06-28T08:47:59 | J135: -0.185 | K135: -0.15
A136: 6 | B136: 28 | C136: 2018 | D136: 8 | E136: 48 | F136: 9 | G136: -0.24 | H136: -0.24 | I136: 2018-06-28T08:48:09 | J136: -0.195 | K136: -0.15
A137: 6 | B137: 28 | C137: 2018 | D137: 8 | E137: 48 | F137: 19 | G137: -0.24 | H137: -0.24 | I137: 2018-06-28T08:48:19 | J137: -0.21 | K137: -0.15
A138: 6 | B138: 28 | C138: 2018 | D138: 8 | E138: 48 | F138: 29 | G138: -0.27 | H138: -0.27 | I138: 2018-06-28T08:48:29 | J138: -0.23 | K138: -0.1523076923
A139: 6 | B139: 28 | C139: 2018 | D139: 8 | E139: 48 | F139: 39 | G139: -0.24 | H139: -0.24 | I139: 2018-06-28T08:48:39 | J139: -0.24 | K139: -0.1546153846
A140: 6 | B140: 28 | C140: 2018 | D140: 8 | E140: 48 | F140: 49 | G140: -0.27 | H140: -0.27 | I140: 2018-06-28T08:48:49 | J140: -0.25 | K140: -0.1569230769
A141: 6 | B141: 28 | C141: 2018 | D141: 8 | E141: 48 | F141: 59 | G141: -0.3 | H141: -0.3 | I141: 2018-06-28T08:48:59 | J141: -0.26 | K141: -0.1615384615
A142: 6 | B142: 28 | C142: 2018 | D142: 8 | E142: 49 | F142: 9 | G142: -0.27 | H142: -0.27 | I142: 2018-06-28T08:49:09 | J142: -0.265 | K142: -0.165
A143: 6 | B143: 28 | C143: 2018 | D143: 8 | E143: 49 | F143: 19 | G143: -0.27 | H143: -0.27 | I143: 2018-06-28T08:49:19 | J143: -0.27 | K143: -0.1707692308
A144: 6 | B144: 28 | C144: 2018 | D144: 8 | E144: 49 | F144: 29 | G144: -0.24 | H144: -0.24 | I144: 2018-06-28T08:49:29 | J144: -0.265 | K144: -0.1753846154
A145: 6 | B145: 28 | C145: 2018 | D145: 8 | E145: 49 | F145: 39 | G145: -0.27 | H145: -0.27 | I145: 2018-06-28T08:49:39 | J145: -0.27 | K145: =AVERAGE(G120:G145) -> -0.1823076923
A146: 6 | B146: 28 | C146: 2018 | D146: 8 | E146: 49 | F146: 49 | G146: -0.24 | H146: -0.24 | I146: 2018-06-28T08:49:49 | J146: -0.265 | K146: -0.1880769231
A147: 6 | B147: 28 | C147: 2018 | D147: 8 | E147: 49 | F147: 59 | G147: -0.27 | H147: -0.27 | I147: 2018-06-28T08:49:59 | J147: -0.26 | K147: -0.1938461538
A148: 6 | B148: 28 | C148: 2018 | D148: 8 | E148: 50 | F148: 9 | G148: -0.24 | H148: -0.24 | I148: 2018-06-28T08:50:09 | J148: -0.255 | K148: -0.1996153846
A149: 6 | B149: 28 | C149: 2018 | D149: 8 | E149: 50 | F149: 19 | G149: -0.27 | H149: -0.27 | I149: 2018-06-28T08:50:19 | J149: -0.255 | K149: -0.2065384615
A150: 6 | B150: 28 | C150: 2018 | D150: 8 | E150: 50 | F150: 29 | G150: -0.27 | H150: -0.27 | I150: 2018-06-28T08:50:29 | J150: -0.26 | K150: -0.2134615385
A151: 6 | B151: 28 | C151: 2018 | D151: 8 | E151: 50 | F151: 39 | G151: -0.27 | H151: -0.27 | I151: 2018-06-28T08:50:39 | J151: -0.26 | K151: -0.2192307692
A152: 6 | B152: 28 | C152: 2018 | D152: 8 | E152: 50 | F152: 49 | G152: -0.27 | H152: -0.27 | I152: 2018-06-28T08:50:49 | J152: -0.265 | K152: -0.2261538462
A153: 6 | B153: 28 | C153: 2018 | D153: 8 | E153: 50 | F153: 59 | G153: -0.27 | H153: -0.27 | I153: 2018-06-28T08:50:59 | J153: -0.265 | K153: -0.2319230769
A154: 6 | B154: 28 | C154: 2018 | D154: 8 | E154: 51 | F154: 9 | G154: -0.3 | H154: -0.3 | I154: 2018-06-28T08:51:09 | J154: -0.275 | K154: -0.2434615385
A155: 6 | B155: 28 | C155: 2018 | D155: 8 | E155: 51 | F155: 19 | G155: -0.33 | H155: -0.33 | I155: 2018-06-28T08:51:19 | J155: -0.285 | K155: -0.2480769231
A156: 6 | B156: 28 | C156: 2018 | D156: 8 | E156: 51 | F156: 29 | G156: -0.36 | H156: -0.36 | I156: 2018-06-28T08:51:29 | J156: -0.3 | K156: -0.255
A157: 6 | B157: 28 | C157: 2018 | D157: 8 | E157: 51 | F157: 39 | G157: -0.33 | H157: -0.33 | I157: 2018-06-28T08:51:39 | J157: -0.31 | K157: -0.2619230769
A158: 6 | B158: 28 | C158: 2018 | D158: 8 | E158: 51 | F158: 49 | G158: -0.3 | H158: -0.3 | I158: 2018-06-28T08:51:49 | J158: -0.315 | K158: -0.2676923077
A159: 6 | B159: 28 | C159: 2018 | D159: 8 | E159: 51 | F159: 59 | G159: -0.33 | H159: -0.33 | I159: 2018-06-28T08:51:59 | J159: -0.325 | K159: -0.2734615385
A160: 6 | B160: 28 | C160: 2018 | D160: 8 | E160: 52 | F160: 9 | G160: -0.33 | H160: -0.33 | I160: 2018-06-28T08:52:09 | J160: -0.33 | K160: -0.2780769231
A161: 6 | B161: 28 | C161: 2018 | D161: 8 | E161: 52 | F161: 19 | G161: -0.3 | H161: -0.3 | I161: 2018-06-28T08:52:19 | J161: -0.325 | K161: -0.2803846154
A162: 6 | B162: 28 | C162: 2018 | D162: 8 | E162: 52 | F162: 29 | G162: -0.3 | H162: -0.3 | I162: 2018-06-28T08:52:29 | J162: -0.315 | K162: -0.2826923077
A163: 6 | B163: 28 | C163: 2018 | D163: 8 | E163: 52 | F163: 39 | G163: -0.3 | H163: -0.3 | I163: 2018-06-28T08:52:39 | J163: -0.31 | K163: -0.285
A164: 6 | B164: 28 | C164: 2018 | D164: 8 | E164: 52 | F164: 49 | G164: -0.27 | H164: -0.27 | I164: 2018-06-28T08:52:49 | J164: -0.305 | K164: -0.285
A165: 6 | B165: 28 | C165: 2018 | D165: 8 | E165: 52 | F165: 59 | G165: -0.27 | H165: -0.27 | I165: 2018-06-28T08:52:59 | J165: -0.295 | K165: -0.2861538462
A166: 6 | B166: 28 | C166: 2018 | D166: 8 | E166: 53 | F166: 9 | G166: -0.27 | H166: -0.27 | I166: 2018-06-28T08:53:09 | J166: -0.285 | K166: -0.2861538462
A167: 6 | B167: 28 | C167: 2018 | D167: 8 | E167: 53 | F167: 19 | G167: -0.24 | H167: -0.24 | I167: 2018-06-28T08:53:19 | J167: -0.275 | K167: -0.2838461538
A168: 6 | B168: 28 | C168: 2018 | D168: 8 | E168: 53 | F168: 29 | G168: -0.24 | H168: -0.24 | I168: 2018-06-28T08:53:29 | J168: -0.265 | K168: -0.2826923077
A169: 6 | B169: 28 | C169: 2018 | D169: 8 | E169: 53 | F169: 39 | G169: -0.27 | H169: -0.27 | I169: 2018-06-28T08:53:39 | J169: -0.26 | K169: -0.2826923077
A170: 6 | B170: 28 | C170: 2018 | D170: 8 | E170: 53 | F170: 49 | G170: -0.24 | H170: -0.24 | I170: 2018-06-28T08:53:49 | J170: -0.255 | K170: -0.2826923077
A171: 6 | B171: 28 | C171: 2018 | D171: 8 | E171: 53 | F171: 59 | G171: -0.24 | H171: -0.24 | I171: 2018-06-28T08:53:59 | J171: -0.25 | K171: -0.2815384615
A172: 6 | B172: 28 | C172: 2018 | D172: 8 | E172: 54 | F172: 9 | G172: -0.21 | H172: -0.21 | I172: 2018-06-28T08:54:09 | J172: -0.24 | K172: -0.2803846154
A173: 6 | B173: 28 | C173: 2018 | D173: 8 | E173: 54 | F173: 19 | G173: -0.18 | H173: -0.18 | I173: 2018-06-28T08:54:19 | J173: -0.23 | K173: -0.2769230769
A174: 6 | B174: 28 | C174: 2018 | D174: 8 | E174: 54 | F174: 29 | G174: -0.15 | H174: -0.15 | I174: 2018-06-28T08:54:29 | J174: -0.215 | K174: -0.2734615385
A175: 6 | B175: 28 | C175: 2018 | D175: 8 | E175: 54 | F175: 39 | G175: -0.12 | H175: -0.12 | I175: 2018-06-28T08:54:39 | J175: -0.19 | K175: -0.2676923077
A176: 6 | B176: 28 | C176: 2018 | D176: 8 | E176: 54 | F176: 49 | G176: -0.09 | H176: -0.09 | I176: 2018-06-28T08:54:49 | J176: -0.165 | K176: -0.2607692308
A177: 6 | B177: 28 | C177: 2018 | D177: 8 | E177: 54 | F177: 59 | G177: -0.09 | H177: -0.09 | I177: 2018-06-28T08:54:59 | J177: -0.14 | K177: -0.2538461538
A178: 6 | B178: 28 | C178: 2018 | D178: 8 | E178: 55 | F178: 9 | G178: -0.06 | H178: -0.06 | I178: 2018-06-28T08:55:09 | J178: -0.115 | K178: -0.2457692308
A179: 6 | B179: 28 | C179: 2018 | D179: 8 | E179: 55 | F179: 19 | G179: -0.09 | H179: -0.09 | I179: 2018-06-28T08:55:19 | J179: -0.1 | K179: -0.2388461538
A180: 6 | B180: 28 | C180: 2018 | D180: 8 | E180: 55 | F180: 29 | G180: -0.06 | H180: -0.06 | I180: 2018-06-28T08:55:29 | J180: -0.085 | K180: -0.2296153846
A181: 6 | B181: 28 | C181: 2018 | D181: 8 | E181: 55 | F181: 39 | G181: -0.12 | H181: -0.12 | I181: 2018-06-28T08:55:39 | J181: -0.085 | K181: -0.2215384615
A182: 6 | B182: 28 | C182: 2018 | D182: 8 | E182: 55 | F182: 49 | G182: -0.09 | H182: -0.09 | I182: 2018-06-28T08:55:49 | J182: -0.085 | K182: -0.2111538462
A183: 6 | B183: 28 | C183: 2018 | D183: 8 | E183: 55 | F183: 59 | G183: -0.12 | H183: -0.12 | I183: 2018-06-28T08:55:59 | J183: -0.09 | K183: -0.2030769231
A184: 6 | B184: 28 | C184: 2018 | D184: 8 | E184: 56 | F184: 9 | G184: -0.15 | H184: -0.15 | I184: 2018-06-28T08:56:09 | J184: -0.105 | K184: -0.1973076923
A185: 6 | B185: 28 | C185: 2018 | D185: 8 | E185: 56 | F185: 19 | G185: -0.18 | H185: -0.18 | I185: =DATE(C185,A185,B185)+TIME(D185,E185,F185) -> 2018-06-28T08:56:19 | J185: -0.12 | K185: -0.1915384615
A186: 6 | B186: 28 | C186: 2018 | D186: 8 | E186: 56 | F186: 29 | G186: -0.21 | H186: -0.21 | I186: 2018-06-28T08:56:29 | J186: -0.145 | K186: -0.1869230769
A187: 6 | B187: 28 | C187: 2018 | D187: 8 | E187: 56 | F187: 39 | G187: -0.21 | H187: -0.21 | I187: 2018-06-28T08:56:39 | J187: -0.16 | K187: -0.1834615385
A188: 6 | B188: 28 | C188: 2018 | D188: 8 | E188: 56 | F188: 49 | G188: -0.24 | H188: -0.24 | I188: 2018-06-28T08:56:49 | J188: -0.185 | K188: -0.1811538462
A189: 6 | B189: 28 | C189: 2018 | D189: 8 | E189: 56 | F189: 59 | G189: -0.24 | H189: -0.24 | I189: 2018-06-28T08:56:59 | J189: =AVERAGE(G184:G189) -> -0.205 | K189: -0.1788461538
A190: 6 | B190: 28 | C190: 2018 | D190: 8 | E190: 57 | F190: 9 | G190: -0.27 | H190: -0.27 | I190: 2018-06-28T08:57:09 | J190: -0.225 | K190: -0.1788461538
A191: 6 | B191: 28 | C191: 2018 | D191: 8 | E191: 57 | F191: 19 | G191: -0.27 | H191: -0.27 | I191: 2018-06-28T08:57:19 | J191: -0.24 | K191: -0.1788461538
A192: 6 | B192: 28 | C192: 2018 | D192: 8 | E192: 57 | F192: 29 | G192: -0.3 | H192: -0.3 | I192: 2018-06-28T08:57:29 | J192: -0.255 | K192: -0.18
A193: 6 | B193: 28 | C193: 2018 | D193: 8 | E193: 57 | F193: 39 | G193: -0.3 | H193: -0.3 | I193: 2018-06-28T08:57:39 | J193: -0.27 | K193: -0.1823076923
A194: 6 | B194: 28 | C194: 2018 | D194: 8 | E194: 57 | F194: 49 | G194: -0.48 | H194: -0.48 | I194: 2018-06-28T08:57:49 | J194: -0.31 | K194: -0.1915384615
A195: 6 | B195: 28 | C195: 2018 | D195: 8 | E195: 57 | F195: 59 | G195: -0.48 | H195: -0.48 | I195: 2018-06-28T08:57:59 | J195: -0.35 | K195: -0.1996153846
A196: 6 | B196: 28 | C196: 2018 | D196: 8 | E196: 58 | F196: 9 | G196: -0.51 | H196: -0.51 | I196: 2018-06-28T08:58:09 | J196: -0.39 | K196: -0.21
A197: 6 | B197: 28 | C197: 2018 | D197: 8 | E197: 58 | F197: 19 | G197: -0.51 | H197: -0.51 | I197: 2018-06-28T08:58:19 | J197: -0.43 | K197: -0.2203846154
A198: 6 | B198: 28 | C198: 2018 | D198: 8 | E198: 58 | F198: 29 | G198: -0.54 | H198: -0.54 | I198: 2018-06-28T08:58:29 | J198: -0.47 | K198: -0.2330769231
A199: 6 | B199: 28 | C199: 2018 | D199: 8 | E199: 58 | F199: 39 | G199: -0.51 | H199: -0.51 | I199: 2018-06-28T08:58:39 | J199: -0.505 | K199: -0.2457692308
A200: 6 | B200: 28 | C200: 2018 | D200: 8 | E200: 58 | F200: 49 | G200: -0.3 | H200: -0.3 | I200: 2018-06-28T08:58:49 | J200: -0.475 | K200: -0.2515384615
A201: 6 | B201: 28 | C201: 2018 | D201: 8 | E201: 58 | F201: 59 | G201: -0.33 | H201: -0.33 | I201: 2018-06-28T08:58:59 | J201: -0.45 | K201: -0.2596153846
A202: 6 | B202: 28 | C202: 2018 | D202: 8 | E202: 59 | F202: 9 | G202: -0.36 | H202: -0.36 | I202: 2018-06-28T08:59:09 | J202: -0.425 | K202: -0.27
A203: 6 | B203: 28 | C203: 2018 | D203: 8 | E203: 59 | F203: 19 | G203: -0.3 | H203: -0.3 | I203: 2018-06-28T08:59:19 | J203: -0.39 | K203: -0.2780769231
A204: 6 | B204: 28 | C204: 2018 | D204: 8 | E204: 59 | F204: 29 | G204: -0.42 | H204: -0.42 | I204: 2018-06-28T08:59:29 | J204: -0.37 | K204: -0.2919230769
A205: 6 | B205: 28 | C205: 2018 | D205: 8 | E205: 59 | F205: 39 | G205: -0.42 | H205: -0.42 | I205: 2018-06-28T08:59:39 | J205: -0.355 | K205: -0.3046153846
A206: 6 | B206: 28 | C206: 2018 | D206: 8 | E206: 59 | F206: 49 | G206: -0.42 | H206: -0.42 | I206: 2018-06-28T08:59:49 | J206: -0.375 | K206: -0.3184615385
A207: 6 | B207: 28 | C207: 2018 | D207: 8 | E207: 59 | F207: 59 | G207: -0.45 | H207: -0.45 | I207: 2018-06-28T08:59:59 | J207: -0.395 | K207: -0.3311538462
A208: 6 | B208: 28 | C208: 2018 | D208: 9 | E208: 0 | F208: 9 | G208: -0.45 | H208: -0.45 | I208: 2018-06-28T09:00:09 | J208: -0.41 | K208: -0.345
A209: 6 | B209: 28 | C209: 2018 | D209: 9 | E209: 0 | F209: 19 | G209: -0.48 | H209: -0.48 | I209: 2018-06-28T09:00:19 | J209: -0.44 | K209: =AVERAGE(G184:G209) -> -0.3588461538
A210: 6 | B210: 28 | C210: 2018 | D210: 9 | E210: 0 | F210: 29 | G210: -0.45 | H210: -0.45 | I210: 2018-06-28T09:00:29 | J210: -0.445 | K210: -0.3703846154
A211: 6 | B211: 28 | C211: 2018 | D211: 9 | E211: 0 | F211: 39 | G211: -0.45 | H211: -0.45 | I211: 2018-06-28T09:00:39 | J211: -0.45 | K211: -0.3807692308
A212: 6 | B212: 28 | C212: 2018 | D212: 9 | E212: 0 | F212: 49 | G212: -0.48 | H212: -0.48 | I212: 2018-06-28T09:00:49 | J212: -0.46 | K212: -0.3911538462
A213: 6 | B213: 28 | C213: 2018 | D213: 9 | E213: 0 | F213: 59 | G213: -0.48 | H213: -0.48 | I213: 2018-06-28T09:00:59 | J213: -0.465 | K213: -0.4015384615
A214: 6 | B214: 28 | C214: 2018 | D214: 9 | E214: 1 | F214: 9 | G214: -0.45 | H214: -0.45 | I214: 2018-06-28T09:01:09 | J214: -0.465 | K214: -0.4096153846
A215: 6 | B215: 28 | C215: 2018 | D215: 9 | E215: 1 | F215: 19 | G215: -0.48 | H215: -0.48 | I215: 2018-06-28T09:01:19 | J215: -0.465 | K215: -0.4188461538
A216: 6 | B216: 28 | C216: 2018 | D216: 9 | E216: 1 | F216: 29 | G216: -0.45 | H216: -0.45 | I216: 2018-06-28T09:01:29 | J216: -0.465 | K216: -0.4257692308
A217: 6 | B217: 28 | C217: 2018 | D217: 9 | E217: 1 | F217: 39 | G217: -0.51 | H217: -0.51 | I217: 2018-06-28T09:01:39 | J217: -0.475 | K217: -0.435
A218: 6 | B218: 28 | C218: 2018 | D218: 9 | E218: 1 | F218: 49 | G218: -0.48 | H218: -0.48 | I218: 2018-06-28T09:01:49 | J218: -0.475 | K218: -0.4419230769
A219: 6 | B219: 28 | C219: 2018 | D219: 9 | E219: 1 | F219: 59 | G219: -0.51 | H219: -0.51 | I219: 2018-06-28T09:01:59 | J219: -0.48 | K219: -0.45
A220: 6 | B220: 28 | C220: 2018 | D220: 9 | E220: 2 | F220: 9 | G220: -0.51 | H220: -0.51 | I220: 2018-06-28T09:02:09 | J220: -0.49 | K220: -0.4511538462
A221: 6 | B221: 28 | C221: 2018 | D221: 9 | E221: 2 | F221: 19 | G221: -0.51 | H221: -0.51 | I221: 2018-06-28T09:02:19 | J221: -0.495 | K221: -0.4523076923
A222: 6 | B222: 28 | C222: 2018 | D222: 9 | E222: 2 | F222: 29 | G222: -0.51 | H222: -0.51 | I222: 2018-06-28T09:02:29 | J222: -0.505 | K222: -0.4523076923
A223: 6 | B223: 28 | C223: 2018 | D223: 9 | E223: 2 | F223: 39 | G223: -0.48 | H223: -0.48 | I223: 2018-06-28T09:02:39 | J223: -0.5 | K223: -0.4511538462
A224: 6 | B224: 28 | C224: 2018 | D224: 9 | E224: 2 | F224: 49 | G224: -0.48 | H224: -0.48 | I224: 2018-06-28T09:02:49 | J224: -0.5 | K224: -0.4488461538
A225: 6 | B225: 28 | C225: 2018 | D225: 9 | E225: 2 | F225: 59 | G225: -0.45 | H225: -0.45 | I225: 2018-06-28T09:02:59 | J225: -0.49 | K225: -0.4465384615
A226: 6 | B226: 28 | C226: 2018 | D226: 9 | E226: 3 | F226: 9 | G226: -0.42 | H226: -0.42 | I226: 2018-06-28T09:03:09 | J226: -0.475 | K226: -0.4511538462
A227: 6 | B227: 28 | C227: 2018 | D227: 9 | E227: 3 | F227: 19 | G227: -0.39 | H227: -0.39 | I227: 2018-06-28T09:03:19 | J227: -0.455 | K227: -0.4534615385
A228: 6 | B228: 28 | C228: 2018 | D228: 9 | E228: 3 | F228: 29 | G228: -0.39 | H228: -0.39 | I228: 2018-06-28T09:03:29 | J228: -0.435 | K228: -0.4546153846
A229: 6 | B229: 28 | C229: 2018 | D229: 9 | E229: 3 | F229: 39 | G229: -0.39 | H229: -0.39 | I229: 2018-06-28T09:03:39 | J229: -0.42 | K229: -0.4580769231
A230: 6 | B230: 28 | C230: 2018 | D230: 9 | E230: 3 | F230: 49 | G230: -0.42 | H230: -0.42 | I230: 2018-06-28T09:03:49 | J230: -0.41 | K230: -0.4580769231
A231: 6 | B231: 28 | C231: 2018 | D231: 9 | E231: 3 | F231: 59 | G231: -0.42 | H231: -0.42 | I231: 2018-06-28T09:03:59 | J231: -0.405 | K231: -0.4580769231
A232: 6 | B232: 28 | C232: 2018 | D232: 9 | E232: 4 | F232: 9 | G232: -0.42 | H232: -0.42 | I232: 2018-06-28T09:04:09 | J232: -0.405 | K232: -0.4580769231
A233: 6 | B233: 28 | C233: 2018 | D233: 9 | E233: 4 | F233: 19 | G233: -0.45 | H233: -0.45 | I233: 2018-06-28T09:04:19 | J233: -0.415 | K233: -0.4580769231
A234: 6 | B234: 28 | C234: 2018 | D234: 9 | E234: 4 | F234: 29 | G234: -0.45 | H234: -0.45 | I234: 2018-06-28T09:04:29 | J234: -0.425 | K234: -0.4580769231
A235: 6 | B235: 28 | C235: 2018 | D235: 9 | E235: 4 | F235: 39 | G235: -0.45 | H235: -0.45 | I235: 2018-06-28T09:04:39 | J235: -0.435 | K235: -0.4569230769
A236: 6 | B236: 28 | C236: 2018 | D236: 9 | E236: 4 | F236: 49 | G236: -0.42 | H236: -0.42 | I236: 2018-06-28T09:04:49 | J236: -0.435 | K236: -0.4557692308
... 4264 more rows

Sheet Tab 6 Tracer Tests
A1: Description of Field Methods
A3: This Tab provides suggested operating procedures for data collection for use with this spreadsheet model. These methods are described in more detail in the Final Report for ESTCP ER201322, available online at: https://www.serdp-estcp.org/Program-Areas/Environmental-Restoration/Contaminated-Groundwater/Emerging-Issues/ER-201322/ER-201322
A4: Figure 6.1: Typical Apparatus for Pneumatic and Tracer Testing
A5: Flow and Vacuum Testing: Refer to the schematic diagram above for details of a suggested apparatus. The general goal is to extract gas at a measured flow rate and measure static vacuum at two or more radial distances, with at least one monitoring point near the extraction point (suggested radius of about 3 ft or 1 m), and at least one near the far end of the region of induced vacuum clearly higher than baseline cross-slab pressure fluctuations (i.e., near the extent but within the radius of influence). Additional monitoring points are valuable and encouraged, to the extent that time, budget, access and practical constraints allow. Consider specifically monitoring points near possible preferential pathways below or across the floor, in different compass directions to assess anisotropy, and possibly on both sides of suspected barriers to flow (footers, etc.). The monitoring points that are near possible preferential pathways should be in addition to the near and far monitoring points mentioned above, as they will not typically be representative of the majority of the building. Measure the flow rate using a thermal anemometer, vane anemometer, pitot tube, or critical orifice flowmeter (more than one method can be helpful for assessing the uncertainty in the flow measurement). Measure applied vacuum at the top of the suction pit to compare to gas extraction flow rate and consider testing at a few different flow rates to help with fan selection. Visually observe transient response in vacuum measurements after turning on the fan to verify stable readings before recording vacuum vs distance data. Consider using a micromanometer with a datalogger to record transient drawdown and recovery cycles in response to turning the fan on and off once or twice. The transient data can be analysed using AQTESOLV(R) software to provide an independent line of evidence to support T and B values derived from fitting this spreadsheet model to the static vacuum vs distance data. The ideal design of a suction pit involves coring a 4 to 6-inch diameter (10 to 15 cm) hole in the floor, removing 3 to 10 gallons (10 to 40 L) of soil to minimize resistance to flow and setting a PVC pipe using an air-tight gasket or backer-rod and fast-setting achor cement to form a seal between the pipe and the concrete. The extracted gas should be discharged to an outdoor location to avoid adverse effects on indoor air quality, but may be filtered using activated carbon or other appropriate filters where there are no nearby doors or windows to discharge through. It may be valuable to monitor the extracted gas using a photoionization meter for volatile organic compounds and/or a continuous radon meter for a period of time during the diagnostic testing to assist in understanding the subsurface distribution of chemicals of concern and it may also be helpful to use a landfill gas meter to monitor oxygen and carbon dioxide to assist in assessing the degree to which indoor air is drawn across the floor slab during the diagnostic testing. These field-screening measurements should be made at the same ambient pressure the instruments were calibrated at, so using a vacuum chamber to fill a Tedlar bag is recommended over direct monitoring of the influent or effluent of the fan, which would be under negative or positive pressure, respectively.
A6: Interwell tracer test: The Interwell Test involves injecting a fixed volume (e.g. 5 to 10 L) of 100% helium into a subslab probe or monitoring point, at a certain distance (typically 5 to 15 ft) from the suction point and monitoring the concentration of helium in the extracted gas with a portable meter. The average travel time is the time interval between the midpoint of injection and the highest concentration of helium in the gas extracted from the suction point. Typical data is shown in Figure 6.2, below. The operator only needs to record the time associated with the peak reading, recorded with a stopwatch that begins at the time helium is injected. Optimal test durations are in the range of about 1 to 3 minutes, and a corresponding radial distance for the helium interwell test can be selected from Figure 2.2 on Tab 2 after the vacuum vs distance data has been used to select appropriate T and B values to fit the curves on Figure 2.1a and Figure 2.1b of Tab 2 (step 4 on the Home Page Tab).
A7: Helium Flood tracer test: The Flood Test involves reversing the flow direction on the fan, blower or vacuum to blow air into the subsurface (ideally at the same flow rate as would be used for extraction to mimic the conditions), but adding about 1%v/v helium to the injected air. Helium concentrations are monitored at all one or more subslab probes or monitoring points, at measured distance(s) from the point of injection. The average travel time is the time interval between the start of helium injection and the arrival of a helium concentration equal to 50% of the concentration injected. A typical plot is shown in Figure 6.3, below.
B10: Figure 6.2: Typical data for a Helium Inter-Well Tracer Test | J10: Figure 6.3: Typical data for a Helium Flood Tracer Test

Sheet Tab 7 H-J Model Assumptions
A1: MODEL ASSUMPTIONS
A4: Hantush-Jacob (1955) Model Assumptions | B4: Application to Subslab Gas Extraction
A5: The aquifer (in this application, the subfloor materials) and aquitard (floor slab) have infinite areal extent | B5: This assumption is reasonable if the building is large relative to the radius of influence (ROI) of the gas extraction, which depends on the relative permeability of the floor and subfloor materials and extraction flow rate, but is typically in the range of 10 to 30 m. The suction point should ideally be located far enough from subslab obstructions or discontinuities that the radial flow pattern is not significantly biased by barriers (e.g., footers) or sources of leakage (e.g., perimeter expansion joints at exterior walls).
A6: The aquifer (subfloor) is homogeneous, isotropic and of uniform thickness | B6: Building Codes typically specify a layer of 10 to 15 cm of compacted granular fill below a concrete floor slab as a capillary break, which can be visually verified during installation of suction points and sub-slab probes. Where present, construction aggregate tends to be very homogenous, isotropic and uniform thickness by design. This layer may be disrupted by utilities or footers, and may be absent in buildings constructed prior to promulgation of building codes.
A7: The aquitard (floor slab) is homogeneous, isotropic and of uniform thickness | B7: Slab thickness is usually uniform by design, but the slab is neither uniform, nor homogenous, so it is appropriate to explicitly consider the uncertainty that this assumption imposes. A concrete floor slab is generally a dual porosity medium, analogous to fractured rock. Mathematical modeling of fluid flow through fractured rock often adopts a simplifying assumption that the fractured rock behaves as an equivalent porous medium, as long as the hydraulic properties are measured at a scale at least the size of a representative elemental volume (REV), as described by Bear, 1979. An REV is the smallest volume within which a measurement can be made that will yield a value representative of the whole system of interest. In attempts to measure Qsoil, the REV would be no larger than the area of the building. Irregular spacing of discontinuities in the concrete (floor drains, expansion joints, fractures, etc.) are to be expected and are likely to cause spatial variability in the gas conductivity of the floor, so it is prudent to explicitly consider the range of bulk gas conductivity values observed for a particular floor slab. Comparisons between the measured vacuum and the mathematical model provides insight into the degree to which the floor slab approximates an equivalent porous medium at the large scale. To account for spatial variability, it is advisable to have multiple monitoring points, and the range of fitted T and B values should be assessed using a sensitivity analysis. Locations with relatively low vacuum are indications of nearby air supply (e.g. leakage across the floor or subsurface utilities), which should be compared to visual observations of expansion joints, floor drains and other features to aid in interpretation.
A8: Extraction well is fully penetrating the active flow zone | B8: This is simple to achieve if there is a granular fill layer below the floor slab and the gravel is removed prior to installation of the suction point. If there is no granular fill layer, the thickness of the active flow zone is a variable (b) that can be quantified by adding subslab helium tracer testing. Corrections for partially-penetrating well screens are available in AQTESOLV, see the ESTCP ER201322 final report for a description of transient pneumatic testing and curve-fitting using AQTESOLV.
A9: Flow to pumping well is horizontal and radial when pumping well is fully penetrating | B9: Where a granular fill layer exists below the floor slab, it is usually the material with the highest gas permeability and this assumption is appropriate. If a granular fill layer is not present, flow may still be radial toward a suction point, as long as the suction point is not adjacent to a footer or exterior wall. Flow may also follow a hemispherical pattern, depending on the vertical profile of gas conductivity below the slab and thickness of the unsaturated zone above the water table and capillary fringe. If the region of flow extends vertically, a larger "b" value will be needed to match the tracer test data to the model curves in Figure 2.2, compared to a typical 4 to 6 inch (10 to 15 cm) grular fill layer.
A10: Aquifer is leaky confined | B10: This is appropriate where downward flow of indoor air across the floor is the dominant supply of air to the subslab venting system. Some of the extracted gas may also originate from outdoor air that flows into the subsurface beside the building and through the soil beneath the granular fill or from preferential pathways such as subsurface utilities. This process will tend to result in an overestimation of the floor slab leakance (B), which will bias the analysis toward a smaller ROI, which is protective.
A11: Water is released instantaneously from storage and the diameter of pumping well is very small so that storage in the well can be neglected with decline of hydraulic head | B11: Very early-time transient data (the first few seconds after the start of extraction) primarily affects the storage parameter (S), which is not used in subsequent calculations. Vent-pipes are typically 5 to 15 cm (2 to 5 inches) in diameter and the length of pipe between the suction point and fan during diagnostic testing is often less than a few m (10 ft), so the dead volume is usually flushed within seconds at typical flow rates of 5 to 50 L/s (10 to 100 standard cubic feet per minute). In most cases, the steady vacuum distribution is achieved within minutes, and this can easily be confirmed using a pressure transducer with data logging capabilities. It is advisable to use a valve to initiate and cease flow in the transient analysis because a valve can usually be opened and closed faster than the time needed for a fan to achieve steady flow after being powered or to stop after power is cut.
A12: Aquitard is overlain by an infinite constant-head plane source | B12: Indoor air is an infinite source of air much greater than needed to meet the demands of a subslab suction point. Indoor air pressures are not usually affected by subslab gas extraction to any significant degree.
A13: Flow is vertical in the aquitard | B13: Air flow across concrete is usually through discontinuities such as expansion joints, utility penetrations, etc. The model approximates this as vertical flow through a porous medium. The distinction is evident in the variability in the vacuum vs distance data relative to the model of vacuum vs distance (Figure 2.1a and Figure 2.1b on Tab 2)

Sheet Calculations
A1: Calculations based on the Hantush-Jacob Leaky Aquifer Model (1955)
T5: Qw (scfm) | U5: Qw (L/min)
A6: Test ID | M6: Effective Porosity, n = | O6: ='Tab 2 Inputs and Plots'!R36 -> 0.25 | T6: ='Tab 2 Inputs and Plots'!$N$36 -> 15 | U6: =T6*28.3 -> 424.5
A7: ='Tab 2 Inputs and Plots'!M36 -> Upper bound
A8: Radius, r | C8: Transmissivity, T | D8: Thickness, b | E8: Conductivity, K | F8: Leakance, B | G8: r/B | H8: Flow Rate, Qw | K8: Ko(r/B) | L8: K1(r/B) | M8: Vacuum | O8: Velocity | P8: Travel Time | Q8: Cummulative Travel Time | R8: Time for 500 Pore Volumes | S8: Q(r)/Qw | T8: Qr | U8: Qr | V8: Qleak | W8: Delta Q | X8: Delta A | Y8: Qleak/A
A9: (ft) | B9: (m) | C9: (ft2/d) | D9: (ft) | E9: (ft/d) | F9: B (ft) | G9: (dim) | H9: (ft3/min) | I9: (ft3/day) | J9: (L/min) | K9: (dim) | L9: (dim) | M9: (ft-air) | N9: (Pa) | O9: (ft/day) | P9: (min) | Q9: (min) | R9: (days) | S9: (%) | T9: (scfm) | U9: (L/min) | V9: (L/min) | W9: (L/min) | X9: (ft2) | Y9: (L/min per 1000 ft2)
A10: 0.1 | B10: =A10*0.3048 -> 0.03048 | C10: ='Tab 2 Inputs and Plots'!O36 -> 98 | D10: ='Tab 2 Inputs and Plots'!Q36 -> 0.5 | E10: =C10/D10 -> 196 | F10: ='Tab 2 Inputs and Plots'!P36 -> 16 | G10: =(A10/F10) -> 0.00625 | H10: ='Tab 2 Inputs and Plots'!$N$36 -> 15 | I10: =(H10*1440) -> 21600 | J10: =H10*28.3 -> 424.5 | K10: =BESSELK(G10,0) -> 5.191165796 | L10: =BESSELK(G10,1) -> 159.9822152 | M10: =(I10*K10/(2*PI()*C10)) -> 182.1011577 | N10: =(M10*0.015)*249 -> 680.1478239 | O10: =(I10/(2*3.14159*O$6*D10))*(1/F10)*L10 -> 274989.4041
A11: =A10*1.1 -> 0.11 | B11: =A11*0.3048 -> 0.033528 | C11: =$C$10 -> 98 | D11: =$D$10 -> 0.5 | E11: =C11/D11 -> 196 | F11: =$F$10 -> 16 | G11: =(A11/F11) -> 0.006875 | H11: =$H$10 -> 15 | I11: 21600 | J11: =H11*28.3 -> 424.5 | K11: =BESSELK(G11,0) -> 5.095867187 | L11: =BESSELK(G11,1) -> 145.4353098 | M11: =(I11*K11/(2*PI()*C11)) -> 178.7581731 | N11: =(M11*0.015)*249 -> 667.6617766 | O11: =(I11/(2*3.14159*O$6*D11))*(1/F11)*L11 -> 249985.0944 | P11: =(A11-A10)/((O10+O11)/2)*1440 -> 5.485980763e-05 | Q11: =P11 -> 5.485980763e-05 | R11: =Q11*500/1440 -> 1.904854432e-05 | S11: =G11*BESSELK(G11,1)*100 -> 99.98677547 | T11: =H10*S11/100 -> 14.99801632 | U11: =T11*28.3 -> 424.4438619 | V11: =J11-U11 -> 0.05613811386
A12: =A11*1.1 -> 0.121 | B12: 0.0368808 | C12: =$C$10 -> 98 | D12: =$D$10 -> 0.5 | E12: 196 | F12: =$F$10 -> 16 | G12: 0.0075625 | H12: =$H$10 -> 15 | I12: 21600 | J12: 424.5 | K12: 5.000570771 | L12: 132.2106061 | M12: 175.4152655 | N12: 655.1760166 | O12: 227253.484 | P12: =(A12-A11)/((O11+O12)/2)*1440 -> 6.638189248e-05 | Q12: =Q11+(P12) -> 0.0001212417001 | R12: =Q12*500/1440 -> 4.209781254e-05 | S12: =G12*BESSELK(G12,1)*100 -> 99.98427085 | T12: =H11*S12/100 -> 14.99764063 | U12: =T12*28.3 -> 424.4332298 | V12: =J12-U12 -> 0.06677024663 | W12: =V12-V11 -> 0.01063213276 | X12: =(3.14159*A12*A12)-(3.14159*A11*A11) -> 0.00798278019 | Y12: =1000*W12/X12 -> 1331.883443
A13: 0.1331 | B13: 0.04056888 | C13: 98 | D13: 0.5 | E13: 196 | F13: 16 | G13: 0.00831875 | H13: 15 | I13: 21600 | J13: 424.5 | K13: 4.905276959 | L13: 120.1878858 | M13: 172.0724492 | N13: 642.6905979 | O13: 206587.9326 | P13: 8.032428133e-05 | Q13: =Q12+(P13) -> 0.0002015659814 | R13: 6.9988188e-05 | S13: 99.98129748 | T13: 14.99719462 | U13: 424.4206078 | V13: 0.07939220441 | W13: =V13-V12 -> 0.01262195778 | X13: =(3.14159*A13*A13)-(3.14159*A12*A12) -> 0.00965916403 | Y13: =1000*W13/X13 -> 1306.733973
A14: 0.14641 | B14: 0.044625768 | C14: 98 | D14: 0.5 | E14: 196 | F14: 16 | G14: 0.009150625 | H14: 15 | I14: 21600 | J14: 424.5 | K14: 4.809986238 | L14: 109.2578583 | M14: 168.7297414 | N14: 630.2055841 | O14: 187800.5834 | P14: 9.719552788e-05 | Q14: 0.0002987615093 | R14: 0.0001037366352 | S14: 99.97776894 | T14: 14.99666534 | U14: 424.4056292 | V14: 0.09437084546 | W14: 0.01497864105 | X14: 0.01168758848 | Y14: 1281.585254
A15: 0.161051 | B15: 0.0490883448 | C15: 98 | D15: 0.5 | E15: 196 | F15: 16 | G15: 0.0100656875 | H15: 15 | I15: 21600 | J15: 424.5 | K15: 4.714699185 | L15: 99.32116727 | M15: 165.3871622 | N15: 617.7210509 | O15: 170720.6552 | P15: 0.0001176111077 | Q15: 0.000416372617 | R15: 0.0001445738253 | S15: 99.97358319 | T15: 14.99603748 | U15: 424.3878606 | V15: 0.112139361 | W15: 0.01776851555 | X15: 0.01414198206 | Y15: 1256.437427
A16: 0.1771561 | B16: 0.05399717928 | C16: 98 | D16: 0.5 | E16: 196 | F16: 16 | G16: 0.01107225625 | H16: 15 | I16: 21600 | J16: 424.5 | K16: 4.619416481 | L16: 90.28748752 | M16: 162.0447356 | N16: 605.2370875 | O16: 155192.8904 | P16: 0.0001423159259 | Q16: 0.0005586885429 | R16: 0.0001939890774 | S16: 99.9686198 | T16: 14.99529297 | U16: 424.366791 | V16: 0.1332089584 | W16: 0.0210695974 | X16: 0.01711179829 | Y16: 1231.290659
A17: 0.19487171 | B17: 0.05939689721 | C17: 98 | D17: 0.5 | E17: 196 | F17: 16 | G17: 0.01217948188 | H17: 15 | I17: 21600 | J17: 424.5 | K17: 4.524138934 | L17: 82.07470381 | M17: 158.7024899 | N17: 592.7537998 | O17: 141076.1432 | P17: 0.0001722115747 | Q17: 0.0007309001175 | R17: 0.000253784763 | S17: 99.96273674 | T17: 14.99441051 | U17: 424.3418175 | V17: 0.1581825265 | W17: 0.02497356806 | X17: 0.02070527593 | Y17: 1206.145146
A18: 0.214358881 | B18: 0.06533658693 | C18: 98 | D18: 0.5 | E18: 196 | F18: 16 | G18: 0.01339743006 | H18: 15 | I18: 21600 | J18: 424.5 | K18: 4.428867498 | L18: 74.60816453 | M18: 155.3604586 | N18: 580.2713127 | O18: 128242.0967 | P18: 0.0002083893483 | Q18: 0.0009392894658 | R18: 0.0003261421756 | S18: 99.95576664 | T18: 14.993365 | U18: 424.3122294 | V18: 0.1877706009 | W18: 0.02958807441 | X18: 0.02505338387 | Y18: 1181.00112
A19: 0.2357947691 | B19: 0.07187024562 | C19: 98 | D19: 0.5 | E19: 196 | F19: 16 | G19: 0.01473717307 | H19: 15 | I19: 21600 | J19: 424.5 | K19: 4.3336033 | L19: 67.82000313 | M19: 152.0186811 | N19: 567.789774 | O19: 116574.0968 | P19: 0.0002521702378 | Q19: 0.001191459704 | R19: 0.000413701286 | S19: 99.94751237 | T19: 14.99212686 | U19: 424.27719 | V19: 0.2228099934 | W19: 0.0350393925 | X19: 0.03031459449 | Y19: 1155.858856
A20: 0.259374246 | B20: 0.07905727018 | C20: 98 | D20: 0.5 | E20: 196 | F20: 16 | G20: 0.01621089038 | H20: 15 | I20: 21600 | J20: 424.5 | K20: 4.238347671 | L20: 61.64852122 | M20: 148.6772043 | N20: 555.309358 | O20: 105966.0919 | P20: 0.0003051533922 | Q20: 0.001496613096 | R20: 0.0005196573249 | S20: 99.93774193 | T20: 14.99066129 | U20: 424.2357145 | V20: 0.2642855 | W20: 0.04147550664 | X20: 0.03668065933 | Y20: 1130.718678
A21: 0.2853116706 | B21: 0.0869629972 | C21: 98 | D21: 0.5 | E21: 196 | F21: 16 | G21: 0.01783197941 | H21: 15 | I21: 21600 | J21: 424.5 | K21: 4.143102184 | L21: 56.0376278 | M21: 145.3360832 | N21: 542.8302708 | O21: 96321.66837 | P21: 0.0003692748526 | Q21: 0.001865887948 | R21: 0.0006478777599 | S21: 99.92618253 | T21: 14.98892738 | U21: 424.1866448 | V21: 0.3133551611 | W21: 0.04906966114 | X21: 0.04438359779 | Y21: 1105.580971
A22: 0.3138428377 | B22: 0.09565929692 | C22: 98 | D22: 0.5 | E22: 196 | F22: 16 | G22: 0.01961517735 | H22: 15 | I22: 21600 | J22: 424.5 | K22: 4.047868692 | L22: 50.93632947 | M22: 141.9953829 | N22: 530.3527552 | O22: 87553.17503 | P22: 0.0004468787552 | Q22: 0.002312766704 | R22: 0.0008030439943 | S22: 99.91251364 | T22: 14.98687705 | U22: 424.1286204 | V22: 0.3713796087 | W22: 0.0580244476 | X22: 0.05370415332 | Y22: 1080.446186
A23: 0.3452271214 | B23: 0.1052252266 | C23: 98 | D23: 0.5 | E23: 196 | F23: 16 | G23: 0.02157669509 | H23: 15 | I23: 21600 | J23: 424.5 | K23: 3.952649381 | L23: 46.29826698 | M23: 138.65518 | N23: 517.8770975 | O23: 79580.92612 | P23: 0.0005408036817 | Q23: 0.002853570385 | R23: 0.0009908230505 | S23: 99.89635899 | T23: 14.98445385 | U23: 424.0600439 | V23: 0.4399561056 | W23: 0.06857649686 | X23: 0.06498202552 | Y23: 1055.314855
A24: 0.3797498336 | B24: 0.1157477493 | C24: 98 | D24: 0.5 | E24: =C24/D24 -> 196 | F24: 16 | G24: =(A24/F24) -> 0.0237343646 | H24: 15 | I24: =(H24*1440) -> 21600 | J24: 424.5 | K24: 3.857446823 | L24: 42.08129392 | M24: 135.3155649 | N24: 505.4036348 | O24: 72332.47724 | P24: 0.000654487417 | Q24: 0.003508057802 | R24: 0.001218075626 | S24: 99.87727728 | T24: 14.98159159 | U24: 423.979042 | V24: 0.5209579554 | W24: 0.08100184975 | X24: 0.07862825088 | Y24: 1030.187609
A25: 0.4177248169 | B25: 0.1273225242 | C25: 98 | D25: 0.5 | E25: 196 | F25: 16 | G25: 0.02610780106 | H25: 15 | I25: 21600 | J25: 424.5 | K25: 3.762264049 | L25: 38.24709375 | M25: 131.9766437 | N25: 492.9327643 | O25: 65741.96704 | P25: 0.0007920940956 | Q25: 0.004300151898 | R25: 0.001493108298 | S25: 99.85475146 | T25: 14.97821272 | U25: 423.88342 | V25: 0.6165800416 | W25: 0.09562208621 | X25: 0.09514018357 | Y25: 1005.065185
A26: 0.4594972986 | B26: 0.1400547766 | C26: 98 | D26: 0.5 | E26: 196 | F26: 16 | G26: 0.02871858116 | H26: 15 | I26: 21600 | J26: 424.5 | K26: 3.667104622 | L26: 34.7608316 | M26: 128.6385415 | N26: 480.4649527 | O26: 59749.51876 | P26: 0.0009586686022 | Q26: 0.0052588205 | R26: 0.00182597934 | S26: 99.82817636 | T26: 14.97422645 | U26: 423.7706087 | V26: 0.7293913374 | W26: 0.1128112959 | X26: 0.1151196221 | Y26: 979.9484553
A27: 0.5054470285 | B27: 0.1540602543 | C27: 98 | D27: 0.5 | E27: 196 | F27: 16 | G27: 0.03159043928 | H27: 15 | I27: 21600 | J27: 424.5 | K27: 3.57197273 | L27: 31.59083784 | M27: 125.3014053 | N27: 468.0007487 | O27: 54300.69624 | P27: 0.001160324178 | Q27: 0.006419144679 | R27: 0.00222886968 | S27: 99.79684445 | T27: 14.96952667 | U27: 423.6376047 | V27: 0.8623953127 | W27: 0.1330039752 | X27: 0.1392947428 | Y27: 954.8384424
A28: 0.5559917313 | B28: 0.1694662797 | C28: 98 | D28: 0.5 | E28: 196 | F28: 16 | G28: 0.03474948321 | H28: 15 | I28: 21600 | J28: 424.5 | K28: 3.47687329 | L28: 28.70832032 | M28: 121.9654074 | N28: 455.5407966 | O28: 49346.00942 | P28: 0.001404470535 | Q28: 0.007823615214 | R28: 0.00271653306 | S28: 99.75992951 | T28: 14.96398943 | U28: 423.4809008 | V28: 1.019099249 | W28: 0.1567039364 | X28: 0.1685466387 | Y28: 929.7363484
A29: 0.6115909045 | B29: =A29*0.3048 -> 0.1864129077 | C29: 98 | D29: 0.5 | E29: 196 | F29: 16 | G29: 0.03822443153 | H29: 15 | I29: 21600 | J29: 424.5 | K29: =BESSELK(G29,0) -> 3.381812071 | L29: 26.08710292 | M29: 118.6307503 | N29: =(M29*0.015)*249 -> 443.0858523 | O29: 44840.46479 | P29: 0.001700091441 | Q29: =Q28+(P29) -> 0.009523706655 | R29: 0.003306842588 | S29: 99.71646795 | T29: 14.95747019 | U29: 423.2964064 | V29: 1.203593558 | W29: 0.1844943088 | X29: 0.2039414329 | Y29: 904.6435842
A30: 0.6727499949 | B30: 0.2050541985 | C30: 98 | D30: 0.5 | E30: 196 | F30: 16 | G30: 0.04204687468 | H30: 15 | I30: 21600 | J30: 424.5 | K30: =BESSELK(G30,0) -> 3.286795834 | L30: 23.70338777 | M30: 115.2976711 | N30: =(M30*0.015)*249 -> 430.6368015 | O30: 40743.1568 | P30: 0.002058082811 | Q30: =Q29+(P30) -> 0.01158178947 | R30: 0.004021454676 | S30: 99.66533751 | T30: 14.94980063 | U30: 423.0793577 | V30: 1.420642262 | W30: 0.2170487044 | X30: 0.2467691338 | Y30: 879.5618039
A31: 0.7400249944 | B31: 0.2255596183 | C31: 98 | D31: 0.5 | E31: 196 | F31: 16 | G31: 0.04625156215 | H31: 15 | I31: 21600 | J31: 424.5 | K31: =BESSELK(G31,0) -> 3.191832495 | L31: 21.53553921 | M31: 111.9664475 | N31: =(M31*0.015)*249 -> 418.1946813 | O31: 37016.89645 | P31: 0.002491664942 | Q31: =Q30+(P31) -> 0.01407345441 | R31: 0.004886616114 | S31: 99.60523301 | T31: 14.94078495 | U31: 422.8242141 | V31: 1.675785868 | W31: 0.2551436055 | X31: 0.2985906519 | Y31: 854.4929451
A32: 0.8140274939 | B32: 0.2481155801 | C32: 98 | D32: 0.5 | E32: 196 | F32: 16 | G32: 0.05087671837 | H32: 15 | I32: 21600 | J32: 424.5 | K32: =BESSELK(G32,0) -> 3.096931311 | L32: 19.56388739 | M32: 108.6374042 | N32: =(M32*0.015)*249 -> 405.7607047 | O32: 33627.87376 | P32: 0.003016885719 | Q32: =Q31+(P32) -> 0.01709034013 | R32: 0.005934145877 | S32: 99.5346389 | T32: 14.93019583 | U32: 422.5245421 | V32: 1.975457873 | W32: 0.2996720048 | X32: 0.3612946888 | Y32: 829.4392752
A33: 0.8954302433 | B33: 0.2729271381 | C33: 98 | D33: 0.5 | E33: =C33/D33 -> 196 | F33: 16 | G33: =(A33/F33) -> 0.0559643902 | H33: 15 | I33: =(H33*1440) -> 21600 | J33: 424.5 | K33: =BESSELK(G33,0) -> 3.002103096 | L33: 17.7705498 | M33: 105.3109206 | N33: =(M33*0.015)*249 -> 393.3362886 | O33: 30545.35089 | P33: 0.003653235746 | Q33: =Q32+(P33) -> 0.02074357587 | R33: 0.007202630511 | S33: 99.45179831 | T33: 14.91776975 | U33: 422.1728838 | V33: 2.32711617 | W33: 0.3516582974 | X33: 0.4371665734 | Y33: 804.4034443
A34: 0.9849732676 | B34: 0.300219852 | C34: 98 | D34: 0.5 | E34: 196 | F34: 16 | G34: 0.06156082922 | H34: 15 | I34: 21600 | J34: 424.5 | K34: 2.907360468 | L34: 16.13926901 | M34: 101.9874394 | N34: 380.9230861 | O34: 27741.38339 | P34: 0.004424401422 | Q34: 0.02516797729 | R34: 0.008738881005 | S34: 99.35467832 | T34: 14.90320175 | U34: 421.7606095 | V34: 2.73939054 | W34: 0.4122743703 | X34: 0.5289715538 | Y34: 779.3885461
A35: 1.083470594 | B35: 0.3302418372 | C35: 98 | D35: 0.5 | E35: 196 | F35: 16 | G35: 0.06771691215 | H35: 15 | I35: 21600 | J35: 424.5 | K35: 2.812718128 | L35: 14.65526528 | M35: 98.66747616 | N35: 368.5230234 | O35: 25190.56672 | P35: 0.005359188552 | Q35: 0.03052716585 | R35: 0.01059971036 | S35: 99.24093114 | T35: 14.88613967 | U35: 421.2777527 | V35: 3.22224731 | W35: 0.4828567697 | X35: 0.6400555801 | Y35: 754.3981877
A36: 1.191817654 | B36: 0.3632660209 | C36: 98 | D36: 0.5 | E36: 196 | F36: 16 | G36: 0.07448860336 | H36: 15 | I36: 21600 | J36: 424.5 | K36: 2.718193185 | L36: 13.30510261 | M36: 95.35163105 | N36: 356.138342 | O36: 22869.80609 | P36: 0.006492657317 | Q36: 0.03701982316 | R36: 0.01285410527 | S36: 99.10785111 | T36: 14.86617767 | U36: 420.712828 | V36: 3.787172045 | W36: 0.564924735 | X36: 0.7744672519 | Y36: 729.436569
A37: 1.310999419 | B37: 0.399592623 | C37: 98 | D37: 0.5 | E37: 196 | F37: 16 | G37: 0.0819374637 | H37: 15 | I37: 21600 | J37: 424.5 | K37: 2.623805511 | L37: 12.07656703 | M37: 92.04060125 | N37: 343.7716457 | O37: 20758.10719 | P37: 0.007867520093 | Q37: 0.04488734326 | R37: 0.01558588308 | S37: 98.95232725 | T37: 14.84284909 | U37: 420.0526292 | V37: 4.447370815 | W37: 0.6601987703 | X37: 0.9371053749 | Y37: 704.5085729
A38: 1.442099361 | B38: 0.4395518853 | C38: 98 | D38: 0.5 | E38: 196 | F38: 16 | G38: 0.09013121007 | H38: 15 | I38: 21600 | J38: 424.5 | K38: 2.52957816 | L38: 10.95855602 | M38: 88.73519543 | N38: 331.4259549 | O38: 18836.3862 | P38: 0.009535867248 | Q38: 0.05442321051 | R38: 0.01889694809 | S38: 98.7707915 | T38: 14.81561872 | U38: 419.2820099 | V38: 5.217990087 | W38: 0.7706192715 | X38: 1.133897504 | Y38: 679.6198678
A39: 1.586309297 | B39: 0.4835070738 | C39: 98 | D39: 0.5 | E39: 196 | F39: 16 | G39: 0.09914433107 | H39: 15 | I39: 21600 | J39: 424.5 | K39: 2.435537826 | L39: 9.940978124 | M39: 85.43634998 | N39: 319.1047672 | O39: 17087.29716 | P39: 0.01156130377 | Q39: 0.06598451428 | R39: 0.02291128968 | S39: 98.55916263 | T39: 14.78387439 | U39: 418.3836454 | V39: 6.116354625 | W39: 0.8983645379 | X39: 1.372015979 | Y39: 654.7770226
A40: 1.744940227 | B40: 0.5318577812 | C40: 98 | D40: 0.5 | E40: 196 | F40: 16 | G40: 0.1090587642 | H40: 15 | I40: 21600 | J40: 424.5 | K40: 2.341715361 | L40: 9.014661692 | M40: 82.14514715 | N40: 306.8121246 | O40: 15495.07515 | P40: 0.01402160264 | Q40: 0.08000611692 | R40: 0.02777990171 | S40: 98.31278637 | T40: 14.74691795 | U40: 417.3377781 | V40: 7.16222188 | W40: 1.045867255 | X40: 1.660139335 | Y40: 629.9876361
A41: 1.91943425 | B41: 0.5850435593 | C41: 98 | D41: 0.5 | E41: 196 | F41: 16 | G41: 0.1199646406 | H41: 15 | I41: 21600 | J41: 424.5 | K41: 2.24814635 | L41: 8.171272108 | M41: 78.86283527 | N41: 294.5526897 | O41: 14045.39402 | P41: 0.01701201097 | Q41: 0.09701812789 | R41: 0.03368684996 | S41: 98.02637217 | T41: 14.70395583 | U41: 416.1219499 | V41: 8.378050127 | W41: 1.215828248 | X41: 2.008768595 | Y41: 605.2604817
A42: 2.111377675 | B42: 0.6435479152 | C42: 98 | D42: 0.5 | E42: 196 | F42: 16 | G42: 0.1319611047 | H42: 15 | I42: 21600 | J42: 424.5 | K42: 2.154871752 | L42: 7.403236594 | M42: 75.59085108 | N42: 282.3318288 | O42: 12725.2371 | P42: 0.02064938483 | Q42: 0.1176675127 | R42: 0.04085677525 | S42: 97.6939279 | T42: 14.65408918 | U42: 414.7107239 | V42: 9.789276069 | W42: 1.411225942 | X42: 2.43061 | Y42: 580.6056675
A43: 2.322515442 | B43: 0.7079027067 | C43: 98 | D43: 0.5 | E43: 196 | F43: 16 | G43: 0.1451572151 | H43: 15 | I43: 21600 | J43: 424.5 | K43: 2.061938594 | L43: 6.703675978 | M43: 72.33084432 | N43: 270.1557035 | O43: 11522.77996 | P43: 0.02507738134 | Q43: 0.1427448941 | R43: 0.04956419932 | S43: 97.30869361 | T43: 14.59630404 | U43: 413.0754044 | V43: 11.42459564 | W43: 1.635319571 | X43: 2.9410381 | Y43: 556.0348132
A44: 2.554766986 | B44: =A44*0.3048 -> 0.7786929774 | C44: 98 | D44: 0.5 | E44: =C44/D44 -> 196 | F44: 16 | G44: =(A44/F44) -> 0.1596729366 | H44: 15 | I44: =(H44*1440) -> 21600 | J44: 424.5 | K44: =BESSELK(G44,0) -> 1.969400742 | L44: 6.066342786 | M44: =(I44*K44/(2*PI()*C44)) -> 69.08470449 | N44: =(M44*0.015)*249 -> 258.0313713 | O44: 10427.28397 | P44: 0.0304730068 | Q44: =Q43+(P44) -> 0.1732179009 | R44: 0.06014510446 | S44: 96.86307672 | T44: 14.52946151 | U44: =T44*28.3 -> 411.1837607 | V44: 13.3162393 | W44: =V44-V43 -> 1.891643663 | X44: =(3.14159*A44*A44)-(3.14159*A43*A43) -> 3.558656102 | Y44: =1000*W44/X44 -> 531.5612435
A45: 2.810243685 | B45: 0.8565622751 | C45: 98 | D45: 0.5 | E45: 196 | F45: 16 | G45: 0.1756402303 | H45: 15 | I45: 21600 | J45: 424.5 | K45: 1.877319716 | L45: 5.485565072 | M45: 65.85458969 | N45: 245.9668925 | O45: 9428.999771 | P45: 0.03705491429 | Q45: 0.2102728151 | R45: 0.07301139415 | S45: 96.34859126 | T45: 14.45228869 | U45: 408.9997699 | V45: 15.50023011 | W45: 2.183990804 | X45: 4.305973883 | Y45: 507.2001975
A46: 3.091268053 | B46: 0.9422185026 | C46: 98 | D46: 0.5 | E46: 196 | F46: 16 | G46: 0.1932042533 | H46: 15 | I46: 21600 | J46: 424.5 | K46: 1.785765573 | L46: 4.956195478 | M46: 62.64295747 | N46: 233.9714461 | O46: 8519.079696 | P46: 0.04509397135 | Q46: 0.2553667865 | R46: 0.08866902309 | S46: 95.75580467 | T46: 14.3633707 | U46: 406.4833908 | V46: 18.01660918 | W46: 2.516379079 | X46: 5.210228398 | Y46: 482.9690536
A47: 3.400394859 | B47: 1.036440353 | C47: 98 | D47: 0.5 | E47: 196 | F47: 16 | G47: 0.2125246787 | H47: 15 | I47: 21600 | J47: 424.5 | K47: 1.694817829 | L47: 4.473565029 | M47: 59.45259712 | N47: 222.0554502 | O47: 7689.498361 | P47: 0.05492679223 | Q47: 0.3102935787 | R47: 0.1077408259 | S47: 95.07429703 | T47: 14.26114455 | U47: 403.5903909 | V47: 20.90960912 | W47: 2.892999934 | X47: 6.304376362 | Y47: 458.8875677
A48: 3.740434344 | B48: 1.140084388 | C48: 98 | D48: 0.5 | E48: 196 | F48: 16 | G48: 0.2337771465 | H48: 15 | I48: 21600 | J48: 424.5 | K48: 1.604566409 | L48: 4.033441234 | M48: 56.28666319 | N48: 210.230687 | O48: 6932.980644 | P48: 0.06697316638 | Q48: 0.3772667451 | R48: 0.1309953976 | S48: 94.29263823 | T48: 14.14389573 | U48: 400.2722493 | V48: 24.22775072 | W48: 3.318141598 | X48: 7.628295398 | Y48: 434.9781209
A49: 4.114477779 | B49: 1.254092827 | C49: 98 | D49: 0.5 | E49: 196 | F49: 16 | G49: 0.2571548612 | H49: 15 | I49: 21600 | J49: 424.5 | K49: 1.515112617 | L49: 3.631990072 | M49: 53.14870926 | N49: 198.5104291 | O49: 6242.936343 | P49: 0.08175864285 | Q49: 0.459025388 | R49: 0.1593838153 | S49: 93.39839027 | T49: 14.00975854 | U49: 396.4761667 | V49: 28.0238333 | W49: 3.796082585 | X49: 9.230237431 | Y49: 411.2659737
A50: 4.525925557 | B50: 1.37950211 | C50: 98 | D50: 0.5 | E50: 196 | F50: 16 | G50: 0.2828703473 | H50: 15 | I50: 21600 | J50: 424.5 | K50: 1.426570077 | L50: 3.265741494 | M50: 50.04272119 | N50: 186.9095637 | O50: 5613.400879 | P50: 0.09994398591 | Q50: 0.5589693739 | R50: 0.1940865881 | S50: 92.37814306 | T50: 13.85672146 | U50: 392.1452173 | V50: 32.3547827 | W50: 4.330949398 | X50: 11.16858729 | Y50: 387.7795181
A51: 4.978518112 | B51: 1.517452321 | C51: 98 | D51: 0.5 | E51: 196 | F51: 16 | G51: 0.311157382 | H51: 15 | I51: 21600 | J51: 424.5 | K51: 1.339065629 | L51: 2.931558076 | M51: 46.9731484 | N51: 175.4447093 | O51: 5038.981412 | P51: 0.1223638548 | Q51: 0.6813332287 | R51: 0.2365740377 | S51: 91.21759363 | T51: 13.68263904 | U51: 387.218685 | V51: 37.28131503 | W51: 4.926532329 | X51: 13.51399062 | Y51: 364.5505215
A52: 5.476369924 | B52: 1.669197553 | C52: 98 | D52: 0.5 | E52: 196 | F52: 16 | G52: 0.3422731202 | H52: 15 | I52: 21600 | J52: 424.5 | K52: 1.25274012 | L52: 2.626606492 | M52: 43.94493166 | N52: 164.1343197 | O52: 4514.807807 | P52: 0.1500779621 | Q52: 0.8314111908 | R52: 0.2886844413 | S52: 89.90167998 | T52: 13.485252 | U52: 381.6326315 | V52: 42.8673685 | W52: 5.586053469 | X52: 16.35192865 | Y52: 341.6143494
A53: 6.024006916 | B53: 1.836117308 | C53: 98 | D53: 0.5 | E53: 196 | F53: 16 | G53: 0.3765004323 | H53: 15 | I53: 21600 | J53: 424.5 | K53: 1.167749037 | L53: 2.348331488 | M53: 40.9635253 | N53: 152.998767 | O53: 4036.487903 | P53: 0.1844392466 | Q53: 1.015850437 | R53: 0.3527258463 | S53: 88.41478201 | T53: 13.2622173 | U53: 375.3207496 | V53: 49.17925035 | W53: 6.311881856 | X53: 19.78583367 | Y53: 319.0101545
A54: 6.626407608 | B54: 2.019729039 | C54: 98 | D54: 0.5 | E54: 196 | F54: 16 | G54: 0.4141504755 | H54: 15 | I54: 21600 | J54: 424.5 | K54: 1.084262912 | L54: 2.094432049 | M54: 38.03491147 | N54: 142.0603943 | O54: 3600.066548 | P54: 0.2271854412 | Q54: 1.243035879 | R54: 0.4316096801 | S54: 86.7410029 | T54: 13.01115044 | U54: 368.2155573 | V54: 56.28444269 | W54: 7.105192336 | X54: 23.94085874 | Y54: 296.7810141
A55: 7.289048369 | B55: 2.221701943 | C55: 98 | D55: 0.5 | E55: 196 | F55: 16 | G55: 0.455565523 | H55: 15 | I55: 21600 | J55: 424.5 | K55: 1.002467417 | L55: 1.862839478 | M55: 35.16560332 | N55: 131.3435284 | O55: 3201.987905 | P55: 0.2805630864 | Q55: 1.523598965 | R55: 0.5290274184 | S55: 84.86454413 | T55: 12.72968162 | U55: 360.2499898 | V55: 64.25001016 | W55: 7.965567475 | X55: 28.96843908 | Y55: 274.9739968
A56: 8.017953205 | B56: 2.443872137 | C56: 98 | D56: 0.5 | E56: 196 | F56: 16 | G56: 0.5011220753 | H56: 15 | I56: 21600 | J56: 424.5 | K56: 0.9225630468 | L56: 1.651697083 | M56: 32.36263403 | N56: 120.8744381 | O56: 2839.060554 | P56: 0.3474969526 | Q56: 1.871095918 | R56: 0.6496860825 | S56: 82.77018698 | T56: 12.41552805 | U56: 351.3594437 | V56: 73.14055626 | W56: 8.8905461 | X56: 35.05181129 | Y56: 253.6401337
A57: 8.819748526 | B57: 2.688259351 | C57: 98 | D57: 0.5 | E57: 196 | F57: 16 | G57: 0.5512342829 | H57: 15 | I57: 21600 | J57: 424.5 | K57: 0.8447642926 | L57: 1.459341212 | M57: 29.63352774 | N57: 110.6812261 | O57: 2508.424888 | P57: 0.4318236203 | Q57: 2.302919538 | R57: 0.7996248395 | S57: 80.44389063 | T57: 12.06658359 | U57: 341.4843157 | V57: 83.01568426 | W57: 9.875127999 | X57: 42.41269165 | Y57: 232.8342676
A58: 9.701723378 | B58: 2.957085286 | C58: 98 | D58: 0.5 | E58: 196 | F58: 16 | G58: 0.6063577112 | H58: 15 | I58: 21600 | J58: 424.5 | K58: 0.7692981851 | L58: 1.284283381 | M58: 26.98624849 | N58: 100.7936381 | O58: 2207.522388 | P58: 0.5386166186 | Q58: 2.841536156 | R58: 0.9866444988 | S58: 77.87351317 | T58: 11.68102697 | U58: 330.5730634 | V58: 93.92693661 | W58: 10.91125235 | X58: 51.3193569 | Y58: 212.6147522
A59: 10.67189572 | B59: 3.252793814 | C59: 98 | D59: 0.5 | E59: 196 | F59: 16 | G59: 0.6669934823 | H59: 15 | I59: 21600 | J59: 424.5 | K59: 0.6964020925 | L59: 1.12519323 | M59: 24.4291229 | N59: 91.24277404 | O59: 1934.06633 | P59: 0.6746436024 | Q59: 3.516179759 | R59: 1.22089575 | S59: 75.04965508 | T59: 11.25744826 | U59: 318.5857858 | V59: 105.9142142 | W59: 11.98727758 | X59: 62.09642185 | Y59: 193.042968
A60: 11.73908529 | B60: 3.578073196 | C60: 98 | D60: 0.5 | E60: 196 | F60: 16 | G60: 0.7336928305 | H60: 15 | I60: 21600 | J60: 424.5 | K60: 0.6263206587 | L60: 0.9808820885 | M60: 21.97073288 | N60: 82.06068729 | O60: 1686.01354 | P60: 0.8490160649 | Q60: 4.365195824 | R60: 1.515692994 | S60: 71.96661559 | T60: 10.79499234 | U60: 305.4982832 | V60: 119.0017168 | W60: 13.08750265 | X60: 75.13667044 | Y60: 174.1826271
A61: 12.91299382 | B61: 3.935880515 | C61: 98 | D61: 0.5 | E61: 196 | F61: 16 | G61: 0.8070621135 | H61: 15 | I61: 21600 | J61: 424.5 | K61: 0.5593017856 | L61: 0.8502869614 | M61: 19.61977457 | N61: 73.279858 | O61: 1461.536862 | P61: 1.07412309 | Q61: 5.439318913 | R61: 1.8886524 | S61: 68.62343922 | T61: 10.29351588 | U61: 291.3064995 | V61: 133.1935005 | W61: 14.19178367 | X61: 90.91537123 | Y61: 156.0988365
A62: 14.2042932 | B62: 4.329468567 | C62: 98 | D62: 0.5 | E62: 196 | F62: 16 | G62: 0.8877683249 | H62: 15 | I62: 21600 | J62: 424.5 | K62: 0.4955915887 | L62: 0.7324547676 | M62: 17.38488147 | N62: 64.93253227 | O62: 1258.99807 | P62: 1.366989328 | Q62: 6.806308242 | R62: 2.363301473 | S62: 65.02501421 | T62: 9.753752132 | U62: 276.0311853 | V62: 148.4688147 | W62: 15.27531415 | X62: 110.0075992 | Y62: 138.8568996
A63: 15.62472252 | B63: 4.762415424 | C63: 98 | D63: 0.5 | E63: 196 | F63: 16 | G63: 0.9765451574 | H63: 15 | I63: 21600 | J63: 424.5 | K63: 0.4354283033 | L63: 0.6265267344 | M63: 15.27441065 | N63: 57.04992377 | O63: 1076.921039 | P63: 1.751274874 | Q63: 8.557583115 | R63: 2.971383026 | S63: 61.18316484 | T63: 9.177474727 | U63: 259.7225348 | V63: 164.7774652 | W63: 16.30865057 | X63: 133.109195 | Y63: 122.5208414
A64: 17.18719477 | B64: 5.238656966 | C64: 98 | D64: 0.5 | E64: 196 | F64: 16 | G64: 1.074199673 | H64: 15 | I64: 21600 | J64: 424.5 | K64: 0.3790351836 | L64: 0.531722918 | M64: 13.29619366 | N64: 49.66128332 | O64: 913.9651442 | P64: 2.26025984 | Q64: 10.81784296 | R64: 3.756195471 | S64: 57.11765848 | T64: 8.567648771 | U64: 242.4644602 | V64: 182.0355398 | W64: 17.25807453 | X64: 161.062126 | Y64: 107.1516623
A65: 18.90591425 | B65: 5.762522663 | C65: 98 | D65: 0.5 | E65: 196 | F65: 16 | G65: 1.18161964 | H65: 15 | I65: 21600 | J65: 424.5 | K65: 0.3266125221 | L65: 0.4473269082 | M65: 11.45725656 | N65: 42.79285326 | O65: 768.8989666 | P65: 2.941361731 | Q65: 13.75920469 | R65: 4.777501627 | S65: 52.85702605 | T65: 7.928553907 | U65: 224.3780756 | V65: 200.1219244 | W65: 18.08638466 | X65: 194.8851724 | Y65: 92.80533985
A66: 20.79650567 | B66: 6.338774929 | C66: 98 | D66: 0.5 | E66: 196 | F66: 16 | G66: 1.299781604 | H66: 15 | I66: 21600 | J66: 424.5 | K66: 0.2783290229 | L66: 0.3726708775 | M66: 9.763517342 | N66: 36.46673727 | O66: 640.5745939 | P66: 3.863075871 | Q66: 17.62228056 | R66: 6.118847416 | S66: 48.43907511 | T66: 7.265861267 | U66: 205.6238739 | V66: 218.8761261 | W66: 18.75420172 | X66: 235.8110586 | Y66: 79.53062857
A67: 22.87615624 | B67: 6.972652422 | C67: 98 | D67: 0.5 | E67: 196 | F67: 16 | G67: 1.429759765 | H67: 15 | I67: 21600 | J67: 424.5 | K67: 0.2343128865 | L67: 0.3071212544 | M67: 8.219473152 | N67: 30.69973222 | O67: 527.9029962 | P67: 5.125809587 | Q67: 22.74809014 | R67: 7.898642411 | S67: 43.91096126 | T67: 6.586644188 | U67: 186.4020305 | V67: 238.0979695 | W67: 19.22184332 | X67: 285.331381 | Y67: 67.36673428
A68: 25.16377186 | B68: 7.669917664 | C68: 98 | D68: 0.5 | E68: 196 | F68: 16 | G68: 1.572735741 | H68: 15 | I68: 21600 | J68: 424.5 | K68: 0.1946430901 | L68: 0.2500654163 | M68: 6.827894435 | N68: 25.50218571 | O68: 429.8311517 | P68: 6.879083314 | Q68: 29.62717346 | R68: 10.28721301 | S68: 39.32868179 | T68: 5.899302268 | U68: 166.9502542 | V68: 257.5497458 | W68: 19.45177634 | X68: 345.250971 | Y68: 56.34097504
A69: 27.68014905 | B69: 8.43690943 | C69: 98 | D69: 0.5 | E69: 196 | F69: 16 | G69: 1.730009316 | H69: 15 | I69: 21600 | J69: 424.5 | K69: 0.1593414721 | L69: 0.2008999066 | M69: 5.589547257 | N69: 20.87695901 | O69: 345.3217942 | P69: 9.349337231 | Q69: 38.97651069 | R69: 13.53351066 | S69: 34.75587098 | T69: 5.213380648 | U69: 147.5386723 | V69: 276.9613277 | W69: 19.41158187 | X69: 417.7536749 | Y69: 46.46657357
A70: 30.44816395 | B70: 9.280600373 | C70: 98 | D70: 0.5 | E70: 196 | F70: 16 | G70: 1.903010247 | H70: 15 | I70: 21600 | J70: 424.5 | K70: 0.1283663333 | L70: 0.1590207634 | M70: 4.502968855 | N70: 16.81858867 | O70: 273.3367888 | P70: 12.88575499 | Q70: 51.86226568 | R70: 18.00773114 | S70: 30.26181423 | T70: 4.539272134 | U70: 128.4614014 | V70: 296.0385986 | W70: 19.07727093 | X70: 505.4819466 | Y70: 37.74075623
A71: 33.49298035 | B71: 10.20866041 | C71: 98 | D71: 0.5 | E71: 196 | F71: 16 | G71: 2.093311272 | H71: 15 | I71: 21600 | J71: 424.5 | K71: 0.1016083243 | L71: 0.1238165799 | M71: 3.564323353 | N71: 13.31274772 | O71: 212.8252037 | P71: 18.03734425 | Q71: 69.89960993 | R71: 24.27069789 | S71: 25.91866424 | T71: 3.887799636 | U71: 110.0247297 | V71: 314.4752703 | W71: 18.43667171 | X71: 611.6331554 | Y71: 30.14334907
A72: 36.84227838 | B72: 11.22952645 | C72: 98 | D72: 0.5 | E72: 196 | F72: 16 | G72: 2.302642399 | H72: 15 | I72: 21600 | J72: 424.5 | K72: 0.07888936959 | L72: 0.09466478168 | M72: 2.767364036 | N72: 10.33610468 | O72: 162.7169112 | P72: 25.68547697 | Q72: 95.5850869 | R72: 33.18926628 | S72: 21.797914 | T72: 3.2696871 | U72: 92.53214493 | V72: 331.9678551 | W72: 17.49258476 | X72: 740.076118 | Y72: 23.63619679
A73: 40.52650622 | B73: 12.3524791 | C73: 98 | D73: 0.5 | E73: 196 | F73: 16 | G73: 2.532906639 | H73: 15 | I73: 21600 | J73: 424.5 | K73: 0.05996509613 | L73: 0.07093182536 | M73: 2.103518526 | N73: 7.856641696 | O73: 121.9229298 | P73: 37.27719963 | Q73: 132.8622865 | R73: 46.13273838 | S73: 17.96636914 | T73: 2.69495537 | U73: 76.26723698 | V73: 348.232763 | W73: 16.26490795 | X73: 895.4921028 | Y73: 18.16309479
A74: 44.57915685 | B74: 13.58772701 | C74: 98 | D74: 0.5 | E74: 196 | F74: 16 | G74: 2.786197303 | H74: 15 | I74: 21600 | J74: 424.5 | K74: 0.0445314237 | L74: 0.05197713138 | M74: 1.56211998 | N74: 5.834518125 | O74: 89.34218325 | P74: 55.2463851 | Q74: 188.1086716 | R74: 65.31551098 | S74: 14.48185433 | T74: 2.172278149 | U74: 61.47547162 | V74: 363.0245284 | W74: 14.79176536 | X74: 1083.545444 | Y74: 13.65126441
A75: 49.03707253 | B75: 14.94649971 | C75: 98 | D75: 0.5 | E75: 196 | F75: 16 | G75: 3.064817033 | H75: 15 | I75: 21600 | J75: =H75*28.3 -> 424.5 | K75: 0.03223508215 | L75: =BESSELK(G75,1) -> 0.03716090202 | M75: 1.130776016 | N75: 4.223448419 | O75: =(I75/(2*3.14159*O$6*D75))*(1/F75)*L75 -> 63.87493941 | P75: 83.79479362 | Q75: 271.9034652 | R75: 94.41092543 | S75: 11.38913655 | T75: 1.708370482 | U75: 48.34688464 | V75: 376.1531154 | W75: 13.12858698 | X75: 1311.089988 | Y75: 10.01349038
A76: =A75*1.1 -> 53.94077978 | B76: 16.44114968 | C76: =$C$10 -> 98 | D76: =$D$10 -> 0.5 | E76: 196 | F76: =$F$10 -> 16 | G76: 3.371298736 | H76: =$H$10 -> 15 | I76: 21600 | J76: 424.5 | K76: 0.02268773583 | L76: 0.02585515936 | M76: 0.7958641895 | N76: 2.972552748 | O76: 44.44178284 | P76: =(A76-A75)/((O75+O76)/2)*1440 -> 130.3831633 | Q76: 402.2866286 | R76: =Q76*500/1440 -> 139.6828571 | S76: =G76*BESSELK(G76,1)*100 -> 8.716546608 | T76: =H75*S76/100 -> 1.307481991 | U76: 37.00174035 | V76: =J76-U76 -> 387.4982596 | W76: 11.34514429 | X76: 1586.418885 | Y76: 7.151417822
A77: 59.33485776 | B77: 18.08526465 | C77: 98 | D77: 0.5 | E77: 196 | F77: 16 | G77: 3.70842861 | H77: 15 | I77: 21600 | J77: 424.5 | K77: 0.015482802 | L77: 0.01745699845 | M77: 0.5431219651 | N77: 2.02856054 | O77: 30.00639538 | P77: 208.6678942 | Q77: 610.9545228 | R77: 212.1369871 | S77: 6.473803251 | T77: 0.9710704877 | U77: 27.4812948 | V77: 397.0187052 | W77: 9.520445552 | X77: 1919.566851 | Y77: 4.959684289
A78: 65.26834354 | B78: 19.89379111 | C78: 98 | D78: 0.5 | E78: 196 | F78: 16 | G78: 4.079271471 | H78: 15 | I78: 21600 | J78: 424.5 | K78: 0.01021359576 | L78: 0.01140267779 | M78: 0.3582832229 | N78: 1.338187837 | O78: 19.59977593 | P78: 344.4821195 | Q78: 955.4366424 | R78: 331.7488342 | S78: 4.651461821 | T78: 0.6977192731 | U78: 19.74545543 | V78: 404.7545446 | W78: 7.735839372 | X78: 2322.67589 | Y78: 3.330572038
A79: 71.79517789 | B79: 21.88317022 | C79: 98 | D79: 0.5 | E79: 196 | F79: 16 | G79: 4.487198618 | H79: 15 | I79: 21600 | J79: 424.5 | K79: 0.00649112321 | L79: 0.00718091488 | M79: 0.2277024271 | N79: 0.8504685652 | O79: 12.3430939 | P79: 588.4656901 | Q79: 1543.902333 | R79: 536.0771988 | S79: 3.222219133 | T79: 0.4833328699 | U79: 13.67832022 | V79: 410.8216798 | W79: 6.067135211 | X79: 2810.437826 | Y79: 2.15878649
A80: 78.97469568 | B80: 24.07148724 | C80: 98 | D80: 0.5 | E80: 196 | F80: 16 | G80: 4.93591848 | H80: 15 | I80: 21600 | J80: 424.5 | K80: 0.003959751099 | L80: 0.00434373203 | M80: 0.1389043016 | N80: 0.5188075663 | O80: 7.466331687 | P80: 1043.796608 | Q80: 2587.698941 | R80: 898.5065766 | S80: 2.14403072 | T80: 0.321604608 | U80: 9.101410406 | V80: 415.3985896 | W80: 4.576909812 | X80: 3400.62977 | Y80: 1.345900648
A81: 86.87216525 | B81: 26.47863597 | C81: 98 | D81: 0.5 | E81: 196 | F81: 16 | G81: 5.429510328 | H81: 15 | I81: 21600 | J81: 424.5 | K81: 0.002309171924 | L81: 0.002513452273 | M81: 0.08100355433 | N81: 0.3025482754 | O81: 4.320309866 | P81: 1929.702558 | Q81: 4517.401499 | R81: 1568.542187 | S81: 1.364681507 | T81: 0.2047022261 | U81: 5.793072999 | V81: 418.706927 | W81: 3.308337407 | X81: 4114.762022 | Y81: 0.8040167062
A82: 95.55938177 | B82: 29.12649956 | C82: 98 | D82: 0.5 | E82: 196 | F82: 16 | G82: 5.972461361 | H82: 15 | I82: 21600 | J82: 424.5 | K82: 0.001281566392 | L82: 0.001384968872 | M82: 0.04495612987 | N82: 0.1679111451 | O82: 2.380588145 | P82: 3733.706072 | Q82: 8251.10757 | R82: 2864.967906 | S82: 0.8271673077 | T82: 0.1240750961 | U82: 3.511325221 | V82: 420.9886748 | W82: 2.281747778 | X82: 4978.862046 | Y82: 0.4582870055
A83: 105.11532 | B83: 32.03914952 | C83: 98 | D83: 0.5 | E83: 196 | F83: 16 | G83: 6.569707497 | H83: 15 | I83: 21600 | J83: 424.5 | K83: 0.000673571068 | L83: 0.0007231263297 | M83: 0.02362823228 | N83: 0.08825144758 | O83: 1.242963652 | P83: 7595.062383 | Q83: 15846.16995 | R83: 5502.142345 | S83: 0.475072847 | T83: 0.07126092705 | U83: 2.016684235 | V83: 422.4833158 | W83: 1.494640986 | X83: 6024.423076 | Y83: 0.2480969492
A84: 115.6268519 | B84: 35.24306447 | C84: 98 | D84: 0.5 | E84: 196 | F84: 16 | G84: 7.226678247 | H84: 15 | I84: 21600 | J84: 424.5 | K84: 0.0003334491606 | L84: 0.0003558134638 | M84: 0.01169707934 | N84: 0.04368859133 | O84: 0.6115988097 | P84: 16323.64116 | Q84: 32169.81112 | R84: 11170.0733 | S84: 0.2571349419 | T84: 0.03857024128 | U84: 1.091537828 | V84: 423.4084622 | W84: 0.9251464071 | X84: 7289.551922 | Y84: 0.1269140294
A85: 127.1895371 | B85: 38.76737092 | C85: 98 | D85: 0.5 | E85: 196 | F85: 16 | G85: 7.949346071 | H85: 15 | I85: 21600 | J85: 424.5 | K85: 0.0001545575075 | L85: 0.0001640055949 | M85: 0.005421730328 | N85: 0.02025016278 | O85: 0.2819050902 | P85: 37269.60046 | Q85: 69439.41158 | R85: 24110.9068 | S85: 0.1303737231 | T85: 0.01955605847 | U85: 0.5534364546 | V85: 423.9465635 | W85: 0.5381013737 | X85: 8820.357826 | Y85: 0.06100675101
A86: 139.9084909 | B86: 42.64410801 | C86: 98 | D86: 0.5 | E86: 196 | F86: 16 | G86: 8.744280678 | H86: 15 | I86: 21600 | J86: 424.5 | K86: 6.663702897e-05 | L86: 7.034906136e-05 | M86: 0.002337563583 | N86: 0.008730799984 | O86: 0.1209212314 | P86: 90933.94531 | Q86: 160373.3569 | R86: 55685.19336 | S86: 0.0615151938 | T86: 0.00922727907 | U86: 0.2611319977 | V86: 424.238868 | W86: 0.292304457 | X86: 10672.63297 | Y86: 0.02738822349
A87: 153.8993399 | B87: 46.90851881 | C87: 98 | D87: 0.5 | E87: 196 | F87: 16 | G87: 9.618708746 | H87: 15 | I87: 21600 | J87: 424.5 | K87: 2.653208702e-05 | L87: 2.78786591e-05 | M87: 0.0009307203721 | N87: 0.00347624059 | O87: 0.04791992562 | P87: 238648.2424 | Q87: 399021.5993 | R87: 138549.1664 | S87: 0.02681567021 | T87: 0.004022350531 | U87: 0.11383252 | V87: 424.3861675 | W87: 0.1472994776 | X87: 12913.88589 | Y87: 0.01140628614
A88: 169.2892739 | B88: 51.59937069 | C88: 98 | D88: 0.5 | E88: 196 | F88: 16 | G88: 10.58057962 | H88: 15 | I88: 21600 | J88: 424.5 | K88: 9.678512496e-06 | L88: 1.012597212e-05 | M88: 0.000339513011 | N88: 0.001268081096 | O88: 0.01740527868 | P88: 678497.8383 | Q88: 1077519.438 | R88: 374138.6936 | S88: 0.01071386542 | T88: 0.001607079813 | U88: 0.04548035872 | V88: 424.4545196 | W88: 0.06835216132 | X88: 15625.80193 | Y88: 0.004374313819
A89: 186.2182013 | B89: 56.75930776 | C89: 98 | D89: 0.5 | E89: 196 | F89: 16 | G89: 11.63863758 | H89: 15 | I89: 21600 | J89: 424.5 | K89: 3.206512411e-06 | L89: 3.341531521e-06 | M89: 0.000112481405 | N89: 0.0004201180476 | O89: 0.00574367445 | P89: 2106156.189 | Q89: 3183675.626 | R89: 1105442.926 | S89: 0.003889087435 | T89: 0.0005833631152 | U89: 0.01650917616 | V89: 424.4834908 | W89: 0.02897118256 | X89: 18907.22034 | Y89: 0.001532281427
A90: 204.8400215 | B90: 62.43523854 | C90: 98 | D90: 0.5 | E90: 196 | F90: 16 | G90: 12.80250134 | H90: 15 | I90: 21600 | J90: 424.5 | K90: 9.555866311e-07 | L90: 9.922290668e-07 | M90: 3.352106995e-05 | N90: 0.0001252011963 | O90: 0.001705517576 | P90: 7199551.548 | Q90: 10383227.17 | R90: 3605287.213 | S90: 0.001270301396 | T90: 0.0001905452094 | U90: 0.005392429425 | V90: 424.4946076 | W90: 0.01111674674 | X90: 22877.73661 | Y90: 0.0004859198673
A91: 225.3240236 | B91: 68.67876239 | C91: 98 | D91: 0.5 | E91: 196 | F91: 16 | G91: 14.08275148 | H91: 15 | I91: 21600 | J91: 424.5 | K91: 2.534707309e-07 | L91: 2.623205322e-07 | M91: 8.891512108e-06 | N91: 3.320979772e-05 | O91: 0.0004508961622 | P91: 27357424.57 | Q91: 37740651.75 | R91: 13104392.97 | S91: 0.0003694194862 | T91: 5.541292294e-05 | U91: 0.001568185719 | V91: 424.4984318 | W91: 0.003824243706 | X91: 27682.06129 | Y91: 0.0001381488057
A92: 247.856426 | B92: 75.54663863 | C92: 98 | D92: 0.5 | E92: 196 | F92: 16 | G92: 15.49102662 | H92: 15 | I92: 21600 | J92: 424.5 | K92: 5.914993313e-08 | L92: 6.103009511e-08 | M92: 2.074923384e-06 | N92: 7.749838839e-06 | O92: 0.0001049030948 | P92: 116756757 | Q92: 154497408.8 | R92: 53644933.6 | S92: 9.454188282e-05 | T92: 1.418128242e-05 | U92: 0.0004013302926 | V92: 424.4995987 | W92: 0.001166855427 | X92: 33495.29416 | Y92: 3.483639883e-05
A93: 272.6420686 | B93: 83.1013025 | C93: 98 | D93: 0.5 | E93: 196 | F93: 16 | G93: 17.04012929 | H93: 15 | I93: 21600 | J93: 424.5 | K93: 1.198924453e-08 | L93: 1.233615398e-08 | M93: 4.205712924e-07 | N93: 1.570833777e-06 | O93: 2.120430467e-05 | P93: 566046488.7 | Q93: 720543897.5 | R93: 250188853.3 | S93: 2.102096588e-05 | T93: 3.153144882e-06 | U93: 8.923400015e-05 | V93: 424.4999108 | W93: 0.0003120962924 | X93: 40529.30594 | Y93: 7.700509179e-06
A94: 299.9062754 | B94: 91.41143275 | C94: 98 | D94: 0.5 | E94: 196 | F94: 16 | G94: 18.74414221 | H94: 15 | I94: 21600 | J94: 424.5 | K94: 2.081261943e-09 | L94: 2.136075289e-09 | M94: 7.300868901e-08 | N94: 2.726874535e-07 | O94: 3.671646064e-06 | P94: 3156499085 | Q94: 3877042983 | R94: 1346195480 | S94: 4.003889899e-06 | T94: 6.005834848e-07 | U94: 1.699651262e-05 | V94: 424.499983 | W94: 7.223748753e-05 | X94: 49040.46019 | Y94: 1.473018142e-06
A95: 329.896903 | B95: 100.552576 | C95: 98 | D95: 0.5 | E95: 196 | F95: 16 | G95: 20.61855643 | H95: 15 | I95: 21600 | J95: 424.5 | K95: 3.04672674e-10 | L95: 3.119753818e-10 | M95: 1.068762756e-08 | N95: 3.991828895e-08 | O95: 5.362466337e-07 | P95: 2.05264282e+10 | Q95: 2.440347118e+10 | R95: 8473427493 | S95: 6.432482017e-07 | T95: 9.648723025e-08 | U95: 2.730588616e-06 | V95: 424.4999973 | W95: 1.426592399e-05 | X95: 59338.95682 | Y95: 2.404141353e-07
A96: 362.8865933 | B96: 110.6078336 | C96: 98 | D96: 0.5 | E96: 196 | F96: 16 | G96: 22.68041208 | H96: 15 | I96: 21600 | J96: 424.5 | K96: 3.697546517e-11 | L96: 3.778198302e-11 | M96: 1.297064143e-09 | N96: 4.844534572e-09 | O96: 6.494249991e-08 | P96: 1.58037301e+11 | Q96: 1.824407722e+11 | R96: 6.334749033e+10 | S96: 8.56910944e-08 | T96: 1.285366416e-08 | U96: 3.637586957e-07 | V96: 424.4999996 | W96: 2.366829904e-06 | X96: 71800.13776 | Y96: 3.296414154e-08
A97: 399.1752526 | B97: 121.668617 | C97: 98 | D97: 0.5 | E97: 196 | F97: 16 | G97: 24.94845329 | H97: 15 | I97: 21600 | J97: 424.5 | K97: 3.651140287e-12 | L97: 3.723607418e-12 | M97: 1.280785279e-10 | N97: 4.783733016e-10 | O97: 6.400415095e-09 | P97: 1.464915456e+12 | Q97: 1.647356228e+12 | R97: 5.719986903e+11 | S97: 9.289824573e-09 | T97: 1.393473686e-09 | U97: 3.943530531e-08 | V97: 424.5 | W97: 3.243234232e-07 | X97: 86878.16669 | Y97: 3.733083185e-09
A98: 439.0927778 | B98: 133.8354787 | C98: 98 | D98: 0.5 | E98: 196 | F98: 16 | G98: 27.44329861 | H98: 15 | I98: 21600 | J98: 424.5 | K98: 2.873593202e-13 | L98: 2.925486988e-13 | M98: 1.008029158e-11 | N98: 3.764988906e-11 | O98: 5.02854597e-10 | P98: 1.665333644e+13 | Q98: 1.830069267e+13 | R98: 6.354407178e+12 | S98: 8.0285013e-10 | T98: 1.204275195e-10 | U98: 3.408098802e-09 | V98: 424.5 | W98: 3.602718834e-08 | X98: 105122.5817 | Y98: 3.427159775e-10
A99: =A98*1.1 -> 483.0020556 | B99: 147.2190266 | C99: 98 | D99: 0.5 | E99: 196 | F99: 16 | G99: 30.18762848 | H99: 15 | I99: 21600 | J99: 424.5 | K99: 1.762201336e-14 | L99: 1.79115418e-14 | M99: 6.181634647e-13 | N99: 2.308840541e-12 | O99: 3.078769849e-11 | P99: 2.369728207e+14 | Q99: 2.552735134e+14 | R99: 8.86366366e+13 | S99: 5.407069692e-11 | T99: 8.110604537e-12 | U99: 2.295301084e-10 | V99: 424.5 | W99: 3.178570296e-09 | X99: 127198.3238 | Y99: 2.498908948e-11
A100: =A99*1.1 -> 531.3022612 | B100: 161.9409292 | C100: 98 | D100: 0.5 | E100: 196 | F100: 16 | G100: 33.20639132 | H100: 15 | I100: 21600 | J100: 424.5 | K100: 8.212694957e-16 | L100: =BESSELK(G100,1) -> 8.335449543e-16 | M100: 2.880935262e-14 | N100: 1.07602932e-13 | O100: 1.432759448e-12 | P100: 4.317275449e+15 | Q100: 4572548962863088 | R100: =Q100*500/1440 -> 1587690612105239 | S100: =G100*BESSELK(G100,1)*100 -> 2.767901994e-12 | T100: 4.151852991e-13 | U100: 1.174974396e-11 | V100: 424.5 | W100: 2.177671377e-10 | X100: 153909.9719 | Y100: 1.41489947e-12
M104: Effective Porosity, n = | O104: ='Tab 2 Inputs and Plots'!R37 -> 0.25
A105: ='Tab 2 Inputs and Plots'!M37 -> Lower Bound
A106: Radius, r | C106: Transmissivity, T | D106: Thickness, b | E106: Conductivity, K | F106: Leakance, B | G106: r/B | H106: Flow Rate, Qw | K106: Ko(r/B) | L106: K1(r/B) | M106: Vacuum | O106: Velocity | P106: Travel Time | Q106: Cummulative Travel Time | R106: Time for 500 Pore Volumes | S106: Q(r)/Qw | T106: Qr | U106: Qr | V106: Qleak | W106: Delta Q | X106: Delta A | Y106: Qleak/A
A107: (ft) | B107: (m) | C107: (ft2/d) | D107: (ft) | E107: (ft/d) | F107: B (ft) | G107: (dim) | H107: (ft3/min) | I107: (ft3/day) | J107: (L/min) | K107: (dim) | L107: (dim) | M107: (ft-air) | N107: (Pa) | O107: (ft/day) | P107: (min) | Q107: (min) | R107: (days) | S107: (%) | T107: (scfm) | U107: (L/min) | V107: (L/min) | W107: (L/min) | X107: (ft2) | Y107: (L/min per 1000 ft2)
A108: 0.1 | B108: =A108*0.3048 -> 0.03048 | C108: ='Tab 2 Inputs and Plots'!O37 -> 32 | D108: ='Tab 2 Inputs and Plots'!Q37 -> 0.5 | E108: =C108/D108 -> 64 | F108: ='Tab 2 Inputs and Plots'!$P$37 -> 4 | G108: =(A108/F108) -> 0.025 | H108: ='Tab 2 Inputs and Plots'!$N$37 -> 15 | I108: =(H108*1440) -> 21600 | J108: =H108*28.3 -> 424.5 | K108: =BESSELK(G108,0) -> 3.805561758 | L108: =BESSELK(G108,1) -> 39.94618493 | M108: =(I108*K108/(2*3.1459*C108)) -> 408.2701591 | N108: =(M108*0.015)*249 -> 1524.889044 | O108: =(I108/(2*3.14159*O$104*D108))*(1/F108)*L108 -> 274649.9685
A109: =A108*1.1 -> 0.11 | B109: =A109*0.3048 -> 0.033528 | C109: =$C$108 -> 32 | D109: =$D$108 -> 0.5 | E109: =C109/D109 -> 64 | F109: =$F$108 -> 4 | G109: =(A109/F109) -> 0.0275 | H109: =$H$108 -> 15 | I109: 21600 | J109: =H109*28.3 -> 424.5 | K109: =BESSELK(G109,0) -> 3.710391231 | L109: =BESSELK(G109,1) -> 36.30574928 | M109: =(I109*K109/(2*3.1459*C109)) -> 398.0600275 | N109: =(M109*0.015)*249 -> 1486.754203 | O109: =(I109/(2*3.14159*O$104*D109))*(1/F109)*L109 -> 249620.1556 | P109: =(A109-A108)/((O108+O109)/2)*1440 -> 5.493351362e-05 | Q109: =P109 -> 5.493351362e-05 | R109: =Q109*500/1440 -> 1.907413667e-05 | S109: =G109*BESSELK(G109,1)*100 -> 99.84081053 | T109: =H108*S109/100 -> 14.97612158 | U109: =T109*28.3 -> 423.8242407 | V109: =J109-U109 -> 0.6757593201 | X109: =(3.14159*A109*A109)-(3.14159*A108*A108) -> 0.006597339
A110: =A109*1.1 -> 0.121 | B110: 0.0368808 | C110: =$C$108 -> 32 | D110: =$D$108 -> 0.5 | E110: 64 | F110: =$F$108 -> 4 | G110: 0.03025 | H110: =$H$108 -> 15 | I110: 21600 | J110: 424.5 | K110: 3.61524625 | L110: 32.99561569 | M110: 387.8526365 | N110: 1448.629597 | O110: 226861.3342 | P110: 6.648736767e-05 | Q110: =Q109+(P110) -> 0.0001214208813 | R110: =Q110*500/1440 -> 4.216002823e-05 | S110: =G110*BESSELK(G110,1)*100 -> 99.81173747 | T110: =H109*S110/100 -> 14.97176062 | U110: 423.7008256 | V110: =J110-U110 -> 0.7991744479 | W110: =V110-V109 -> 0.1234151279 | X110: 0.00798278019 | Y110: =1000*W110/X110 -> 15460.16863
A111: 0.1331 | B111: 0.04056888 | C111: 32 | D111: 0.5 | E111: 64 | F111: 4 | G111: 0.033275 | H111: 15 | I111: 21600 | J111: 424.5 | K111: 3.520131386 | L111: 29.98571693 | M111: 377.6484766 | N111: 1410.51706 | O111: 206166.7772 | P111: 8.047514486e-05 | Q111: =Q110+(P111) -> 0.0002018960262 | R111: 7.010278686e-05 | S111: 99.77747309 | T111: 14.96662096 | U111: 423.5553733 | V111: 0.9446267271 | W111: =V111-V110 -> 0.1454522791 | X111: 0.00965916403 | Y111: =1000*W111/X111 -> 15058.4749
A112: 0.14641 | B112: 0.044625768 | C112: 32 | D112: 0.5 | E112: 64 | F112: 4 | G112: 0.0366025 | H112: 15 | I112: 21600 | J112: 424.5 | K112: 3.425052005 | L112: 27.24871765 | M112: 367.4481234 | N112: 1372.418741 | O112: 187348.5405 | P112: 9.741120173e-05 | Q112: 0.0002993072279 | R112: 0.0001039261208 | S112: 99.73711878 | T112: 14.96056782 | U112: 423.3840692 | V112: 1.115930773 | W112: 0.1713040461 | X112: 0.01168758848 | Y112: 14656.91973
A113: 0.161051 | B113: 0.0490883448 | C113: 32 | D113: 0.5 | E113: 64 | F113: 4 | G113: 0.04026275 | H113: 15 | I113: 21600 | J113: 424.5 | K113: 3.330014397 | L113: 24.75976611 | M113: 357.2522518 | N113: 1334.33716 | O113: 170235.7557 | P113: 0.0001179192723 | Q113: 0.0004172265002 | R113: 0.0001448703126 | S113: 99.68962728 | T113: 14.95344409 | U113: 423.1824678 | V113: 1.317532191 | W113: 0.2016014175 | X113: 0.01414198206 | Y113: 14255.52774
A114: 0.1771561 | B114: 0.05399717928 | C114: 32 | D114: 0.5 | E114: 64 | F114: 4 | G114: 0.044289025 | H114: 15 | I114: 21600 | J114: 424.5 | K114: 3.235025931 | L114: 22.49626851 | M114: 347.0616522 | N114: 1296.275271 | O114: 154673.0795 | P114: 0.0001427560071 | Q114: 0.0005599825073 | R114: 0.0001944383706 | S114: 99.63377982 | T114: 14.94506697 | U114: 422.9453953 | V114: 1.554604653 | W114: 0.2370724625 | X114: 0.01711179829 | Y114: 13854.32779
A115: 0.19487171 | B115: 0.05939689721 | C115: 32 | D115: 0.5 | E115: 64 | F115: 4 | G115: 0.0487179275 | H115: 15 | I115: 21600 | J115: 424.5 | K115: 3.140095229 | L115: 20.43768388 | M115: 336.8772497 | N115: 1258.236528 | O115: 140519.2822 | P115: 0.0001728396917 | Q115: 0.0007328221991 | R115: 0.0002544521525 | S115: 99.56816018 | T115: 14.93522403 | U115: 422.6668399 | V115: 1.833160053 | W115: 0.2785553994 | X115: 0.02070527593 | Y115: 13453.35365
A116: 0.214358881 | B116: 0.06533658693 | C116: 32 | D116: 0.5 | E116: 64 | F116: 4 | G116: 0.05358972025 | H116: 15 | I116: 21600 | J116: 424.5 | K116: 3.045232369 | L116: 18.56533769 | M116: 326.7001254 | N116: 1220.224969 | O116: 127645.9672 | P116: 0.0002092853291 | Q116: 0.0009421075282 | R116: 0.0003271206695 | S116: 99.49112533 | T116: 14.9236688 | U116: 422.339827 | V116: 2.160172974 | W116: 0.3270129213 | X116: 0.02505338387 | Y116: 13052.64482
A117: 0.2357947691 | B117: 0.07187024562 | C117: 32 | D117: 0.5 | E117: 64 | F117: 4 | G117: 0.05894869228 | H117: 15 | I117: 21600 | J117: 424.5 | K117: 2.950449116 | L117: 16.86225235 | M117: 316.5315415 | N117: 1182.245308 | O117: 115936.4051 | P117: 0.0002534475592 | Q117: 0.001195555087 | R117: 0.0004151232942 | S117: 99.4007725 | T117: 14.91011588 | U117: 421.9562793 | V117: 2.543720725 | W117: 0.3835477509 | X117: 0.03031459449 | Y117: 12652.24745
A118: 0.259374246 | B118: 0.07905727018 | C118: 32 | D118: 0.5 | E118: 64 | F118: 4 | G118: 0.0648435615 | H118: 15 | I118: 21600 | J118: 424.5 | K118: 2.855759185 | L118: 15.31299329 | M118: 306.3729696 | N118: 1144.303041 | O118: 105284.4754 | P118: 0.0003069732539 | Q118: 0.001502528341 | R118: 0.0005217112296 | S118: 99.29490222 | T118: 14.89423533 | U118: 421.5068599 | V118: 2.993140063 | W118: 0.4494193381 | X118: 0.03668065933 | Y118: 12252.21537
A119: 0.2853116706 | B119: 0.0869629972 | C119: 32 | D119: 0.5 | E119: 64 | F119: 4 | G119: 0.07132791765 | H119: 15 | I119: 21600 | J119: 424.5 | K119: 2.761178547 | L119: 13.90352901 | M119: 296.2261228 | N119: 1106.404569 | O119: 95593.70467 | P119: 0.0003718660873 | Q119: 0.001874394429 | R119: 0.0006508313988 | S119: 99.17097724 | T119: 14.87564659 | U119: 420.9807984 | V119: 3.519201595 | W119: 0.5260615323 | X119: 0.04438359779 | Y119: 11852.61129
A120: 0.3138428377 | B120: 0.09565929692 | C120: 32 | D120: 0.5 | E120: 64 | F120: 4 | G120: 0.07846070942 | H120: 15 | I120: 21600 | J120: 424.5 | K120: 2.66672577 | L120: 12.62110397 | M120: 286.0929932 | N120: 1068.55733 | O120: 86776.39215 | P120: 0.0004505659786 | Q120: 0.002324960407 | R120: 0.0008072779191 | S120: 99.02607714 | T120: 14.85391157 | U120: 420.3656974 | V120: 4.134302555 | W120: 0.6151009592 | X120: 0.05370415332 | Y120: 11453.50818
A121: 0.3452271214 | B121: 0.1052252266 | C121: 32 | D121: 0.5 | E121: 64 | F121: 4 | G121: 0.08630678036 | H121: 15 | I121: 21600 | J121: 424.5 | K121: 2.572422406 | L121: 11.45412308 | M121: 275.9758931 | N121: 1030.769961 | O121: 78752.81577 | P121: 0.0005460470595 | Q121: 0.002871007467 | R121: 0.0009968775926 | S121: 98.85684847 | T121: 14.82852727 | U121: 419.6473218 | V121: 4.852678248 | W121: 0.7183756936 | X121: 0.06498202552 | Y121: 11054.99079
A122: 0.3797498336 | B122: 0.1157477493 | C122: 32 | D122: 0.5 | E122: =C122/D122 -> 64 | F122: 4 | G122: =(A122/F122) -> 0.0949374584 | H122: 15 | I122: =(H122*1440) -> 21600 | J122: 424.5 | K122: 2.478293432 | L122: 10.39204676 | M122: 265.8775019 | N122: 993.0524698 | O122: 71450.51072 | P122: 0.0006619388086 | Q122: 0.003532946275 | R122: 0.001226717457 | S122: 98.65945067 | T122: 14.7989176 | U122: 418.8093681 | V122: 5.690631897 | W122: 0.8379536484 | X122: 0.07862825088 | Y122: 10657.15743
A123: 0.4177248169 | B123: 0.1273225242 | C123: 32 | D123: 0.5 | E123: 64 | F123: 4 | G123: 0.1044312042 | H123: 15 | I123: 21600 | J123: 424.5 | K123: 2.384367741 | L123: 9.42529568 | M123: 255.8009195 | N123: 955.4164344 | O123: 64803.61431 | P123: 0.0008026762643 | Q123: 0.004335622539 | R123: 0.001505424493 | S123: 98.42949781 | T123: 14.76442467 | U123: 417.8332182 | V123: 6.66678178 | W123: 0.9761498831 | X123: 0.09514018357 | Y123: 10260.12192
A124: 0.4594972986 | B124: 0.1400547766 | C124: 32 | D124: 0.5 | E124: 64 | F124: 4 | G124: 0.1148743247 | H124: 15 | I124: 21600 | J124: 424.5 | K124: 2.29067869 | L124: 8.545164213 | M124: 245.7497244 | N124: 917.8752205 | O124: 58752.27098 | P124: 0.0009736869028 | Q124: 0.005309309442 | R124: 0.001843510223 | S124: 98.16199681 | T124: 14.72429952 | U124: 416.6976765 | V124: 7.802323549 | W124: 1.135541769 | X124: 0.1151196221 | Y124: 9864.015778
A125: 0.5054470285 | B125: 0.1540602543 | C125: 32 | D125: 0.5 | E125: 64 | F125: 4 | G125: 0.1263617571 | H125: 15 | I125: 21600 | J125: 424.5 | K125: 2.197264709 | L125: 7.743741865 | M125: 235.7280395 | N125: 880.4442274 | O125: 53242.09215 | P125: 0.001181623952 | Q125: 0.006490933395 | R125: 0.002253796318 | S125: 97.85128288 | T125: 14.67769243 | U125: 415.3786958 | V125: 9.12130417 | W125: 1.318980621 | X125: 0.1392947428 | Y125: 9468.990682
A126: 0.5559917313 | B126: 0.1694662797 | C126: 32 | D126: 0.5 | E126: 64 | F126: 4 | G126: 0.1389979328 | H126: 15 | I126: 21600 | J126: 424.5 | K126: 2.104169975 | L126: 7.013841973 | M126: 225.7406041 | N126: 843.1411564 | O126: 48223.66592 | P126: 0.001434658815 | Q126: 0.007925592209 | R126: 0.002751941739 | S126: 97.49095355 | T126: 14.62364303 | U126: 413.8490978 | V126: 10.6509022 | W126: 1.529598025 | X126: 0.1685466387 | Y126: 9075.221178
A127: 0.6115909045 | B127: =A127*0.3048 -> 0.1864129077 | C127: 32 | D127: 0.5 | E127: 64 | F127: 4 | G127: 0.1528977261 | H127: 15 | I127: 21600 | J127: 424.5 | K127: =BESSELK(G127,0) -> 2.011445143 | L127: 6.348936988 | M127: =(I127*K127/(2*3.1459*C127)) -> 215.7928529 | N127: =(M127*0.015)*249 -> 805.9863056 | O127: 43652.11213 | P127: 0.001742849117 | Q127: =Q126+(P127) -> 0.009668441326 | R127: 0.003357097683 | S127: 97.07380287 | T127: 14.56107043 | U127: 412.0782932 | V127: 12.42170682 | W127: 1.770804628 | X127: 0.2039414329 | Y127: 8682.907651
A128: 0.6727499949 | B128: =A128*0.3048 -> 0.2050541985 | C128: 32 | D128: 0.5 | E128: 64 | F128: 4 | G128: 0.1681874987 | H128: 15 | I128: 21600 | J128: 424.5 | K128: =BESSELK(G128,0) -> 1.919148147 | L128: 5.743099764 | M128: =(I128*K128/(2*3.1459*C128)) -> 205.8910009 | N128: =(M128*0.015)*249 -> 769.0028882 | O128: 39486.67869 | P128: 0.002118604069 | Q128: =Q127+(P128) -> 0.01178704539 | R128: 0.004092724095 | S128: 96.59175843 | T128: 14.48876376 | U128: 410.0320145 | V128: 14.46798547 | W128: 2.046278644 | X128: 0.2467691338 | Y128: 8292.279559
A129: 0.7400249944 | B129: =A129*0.3048 -> 0.2255596183 | C129: 32 | D129: 0.5 | E129: 64 | F129: 4 | G129: 0.1850062486 | H129: 15 | I129: 21600 | J129: 424.5 | K129: =BESSELK(G129,0) -> 1.827345048 | L129: 5.190950302 | M129: =(I129*K129/(2*3.1459*C129)) -> 196.0421353 | N129: =(M129*0.015)*249 -> 732.2173755 | O129: 35690.37542 | P129: 0.00257727575 | Q129: =Q128+(P129) -> 0.01436432115 | R129: 0.004987611509 | S129: 96.03582421 | T129: 14.40537363 | U129: 407.6720738 | V129: 16.82792622 | W129: 2.359940756 | X129: 0.2985906519 | Y129: 7903.598927
A130: 0.8140274939 | B130: =A130*0.3048 -> 0.2481155801 | C130: 32 | D130: 0.5 | E130: 64 | F130: 4 | G130: 0.2035068735 | H130: 15 | I130: 21600 | J130: 424.5 | K130: =BESSELK(G130,0) -> 1.736110941 | L130: 4.687607446 | M130: =(I130*K130/(2*3.1459*C130)) -> 186.2543128 | N130: =(M130*0.015)*249 -> 695.6598581 | O130: 32229.64194 | P130: 0.003137914368 | Q130: =Q129+(P130) -> 0.01750223551 | R130: 0.006077165109 | S130: 95.39603353 | T130: 14.30940503 | U130: 404.9561623 | V130: 19.54383767 | W130: 2.715911449 | X130: 0.3612946888 | Y130: 7517.164059
A131: 0.8954302433 | B131: =A131*0.3048 -> 0.2729271381 | C131: 32 | D131: 0.5 | E131: 64 | F131: 4 | G131: 0.2238575608 | H131: 15 | I131: 21600 | J131: 424.5 | K131: =BESSELK(G131,0) -> 1.645530897 | L131: 4.228645076 | M131: =(I131*K131/(2*3.1459*C131)) -> 176.5366597 | N131: =(M131*0.015)*249 -> 659.3644239 | O131: 29074.04647 | P131: 0.003824238383 | Q131: =Q130+(P131) -> 0.0213264739 | R131: 0.007405025659 | S131: 94.66141723 | T131: 14.19921258 | U131: 401.8377161 | V131: 22.66228387 | W131: 3.118446196 | X131: 0.4371665734 | Y131: 7133.313445
A132: 0.9849732676 | B132: =A132*0.3048 -> 0.300219852 | C132: 32 | D132: 0.5 | E132: =C132/D132 -> 64 | F132: 4 | G132: =(A132/F132) -> 0.2462433169 | H132: 15 | I132: =(H132*1440) -> 21600 | J132: 424.5 | K132: =BESSELK(G132,0) -> 1.555700925 | L132: 3.810052382 | M132: =(I132*K132/(2*3.1459*C132)) -> 166.8994762 | N132: =(M132*0.015)*249 -> 623.3695434 | O132: 26196.01267 | P132: 0.004665888079 | Q132: =Q131+(P132) -> 0.02599236198 | R132: 0.009025125686 | S132: 93.81999361 | T132: 14.07299904 | U132: 398.2658729 | V132: 26.23412715 | W132: 3.571843278 | X132: 0.5289715538 | Y132: 6752.429791
A133: 1.083470594 | B133: 0.3302418372 | C133: 32 | D133: 0.5 | E133: 64 | F133: 4 | G133: 0.2708676486 | H133: 15 | I133: 21600 | J133: 424.5 | K133: 1.466728928 | L133: 3.428197805 | M133: 157.3543384 | N133: 587.7184539 | O133: 23570.57178 | P133: 0.005700055654 | Q133: 0.03169241763 | R133: 0.01100431168 | S133: 92.85878783 | T133: 13.92881817 | U133: 394.1855543 | V133: 30.31444568 | W133: 4.08031853 | X133: 0.6400555801 | Y133: 6374.944078
A134: 1.191817654 | B134: 0.3632660209 | C134: 32 | D134: 0.5 | E134: 64 | F134: 4 | G134: 0.2979544134 | H134: 15 | I134: 21600 | J134: 424.5 | K134: 1.378735629 | L134: 3.079796302 | M134: 147.9141978 | N134: 552.4595288 | O134: 21175.13747 | P134: 0.006973619067 | Q134: 0.0386660367 | R134: 0.01342570719 | S134: 91.76389008 | T134: 13.76458351 | U134: 389.5377134 | V134: 34.96228663 | W134: 4.64784095 | X134: 0.7744672519 | Y134: 6001.339551
A135: 1.310999419 | B135: 0.399592623 | C135: 32 | D135: 0.5 | E135: 64 | F135: 4 | G135: 0.3277498548 | H135: 15 | I135: 21600 | J135: 424.5 | K135: 1.291855414 | L135: 2.761879578 | M135: 138.5934716 | N135: 517.6466163 | O135: 18989.30124 | P135: 0.008545954961 | Q135: 0.04721199166 | R135: 0.01639305266 | S135: 90.52056307 | T135: 13.57808446 | U135: 384.2597902 | V135: 40.24020977 | W135: 5.277923149 | X135: 0.9371053749 | Y135: 5632.155455
A136: 1.442099361 | B136: 0.4395518853 | C136: 32 | D136: 0.5 | E136: 64 | F136: 4 | G136: 0.3605248403 | H136: 15 | I136: 21600 | J136: 424.5 | K136: 1.206237043 | L136: 2.471768958 | M136: 129.4081192 | N136: 483.3393252 | O136: 16994.64586 | P136: 0.01049267418 | Q136: 0.05770466584 | R136: 0.02003634231 | S136: 89.11341087 | T136: 13.36701163 | U136: 378.2864291 | V136: 46.21357087 | W136: 5.973361093 | X136: 1.133897504 | Y136: 5267.990338
A137: 1.586309297 | B137: 0.4835070738 | C137: 32 | D137: 0.5 | E137: 64 | F137: 4 | G137: 0.3965773243 | H137: 15 | I137: 21600 | J137: 424.5 | K137: 1.122044174 | L137: 2.207050596 | M137: 120.3756981 | N137: 449.6032323 | O137: 15174.57493 | P137: 0.01291062095 | Q137: 0.07061528679 | R137: 0.0245191968 | S137: 87.52662198 | T137: 13.1289933 | U137: 371.5505103 | V137: 52.94948971 | W137: 6.735918847 | X137: 1.372015979 | Y137: 4909.504662
A138: 1.744940227 | B138: 0.5318577812 | C138: 32 | D138: 0.5 | E138: 64 | F138: 4 | G138: 0.4362350567 | H138: 15 | I138: 21600 | J138: 424.5 | K138: 1.039455601 | L138: 1.965552718 | M138: 111.5153899 | N138: 416.5099814 | O138: 13514.15643 | P138: 0.01592461764 | Q138: 0.08653990443 | R138: 0.03004857793 | S138: 85.74430013 | T138: 12.86164502 | U138: 363.984554 | V138: 60.51544596 | W138: 7.565956242 | X138: 1.660139335 | Y138: 4557.42243
A139: 1.91943425 | B139: 0.5850435593 | C139: 32 | D139: 0.5 | E139: 64 | F139: 4 | G139: 0.4798585624 | H139: 15 | I139: 21600 | J139: 424.5 | K139: 0.9586651454 | L139: 1.745324612 | M139: 102.8479884 | N139: 384.1372365 | O139: 11999.97823 | P139: 0.01969664235 | Q139: 0.1062365468 | R139: 0.03688768986 | S139: 83.75089591 | T139: 12.56263439 | U139: 355.5225531 | V139: 68.97744688 | W139: 8.462000919 | X139: 2.008768595 | Y139: 4212.531468
A140: 2.111377675 | B140: 0.6435479152 | C140: 32 | D140: 0.5 | E140: 64 | F140: 4 | G140: 0.5278444186 | H140: 15 | I140: 21600 | J140: 424.5 | K140: 0.879881072 | L140: 1.544617085 | M140: 94.39583642 | N140: 352.568449 | O140: 10620.01376 | P140: 0.0244384288 | Q140: 0.1306749756 | R140: 0.04537325541 | S140: 81.53175072 | T140: 12.22976261 | U140: 346.1022818 | V140: 78.3977182 | W140: 9.420271325 | X140: 2.43061 | Y140: 3875.681958
A141: 2.322515442 | B141: 0.7079027067 | C141: 32 | D141: 0.5 | E141: 64 | F141: 4 | G141: 0.5806288605 | H141: 15 | I141: 21600 | J141: 424.5 | K141: 0.803324932 | L141: 1.361864125 | M141: 86.18270274 | N141: 321.8923947 | O141: 9363.495902 | P141: 0.03042892768 | Q141: 0.1611039033 | R141: 0.0559388553 | S141: 79.07376148 | T141: 11.86106422 | U141: 335.6681175 | V141: 88.83188252 | W141: 10.43416432 | X141: 2.9410381 | Y141: 3547.782777
A142: 2.554766986 | B142: =A142*0.3048 -> 0.7786929774 | C142: 32 | D142: 0.5 | E142: =C142/D142 -> 64 | F142: 4 | G142: =(A142/F142) -> 0.6386917465 | H142: 15 | I142: =(H142*1440) -> 21600 | J142: 424.5 | K142: =BESSELK(G142,0) -> 0.7292297164 | L142: 1.195665505 | M142: =(I142*K142/(2*3.1459*C142)) -> 78.23358317 | N142: =(M142*0.015)*249 -> 292.2024331 | O142: 8220.797401 | P142: 0.0380387449 | Q142: =Q141+(P142) -> 0.1991426482 | R142: 0.06914675284 | S142: 76.36616897 | T142: 11.45492535 | U142: =T142*28.3 -> 324.1743873 | V142: 100.3256127 | W142: =V142-V141 -> 11.49373021 | X142: =(3.14159*A142*A142)-(3.14159*A141*A141) -> 3.558656102 | Y142: =1000*W142/X142 -> 3229.795147
A143: 2.810243685 | B143: 0.8565622751 | C143: 32 | D143: 0.5 | E143: 64 | F143: 4 | G143: 0.7025609212 | H143: 15 | I143: 21600 | J143: 424.5 | K143: 0.6578371979 | L143: 1.044770105 | M143: 70.57441569 | N143: 263.5954426 | O143: 7183.316179 | P143: 0.04776470182 | Q143: 0.24690735 | R143: 0.08573171875 | S143: 73.40146476 | T143: 11.01021971 | U143: 311.5892179 | V143: 112.9107821 | W143: 12.58516937 | X143: 4.305973883 | Y143: 2922.723107
A144: 3.091268053 | B144: 0.9422185026 | C144: 32 | D144: 0.5 | E144: 64 | F144: 4 | G144: 0.7728170133 | H144: 15 | I144: 21600 | J144: 424.5 | K144: 0.5893943589 | L144: 0.9080597252 | M144: 63.23169717 | N144: 236.1703889 | O144: 6243.36405 | P144: 0.06027924755 | Q144: 0.3071865975 | R144: 0.106662013 | S144: 70.17640048 | T144: 10.52646007 | U144: 297.89882 | V144: 126.60118 | W144: 13.69039788 | X144: 5.210228398 | Y144: 2627.600335
A145: 3.400394859 | B145: 1.036440353 | C145: 32 | D145: 0.5 | E145: 64 | F145: 4 | G145: 0.8500987147 | H145: 15 | I145: 21600 | J145: 424.5 | K145: 0.52414882 | L145: 0.7845332243 | M145: 56.23199299 | N145: 210.0264938 | O145: 5394.057673 | P145: 0.07650192805 | Q145: 0.3836885256 | R145: 0.1332251825 | S145: 66.69306856 | T145: 10.00396028 | U145: 283.112076 | V145: 141.387924 | W145: 14.78674398 | X145: 6.304376362 | Y145: 2345.472912
A146: 3.740434344 | B146: 1.140084388 | C146: 32 | D146: 0.5 | E146: 64 | F146: 4 | G146: 0.9351085861 | H146: 15 | I146: 21600 | J146: 424.5 | K146: 0.4623432231 | L146: 0.6732908541 | M146: 49.60133437 | N146: 185.2609839 | O146: 4629.210829 | P146: 0.09770402928 | Q146: 0.4813925549 | R146: 0.1671501927 | S146: 62.96000587 | T146: 9.44400088 | U146: 267.2652249 | V146: 157.2347751 | W146: 15.84685114 | X146: 7.628295398 | Y146: 2077.377751
A147: 4.114477779 | B147: 1.254092827 | C147: 32 | D147: 0.5 | E147: 64 | F147: 4 | G147: 1.028619445 | H147: 15 | I147: 21600 | J147: 424.5 | K147: 0.4042085783 | L147: 0.5735187202 | M147: 43.36450465 | N147: 161.9664249 | O147: 3943.227588 | P147: 0.1256637889 | Q147: 0.6070563437 | R147: 0.2107834527 | S147: 58.99325075 | T147: 8.848987613 | U147: 250.4263495 | V147: 174.0736505 | W147: 16.83887545 | X147: 9.230237431 | Y147: 1824.316608
A148: 4.525925557 | B148: 1.37950211 | C148: 32 | D148: 0.5 | E148: 64 | F148: 4 | G148: 1.131481389 | H148: 15 | I148: 21600 | J148: 424.5 | K148: 0.3499566613 | L148: 0.4844733893 | M148: 37.54422365 | N148: 140.2276753 | O148: 3330.996473 | P148: 0.1628997939 | Q148: 0.7699561376 | R148: 0.2673458811 | S148: 54.81726235 | T148: 8.222589353 | U148: 232.6992787 | V148: 191.8007213 | W148: 17.72707076 | X148: 11.16858729 | Y148: 1587.225877
A149: 4.978518112 | B149: 1.517452321 | C149: 32 | D149: 0.5 | E149: 64 | F149: 4 | G149: 1.244629528 | H149: 15 | I149: 21600 | J149: 424.5 | K149: 0.2997716441 | L149: 0.4054667542 | M149: 32.16024982 | N149: 120.1185331 | O149: 2787.786405 | P149: 0.2130270981 | Q149: 0.9829832358 | R149: 0.3413136235 | S149: 50.4655895 | T149: 7.569838425 | U149: 214.2264274 | V149: 210.2735726 | W149: 18.47285127 | X149: 13.51399062 | Y149: 1366.942733
A150: 5.476369924 | B150: 1.669197553 | C150: 32 | D150: 0.5 | E150: 64 | F150: 4 | G150: 1.369092481 | H150: 15 | I150: 21600 | J150: 424.5 | K150: 0.2538012588 | L150: 0.3358513817 | M150: 27.2284322 | N150: 101.6981943 | O150: 2309.145956 | P150: 0.2813090531 | Q150: 1.264292289 | R150: 0.4389903781 | S150: 45.98116014 | T150: 6.897174021 | U150: 195.1900248 | V150: 229.3099752 | W150: 19.03640261 | X150: 16.35192865 | Y150: 1164.168644
A151: 6.024006916 | B151: 1.836117308 | C151: 32 | D151: 0.5 | E151: 64 | F151: 4 | G151: 1.506001729 | H151: 15 | I151: 21600 | J151: 424.5 | K151: 0.2121479204 | L151: 0.2750066845 | M151: 22.75975814 | N151: 85.00769667 | O151: 1890.80828 | P151: 0.3755266008 | Q151: 1.63981889 | R151: 0.5693815589 | S151: 41.41605423 | T151: 6.212408135 | U151: 175.8111502 | V151: 248.6888498 | W151: 19.37887459 | X151: 19.78583367 | Y151: 979.431795
A152: 6.626407608 | B152: 2.019729039 | C152: 32 | D152: 0.5 | E152: 64 | F152: 4 | G152: 1.656601902 | H152: 15 | I152: 21600 | J152: 424.5 | K152: 0.1748603629 | L152: 0.2223263765 | M152: 18.75945595 | N152: 70.06656796 | O152: 1528.604857 | P152: 0.5073718566 | Q152: 2.147190746 | R152: 0.7455523425 | S152: 36.83062981 | T152: 5.524594472 | U152: 156.3460235 | V152: 268.1539765 | W152: 19.46512667 | X152: 23.94085874 | Y152: 813.0504792
A153: 7.289048369 | B153: 2.221701943 | C153: 32 | D153: 0.5 | E153: 64 | F153: 4 | G153: 1.822262092 | H153: 15 | I153: 21600 | J153: 424.5 | K153: 0.1419264563 | L153: 0.1772077649 | M153: 15.22622429 | N153: 56.86994772 | O153: 1218.391872 | P153: 0.6947243042 | Q153: 2.841915051 | R153: 0.9867760592 | S153: 32.29189923 | T153: 4.843784885 | U153: 137.0791122 | V153: 287.4208878 | W153: 19.2669113 | X153: 28.96843908 | Y153: 665.1000852
A154: 8.017953205 | B154: 2.443872137 | C154: 32 | D154: 0.5 | E154: 64 | F154: 4 | G154: 2.004488301 | H154: 15 | I154: 21600 | J154: 424.5 | K154: 0.113267959 | L154: 0.1390434925 | M154: 12.15166921 | N154: 45.38648449 | O154: 955.9934423 | P154: 0.9654433905 | Q154: 3.807358441 | R154: 1.321999459 | S154: 27.87110541 | T154: 4.180665812 | U154: 118.3128425 | V154: 306.1871575 | W154: 18.76626977 | X154: 35.05181129 | Y154: 535.3865915
A155: 8.819748526 | B155: 2.688259351 | C155: 32 | D155: 0.5 | E155: 64 | F155: 4 | G155: 2.204937131 | H155: 15 | I155: 21600 | J155: 424.5 | K155: 0.08873798186 | L155: 0.1072162946 | M155: 9.520032067 | N155: 35.55731977 | O155: 737.1655636 | P155: 1.363823784 | Q155: 5.171182226 | R155: 1.795549384 | S155: 23.6405189 | T155: 3.546077835 | U155: 100.3540027 | V155: 324.1459973 | W155: 17.95883974 | X155: 42.41269165 | Y155: 423.4307948
A156: 9.701723378 | B156: 2.957085286 | C156: 32 | D156: 0.5 | E156: 64 | F156: 4 | G156: 2.425430845 | H156: 15 | I156: 21600 | J156: 424.5 | K156: 0.06812174932 | L156: 0.08109734628 | M156: 7.308271208 | N156: 27.29639296 | O156: 557.5847516 | P156: 1.961835843 | Q156: 7.133018068 | R156: 2.476742385 | S156: 19.66960051 | T156: 2.950440076 | U156: 83.49745416 | V156: 341.0025458 | W156: 16.85654858 | X156: 51.3193569 | Y156: 328.4637533
A157: 10.67189572 | B157: 3.252793814 | C157: 32 | D157: 0.5 | E157: 64 | F157: 4 | G157: 2.667973929 | H157: 15 | I157: 21600 | J157: 424.5 | K157: 0.05114127105 | L157: 0.06004852901 | M157: 5.48656314 | N157: 20.49231333 | O157: 412.8636221 | P157: 2.879180808 | Q157: 10.01219888 | R157: 3.476457943 | S157: 16.02079099 | T157: 2.403118648 | U157: 68.00825774 | V157: 356.4917423 | W157: 15.48919642 | X157: 62.09642185 | Y157: 249.4378252
A158: 11.73908529 | B158: 3.578073196 | C158: 32 | D158: 0.5 | E158: 64 | F158: 4 | G158: 2.934771322 | H158: 15 | I158: 21600 | J158: 424.5 | K158: 0.03746410502 | L158: 0.04342849491 | M158: 4.019242648 | N158: 15.01187129 | O158: 298.5925885 | P158: 4.320021275 | Q158: 14.33222015 | R158: 4.976465331 | S158: 12.74527014 | T158: 1.911790521 | U158: 54.10367175 | V158: 370.3963282 | W158: 13.90458598 | X158: 75.13667044 | Y158: 185.057255
A159: 12.91299382 | B159: 3.935880515 | C159: 32 | D159: 0.5 | E159: 64 | F159: 4 | G159: 3.228248454 | H159: 15 | I159: 21600 | J159: 424.5 | K159: 0.02671591709 | L159: 0.03060235122 | M159: 2.866150233 | N159: 10.70507112 | O159: 210.4064459 | P159: 6.642166948 | Q159: 20.9743871 | R159: 7.282773299 | S159: 9.879199302 | T159: 1.481879895 | U159: 41.93720104 | V159: 382.562799 | W159: 12.16647072 | X159: 90.91537123 | Y159: 133.821933
A160: 14.2042932 | B160: 4.329468567 | C160: 32 | D160: 0.5 | E160: 64 | F160: 4 | G160: 3.5510733 | H160: 15 | I160: 21600 | J160: 424.5 | K160: 0.01849621928 | L160: 0.02095405421 | M160: 1.984320546 | N160: 7.411437241 | O160: 144.0695861 | P160: 10.4913785 | Q160: 31.4657656 | R160: 10.92561305 | S160: 7.440938244 | T160: 1.116140737 | U160: 31.58678284 | V160: 392.9132172 | W160: 10.35041819 | X160: 110.0075992 | Y160: 94.08821091
A161: 15.62472252 | B161: 4.762415424 | C161: 32 | D161: 0.5 | E161: 64 | F161: 4 | G161: 3.90618063 | H161: 15 | I161: 21600 | J161: 424.5 | K161: 0.01239610459 | L161: 0.01390031053 | M161: 1.329885025 | N161: 4.967120567 | O161: 95.57157599 | P161: 17.07067519 | Q161: 48.53644079 | R161: 16.85293083 | S161: 5.429712373 | T161: 0.814456856 | U161: 23.04912902 | V161: 401.450871 | W161: 8.53765382 | X161: 133.109195 | Y161: 64.14022577
A162: 17.18719477 | B162: 5.238656966 | C162: 32 | D162: 0.5 | E162: 64 | F162: 4 | G162: 4.296798693 | H162: 15 | I162: 21600 | J162: 424.5 | K162: 0.008016420329 | L162: 0.008904444297 | M162: 0.8600215713 | N162: 3.212180569 | O162: 61.22250096 | P162: 28.69955404 | Q162: 77.23599483 | R162: 26.81805376 | S162: 3.826060461 | T162: 0.5739090692 | U162: 16.24162666 | V162: 408.2583733 | W162: 6.807502366 | X162: 161.062126 | Y162: 42.26631385
A163: 18.90591425 | B163: 5.762522663 | C163: 32 | D163: 0.5 | E163: 64 | F163: 4 | G163: 4.726478562 | H163: 15 | I163: 21600 | J163: 424.5 | K163: 0.004984618315 | L163: 0.005488552936 | M163: 0.5347622878 | N163: 1.997337145 | O163: 37.73654214 | P163: 50.01980555 | Q163: 127.2558004 | R163: 44.1860418 | S163: 2.594152779 | T163: 0.3891229168 | U163: 11.01217855 | V163: 413.4878215 | W163: 5.229448112 | X163: 194.8851724 | Y163: 26.83348377
A164: 20.79650567 | B164: 6.338774929 | C164: 32 | D164: 0.5 | E164: 64 | F164: 4 | G164: 5.199126418 | H164: 15 | I164: 21600 | J164: 424.5 | K164: 0.002968576768 | L164: 0.00324240028 | M164: 0.3184763213 | N164: 1.18950906 | O164: 22.29312102 | P164: 90.70354583 | Q164: 217.9593462 | R164: 75.68032855 | S164: 1.685764895 | T164: 0.2528647343 | U164: 7.156071981 | V164: 417.343928 | W164: 3.856106564 | X164: 235.8110586 | Y164: 16.35252641
A165: 22.87615624 | B165: 6.972652422 | C165: 32 | D165: 0.5 | E165: 64 | F165: 4 | G165: 5.71903906 | H165: 15 | I165: 21600 | J165: 424.5 | K165: 0.001686042486 | L165: 0.001827902284 | M165: 0.180882844 | N165: 0.6755974224 | O165: 12.56774097 | P165: 171.8085352 | Q165: 389.7678814 | R165: 135.3360699 | S165: 1.045384456 | T165: 0.1568076684 | U165: 4.437657016 | V165: 420.062343 | W165: 2.718414965 | X165: 285.331381 | Y165: 9.527220441
A166: 25.16377186 | B166: 7.669917664 | C166: 32 | D166: 0.5 | E166: 64 | F166: 4 | G166: 6.290942966 | H166: 15 | I166: 21600 | J166: 424.5 | K166: 0.0009089597922 | L166: 0.000978702391 | M166: 0.09751547406 | N166: 0.3642202956 | O166: 6.729067652 | P166: 341.4208602 | Q166: 731.1887416 | R166: 253.8849797 | S166: 0.6156960922 | T166: 0.09235441383 | U166: 2.613629912 | V166: 421.8863701 | W166: 1.824027104 | X166: 345.250971 | Y166: 5.283191817
A167: 27.68014905 | B167: 8.43690943 | C167: 32 | D167: 0.5 | E167: 64 | F167: 4 | G167: 6.920037262 | H167: 15 | I167: 21600 | J167: 424.5 | K167: 0.0004627253968 | L167: 0.0004950951686 | M167: 0.04964233492 | N167: 0.1854141209 | O167: 3.404026509 | P167: 715.197765 | Q167: 1446.386507 | R167: 502.217537 | S167: 0.3426077015 | T167: 0.05139115522 | U167: 1.454369693 | V167: 423.0456303 | W167: 1.159260219 | X167: 417.7536749 | Y167: 2.774985089
A168: 30.44816395 | B168: 9.280600373 | C168: 32 | D168: 0.5 | E168: 64 | F168: 4 | G168: 7.612040989 | H168: 15 | I168: 21600 | J168: 424.5 | K168: 0.0002211694076 | L168: 0.000235272367 | M168: 0.02372760579 | N168: 0.08862260764 | O168: 1.617615006 | P168: 1587.505381 | Q168: 3033.891888 | R168: 1053.434683 | S168: 0.1790902901 | T168: 0.02686354351 | U168: 0.7602382814 | V168: 423.7397617 | W168: 0.6941314114 | X168: 505.4819466 | Y168: 1.373207127
A169: 33.49298035 | B169: 10.20866041 | C169: 32 | D169: 0.5 | E169: 64 | F169: 4 | G169: 8.373245087 | H169: 15 | I169: 21600 | J169: 424.5 | K169: 9.863289244e-05 | L169: 0.0001043646474 | M169: 0.01058158276 | N169: 0.0395222116 | O169: 0.7175590651 | P169: 3755.21094 | Q169: 6789.102828 | R169: 2357.327371 | S169: 0.08738707709 | T169: 0.01310806156 | U169: 0.3709581422 | V169: 424.1290419 | W169: 0.3892801392 | X169: 611.6331554 | Y169: 0.6364601653
A170: 36.84227838 | B170: 11.22952645 | C170: 32 | D170: 0.5 | E170: 64 | F170: 4 | G170: 9.210569596 | H170: 15 | I170: 21600 | J170: 424.5 | K170: 4.075791688e-05 | L170: 4.291603762e-05 | M170: 0.004372611001 | N170: 0.01633170209 | O170: 0.2950691887 | P170: 9525.685566 | Q170: 16314.78839 | R170: 5664.857081 | S170: 0.03952811513 | T170: 0.005929217269 | U170: 0.1677968487 | V170: 424.3322032 | W170: 0.2031612935 | X170: 740.076118 | Y170: 0.2745140514
A171: 40.52650622 | B171: 12.3524791 | C171: 32 | D171: 0.5 | E171: 64 | F171: 4 | G171: 10.13162656 | H171: 15 | I171: 21600 | J171: 424.5 | K171: 1.548793168e-05 | L171: 1.623502993e-05 | M171: 0.001661583948 | N171: 0.006206016047 | O171: 0.1116239377 | P171: 26089.88322 | Q171: 42404.67161 | R171: 14723.84431 | S171: 0.01644872603 | T171: 0.002467308905 | U171: 0.06982484202 | V171: 424.4301752 | W171: 0.0979720067 | X171: 895.4921028 | Y171: 0.1094057741
A172: 44.57915685 | B172: 13.58772701 | C172: 32 | D172: 0.5 | E172: 64 | F172: 4 | G172: 11.14478921 | H172: 15 | I172: 21600 | J172: 424.5 | K172: 5.367017793e-06 | L172: 5.602829641e-06 | M172: 0.0005757870578 | N172: 0.002150564661 | O172: 0.03852225155 | P172: 77735.13168 | Q172: 120139.8033 | R172: 41715.20948 | S172: 0.006244235533 | T172: 0.00093663533 | U172: 0.02650677984 | V172: 424.4734932 | W172: 0.04331806218 | X172: 1083.545444 | Y172: 0.03997807605
A173: 49.03707253 | B173: 14.94649971 | C173: 32 | D173: 0.5 | E173: 64 | F173: 4 | G173: 12.25926813 | H173: 15 | I173: 21600 | J173: =H173*28.3 -> 424.5 | K173: 1.680482064e-06 | L173: =BESSELK(G173,1) -> 1.747725123e-06 | M173: 0.0001802863081 | N173: 0.0006733693606 | O173: =(I173/(2*3.14159*O$104*D173))*(1/F173)*L173 -> 0.01201648294 | P173: =(A173-A172)/((O172+O173)/2)*1440 -> 254038.7546 | Q173: 374178.5579 | R173: 129923.1104 | S173: 0.00214258309 | T173: 0.0003213874635 | U173: 0.009095265218 | V173: 424.4909047 | W173: 0.01741151462 | X173: 1311.089988 | Y173: 0.01328018274
A174: =A173*1.1 -> 53.94077978 | B174: 16.44114968 | C174: =$C$108 -> 32 | D174: =$D$108 -> 0.5 | E174: 64 | F174: =$F$108 -> 4 | G174: 13.48519495 | H174: =$H$108 -> 15 | I174: 21600 | J174: 424.5 | K174: 4.706508155e-07 | L174: 4.877994998e-07 | M174: 5.049259361e-05 | N174: 0.0001885898371 | O174: 0.003353865144 | P174: 918826.0935 | Q174: 1293004.651 | R174: =Q174*500/1440 -> 448959.9484 | S174: =G174*BESSELK(G174,1)*100 -> 0.000657807135 | T174: =H173*S174/100 -> 9.867107024e-05 | U174: 0.002792391288 | V174: =J174-U174 -> 424.4972076 | W174: 0.00630287393 | X174: 1586.418885 | Y174: 0.003973019982
A175: 59.33485776 | B175: 18.08526465 | C175: 32 | D175: 0.5 | E175: 64 | F175: 4 | G175: 14.83371444 | H175: 15 | I175: 21600 | J175: 424.5 | K175: 1.165978328e-07 | L175: 1.204657999e-07 | M175: 1.250890637e-05 | N175: 4.67207653e-05 | O175: 0.000828262529 | P175: 3714603.138 | Q175: 5007607.79 | R175: 1738752.705 | S175: 0.0001786955276 | T175: 2.680432914e-05 | U175: 0.0007585625146 | V175: 424.4992414 | W175: 0.002033828773 | X175: 1919.566851 | Y175: 0.001059524847
A176: 65.26834354 | B176: 19.89379111 | C176: 32 | D176: 0.5 | E176: 64 | F176: 4 | G176: 16.31708588 | H176: 15 | I176: 21600 | J176: 424.5 | K176: 2.523988121e-08 | L176: 2.600211128e-08 | M176: 2.707797422e-06 | N176: 1.011362337e-05 | O176: 0.0001787774991 | P176: 16968976.96 | Q176: 21976584.75 | R176: 7630758.594 | S176: 4.242786828e-05 | T176: 6.364180243e-06 | U176: 0.0001801063009 | V176: 424.4998199 | W176: 0.0005784562137 | X176: 2322.67589 | Y176: 0.0002490473235
A177: 71.79517789 | B177: 21.88317022 | C177: 32 | D177: 0.5 | E177: 64 | F177: 4 | G177: 17.94879447 | H177: 15 | I177: 21600 | J177: 424.5 | K177: 4.71015439e-09 | L177: 4.839630771e-09 | M177: 5.053171132e-07 | N177: 1.887359418e-06 | O177: 3.327487821e-05 | P177: 88644528.17 | Q177: 110621112.9 | R177: 38410108.65 | S177: 8.686553803e-06 | T177: 1.30298307e-06 | U177: 3.687442089e-05 | V177: 424.4999631 | W177: 0.00014323188 | X177: 2810.437826 | Y177: 5.096425853e-05
A178: 78.97469568 | B178: 24.07148724 | C178: 32 | D178: 0.5 | E178: 64 | F178: 4 | G178: 19.74367392 | H178: 15 | I178: 21600 | J178: 424.5 | K178: 7.466103396e-10 | L178: 7.652896146e-10 | M178: 8.009821978e-08 | N178: 2.991668509e-07 | O178: 5.261748247e-06 | P178: 536554782.6 | Q178: 647175895.5 | R178: 224713852.6 | S178: 1.510962861e-06 | T178: 2.266444291e-07 | U178: 6.414037343e-06 | V178: 424.4999936 | W178: 3.046038358e-05 | X178: 3400.62977 | Y178: 8.957277223e-06
A179: 86.87216525 | B179: 26.47863597 | C179: 32 | D179: 0.5 | E179: 64 | F179: 4 | G179: 21.71804131 | H179: 15 | I179: 21600 | J179: 424.5 | K179: 9.889617817e-11 | L179: 1.011478944e-10 | M179: 1.060982871e-08 | N179: 3.962771022e-08 | O179: 6.954422818e-07 | P179: 3818026676 | Q179: 4465202572 | R179: 1550417560 | S179: 2.196734148e-07 | T179: 3.295101222e-08 | U179: 9.32513646e-07 | V179: 424.4999991 | W179: 5.481523658e-06 | X179: 4114.762022 | Y179: 1.332160555e-06
A180: 95.55938177 | B180: 29.12649956 | C180: 32 | D180: 0.5 | E180: 64 | F180: 4 | G180: 23.88984544 | H180: 15 | I180: 21600 | J180: 424.5 | K180: 1.075222891e-11 | L180: 1.097500143e-11 | M180: 1.153525941e-09 | N180: 4.308419388e-09 | O180: 7.545861519e-08 | P180: 3.245447461e+10 | Q180: 3.691967719e+10 | R180: 1.281933236e+10 | S180: 2.621910879e-08 | T180: 3.932866319e-09 | U180: 1.113001168e-07 | V180: 424.4999999 | W180: 8.212135754e-07 | X180: 4978.862046 | Y180: 1.649400139e-07
A181: 105.11532 | B181: 32.03914952 | C181: 32 | D181: 0.5 | E181: 64 | F181: 4 | G181: 26.27882999 | H181: 15 | I181: 21600 | J181: 424.5 | K181: 9.407585217e-13 | L181: 9.584936452e-13 | M181: 1.009269211e-10 | N181: 3.769620503e-10 | O181: 6.590122433e-09 | P181: 3.354238316e+11 | Q181: 3.723435088e+11 | R181: 1.292859405e+11 | S181: 2.518809155e-09 | T181: 3.778213732e-10 | U181: 1.069234486e-08 | V181: 424.5 | W181: 1.006077355e-07 | X181: 6024.423076 | Y181: 1.669997844e-08
A182: 115.6268519 | B182: 35.24306447 | C182: 32 | D182: 0.5 | E182: 64 | F182: 4 | G182: 28.90671299 | H182: 15 | I182: 21600 | J182: 424.5 | K182: 6.481687298e-14 | L182: 6.592861477e-14 | M182: 6.95371583e-12 | N182: 2.597212863e-11 | O182: 4.532921479e-10 | P182: 4.298087497e+12 | Q182: 4.670431005e+12 | R182: 1.621677432e+12 | S182: 1.905779545e-10 | T182: 2.858669317e-11 | U182: 8.090034167e-10 | V182: 424.5 | W182: 9.883365237e-09 | X182: 7289.551922 | Y182: 1.355826166e-09
A183: 127.1895371 | B183: 38.76737092 | C183: 32 | D183: 0.5 | E183: 64 | F183: 4 | G183: 31.79738428 | H183: 15 | I183: 21600 | J183: 424.5 | K183: 3.433637971e-15 | L183: 3.487217601e-15 | M183: 3.683692473e-13 | N183: 1.375859139e-12 | O183: 2.397636235e-11 | P183: 6.977316258e+13 | Q183: 7.444359359e+13 | R183: 2.584846999e+13 | S183: 1.108843981e-11 | T183: 1.663265972e-12 | U183: 4.707042701e-11 | V183: 424.5 | W183: 7.619291864e-10 | X183: 8820.357826 | Y183: 8.638302453e-11
A184: 139.9084909 | B184: 42.64410801 | C184: 32 | D184: 0.5 | E184: 64 | F184: 4 | G184: 34.97712271 | H184: 15 | I184: 21600 | J184: 424.5 | K184: 1.362278999e-16 | L184: 1.381617049e-16 | M184: 1.461486895e-14 | N184: 5.458653552e-14 | O184: 9.499307124e-13 | P184: 1469556127339366 | Q184: 1.543999721e+15 | R184: 5.361110142e+14 | S184: 4.832498908e-13 | T184: 7.248748362e-14 | U184: 2.051395786e-12 | V184: 424.5 | W184: 4.501998774e-11 | X184: 10672.63297 | Y184: 4.218264403e-12
A185: 153.8993399 | B185: 46.90851881 | C185: 32 | D185: 0.5 | E185: 64 | F185: 4 | G185: 38.47483498 | H185: 15 | I185: 21600 | J185: 424.5 | K185: 3.932511331e-18 | L185: 3.983291295e-18 | M185: 4.218896259e-16 | N185: 1.575757753e-15 | O185: 2.738711671e-14 | P185: 4.122880415e+16 | Q185: 4.277280387e+16 | R185: 1.485166801e+16 | S185: 1.532564753e-14 | T185: 2.298847129e-15 | U185: 6.505737376e-14 | V185: 424.5 | W185: 1.98951966e-12 | X185: 12913.88589 | Y185: 1.540604956e-13
A186: 169.2892739 | B186: 51.59937069 | C186: 32 | D186: 0.5 | E186: 64 | F186: 4 | G186: 42.32231848 | H186: 15 | I186: 21600 | J186: 424.5 | K186: 8.001252801e-20 | L186: 8.095232211e-20 | M186: 8.58394361e-18 | N186: 3.206102938e-17 | O186: 5.565876379e-16 | P186: 1.586153695e+18 | Q186: 1.628926499e+18 | R186: 5.655994788e+17 | S186: 3.426089958e-16 | T186: 5.139134937e-17 | U186: 1.454375187e-15 | V186: 424.5 | W186: 0 | X186: 15625.80193 | Y186: 0
A187: 186.2182013 | B187: 56.75930776 | C187: 32 | D187: 0.5 | E187: 64 | F187: 4 | G187: 46.55455033 | H187: 15 | I187: 21600 | J187: 424.5 | K187: 1.108002597e-21 | L187: 1.119839725e-21 | M187: 1.188692828e-19 | N187: 4.439767711e-19 | O187: 7.699457297e-18 | P187: 8.640160532e+19 | Q187: 8.803053182e+19 | R187: 3.056615688e+19 | S187: 5.213363482e-18 | T187: 7.820045223e-19 | U187: 2.213072798e-17 | V187: 424.5 | W187: 0 | X187: 18907.22034 | Y187: 0
A188: 204.8400215 | B188: 62.43523854 | C188: 32 | D188: 0.5 | E188: 64 | F188: 4 | G188: 51.21000536 | H188: 15 | I188: 21600 | J188: 424.5 | K188: 1.004870055e-23 | L188: 1.014634028e-23 | M188: 1.078049663e-21 | N188: 4.026515491e-21 | O188: 6.976115596e-20 | P188: 6.902990604e+21 | Q188: 6.991021136e+21 | R188: 2.427437894e+21 | S188: 5.1959414e-20 | T188: 7.7939121e-21 | U188: 2.205677124e-19 | V188: 424.5 | W188: 0 | X188: 22877.73661 | Y188: 0
A189: 225.3240236 | B189: 68.67876239 | C189: 32 | D189: 0.5 | E189: 64 | F189: 4 | G189: 56.3310059 | H189: 15 | I189: 21600 | J189: 424.5 | K189: 5.721183933e-26 | L189: 5.771742611e-26 | M189: 6.137828848e-24 | N189: 2.292479075e-23 | O189: 3.968361256e-22 | P189: 8.408724997e+23 | Q189: 8.478635208e+23 | R189: 2.943970558e+23 | S189: 3.251280671e-22 | T189: 4.876921006e-23 | U189: 1.380168645e-21 | V189: 424.5 | W189: 0 | X189: 27682.06129 | Y189: 0
A190: 247.856426 | B190: 75.54663863 | C190: 32 | D190: 0.5 | E190: 64 | F190: 4 | G190: 61.96410649 | H190: 15 | I190: 21600 | J190: 424.5 | K190: 1.951871518e-28 | L190: 1.967558439e-28 | M190: 2.094016457e-26 | N190: 7.821151468e-26 | O190: 1.352794677e-24 | P190: 1.629711815e+26 | Q190: 1.63819045e+26 | R190: 5.688161285e+25 | S190: 1.219180006e-24 | T190: 1.82877001e-25 | U190: 5.175419127e-24 | V190: 424.5 | W190: 0 | X190: 33495.29416 | Y190: 0
A191: 272.6420686 | B191: 83.1013025 | C191: 32 | D191: 0.5 | E191: 64 | F191: 4 | G191: 68.16051714 | H191: 15 | I191: 21600 | J191: 424.5 | K191: 3.79110992e-31 | L191: 3.818818516e-31 | M191: 4.067197298e-29 | N191: 1.519098191e-28 | O191: 2.625628422e-27 | P191: 5.266458707e+28 | Q191: 5.282840612e+28 | R191: 1.834319657e+28 | S191: 2.602926449e-27 | T191: 3.904389673e-28 | U191: 1.104942278e-26 | V191: 424.5 | W191: 0 | X191: 40529.30594 | Y191: 0
A192: 299.9062754 | B192: 91.41143275 | C192: 32 | D192: 0.5 | E192: 64 | F192: 4 | G192: 74.97656885 | H192: 15 | I192: 21600 | J192: 424.5 | K192: 3.962486507e-34 | L192: 3.988823359e-34 | M192: 4.251054375e-32 | N192: 1.587768809e-31 | O192: 2.742515241e-30 | P192: 2.987436615e+31 | Q192: 2.992719455e+31 | R192: 1.0391387e+31 | S192: 2.990682892e-30 | T192: 4.486024338e-31 | U192: 1.269544888e-29 | V192: 424.5 | W192: 0 | X192: 49040.46019 | Y192: 0
A193: 329.896903 | B193: 100.552576 | C193: 32 | D193: 0.5 | E193: 64 | F193: 4 | G193: 82.47422574 | H193: 15 | I193: 21600 | J193: 424.5 | K193: 2.094813864e-37 | L193: 2.107475124e-37 | M193: 2.247368572e-35 | N193: 8.393921618e-35 | O193: 1.448994384e-33 | P193: 3.147745376e+34 | Q193: 3.150738095e+34 | R193: 1.094006283e+34 | S193: 1.738123791e-33 | T193: 2.607185686e-34 | U193: 7.378335492e-33 | V193: 424.5 | W193: 0 | X193: 59338.95682 | Y193: 0
A194: 362.8865933 | B194: 110.6078336 | C194: 32 | D194: 0.5 | E194: 64 | F194: 4 | G194: 90.72164831 | H194: 15 | I194: 21600 | J194: 424.5 | K194: 5.23236629e-41 | L194: 5.261123952e-41 | M194: 5.613413087e-39 | N194: 2.096609788e-38 | O194: 3.61728543e-37 | P194: 6.555346007e+37 | Q194: 6.558496745e+37 | R194: 2.277255814e+37 | S194: 4.772978369e-37 | T194: 7.159467553e-38 | U194: 2.026129318e-36 | V194: 424.5 | W194: 0 | X194: 71800.13776 | Y194: 0
A195: 399.1752526 | B195: 121.668617 | C195: 32 | D195: 0.5 | E195: 64 | F195: 4 | G195: 99.79381315 | H195: 15 | I195: 21600 | J195: 424.5 | K195: 5.728811129e-45 | L195: 5.757441928e-45 | M195: 6.146011494e-43 | N195: 2.295535293e-42 | O195: 3.958528823e-41 | P195: 2.888903988e+41 | Q195: 2.889559837e+41 | R195: 1.003319388e+41 | S195: 5.745570839e-41 | T195: 8.618356259e-42 | U195: 2.438994821e-40 | V195: 424.5 | W195: 0 | X195: 86878.16669 | Y195: 0
A196: 439.0927778 | B196: 133.8354787 | C196: 32 | D196: 0.5 | E196: 64 | F196: 4 | G196: 109.7731945 | H196: 15 | I196: 21600 | J196: 424.5 | K196: 2.531785504e-49 | L196: 2.543290855e-49 | M196: 2.716162648e-47 | N196: 1.014486749e-46 | O196: 1.748639462e-45 | P196: 2.90404339e+45 | Q196: 2.904332346e+45 | R196: 1.008448731e+45 | S196: 2.791851616e-45 | T196: 4.187777425e-46 | U196: 1.185141011e-44 | V196: 424.5 | W196: 0 | X196: 105122.5817 | Y196: 0
A197: =A196*1.1 -> 483.0020556 | B197: 147.2190266 | C197: 32 | D197: 0.5 | E197: 64 | F197: 4 | G197: 120.7505139 | H197: 15 | I197: 21600 | J197: 424.5 | K197: 4.12463834e-54 | L197: 4.14168166e-54 | M197: 4.425014907e-52 | N197: 1.652743068e-51 | O197: 2.847612956e-50 | P197: 7.231717197e+49 | Q197: 7.232007631e+49 | R197: 2.511113761e+49 | S197: 5.001101889e-50 | T197: 7.501652834e-51 | U197: 2.122967752e-49 | V197: 424.5 | W197: 0 | X197: 127198.3238 | Y197: 0
A198: =A197*1.1 -> 531.3022612 | B198: 161.9409292 | C198: 32 | D198: 0.5 | E198: 64 | F198: 4 | G198: 132.8255653 | H198: 15 | I198: 21600 | J198: 424.5 | K198: 2.241825956e-59 | L198: =BESSELK(G198,1) -> 2.250248779e-59 | M198: 2.405086812e-57 | N198: 8.982999244e-57 | O198: 1.547158402e-55 | P198: 4.884927776e+54 | Q198: 4.885000096e+54 | R198: 1.696180589e+54 | S198: =G198*BESSELK(G198,1)*100 -> 2.988905662e-55 | T198: 4.483358493e-56 | U198: 1.268790453e-54 | V198: 424.5 | W198: 0 | X198: 153909.9719 | Y198: 0
M202: Effective Porosity, n = | O202: ='Tab 2 Inputs and Plots'!R38 -> 0.25
A203: ='Tab 2 Inputs and Plots'!M38 -> Best Fit
A204: Radius, r | C204: Transmissivity, T | D204: Thickness, b | E204: Conductivity, K | F204: Leakance, B | G204: r/B | H204: Flow Rate, Qw | K204: Ko(r/B) | L204: K1(r/B) | M204: Vacuum | O204: Velocity | P204: Travel Time | Q204: Cummulative Travel Time | R204: Time for 500 Pore Volumes | S204: Q(r)/Qw | T204: Qr | U204: Qr | V204: Qleak | W204: Delta Q | X204: Delta A | Y204: Qleak/A
A205: (ft) | B205: (m) | C205: (ft2/d) | D205: (ft) | E205: (ft/d) | F205: B (ft) | G205: (dim) | H205: (ft3/min) | I205: (ft3/day) | J205: (L/min) | K205: (dim) | L205: (dim) | M205: (ft-air) | N205: (Pa) | O205: (ft/day) | P205: (min) | Q205: (min) | R205: (days) | S205: (%) | T205: (scfm) | U205: (L/min) | V205: (L/min) | W205: (L/min) | X205: (ft2) | Y205: (L/min per 1000 ft2)
A206: 0.1 | B206: =A206*0.3048 -> 0.03048 | C206: ='Tab 2 Inputs and Plots'!O38 -> 86 | D206: ='Tab 2 Inputs and Plots'!Q38 -> 0.5 | E206: =C206/D206 -> 172 | F206: ='Tab 2 Inputs and Plots'!P38 -> 14 | G206: =(A206/F206) -> 0.007142857143 | H206: ='Tab 2 Inputs and Plots'!$N$38 -> 15 | I206: =(H206*1440) -> 21600 | J206: =H206*28.3 -> 424.5 | K206: =BESSELK(G206,0) -> 5.057651208 | L206: =BESSELK(G206,1) -> 139.9801514 | M206: =(I206*K206/(2*3.1459*C206)) -> 201.8967214 | N206: =(M206*0.015)*249 -> 754.0842545
A207: =A206*1.1 -> 0.11 | B207: =A207*0.3048 -> 0.033528 | C207: =C206 -> 86 | D207: =$D$206 -> 0.5 | E207: =C207/D207 -> 172 | F207: =F206 -> 14 | G207: =(A207/F207) -> 0.007857142857 | H207: =$H$206 -> 15 | I207: 21600 | J207: =H207*28.3 -> 424.5 | K207: =BESSELK(G207,0) -> 4.962355783 | L207: =BESSELK(G207,1) -> 127.2512682 | M207: =(I207*K207/(2*3.1459*C207)) -> 198.0926169 | N207: =(M207*0.015)*249 -> 739.8759241 | O207: =(I207/(2*3.14159*O$202*D207))*(1/F207)*L207 -> 249976.0033 | P207: =(A207-A206)/((O206+O207)/2)*1440 -> 0.0001152110587 | Q207: =P207 -> 0.0001152110587 | R207: =Q207*500/1440 -> 4.000383984e-05 | S207: =G207*BESSELK(G207,1)*100 -> 99.98313929 | T207: =H207*S207/100 -> 14.99747089 | U207: =T207*28.3 -> 424.4284263 | V207: =J207-U207 -> 0.0715737006 | X207: =(3.14159*A207*A207)-(3.14159*A206*A206) -> 0.006597339
A208: =A207*1.1 -> 0.121 | B208: 0.0368808 | C208: =C207 -> 86 | D208: =$D$206 -> 0.5 | E208: 172 | F208: =F207 -> 14 | G208: 0.008642857143 | H208: =$H$206 -> 15 | I208: 21600 | J208: 424.5 | K208: 4.867063148 | L208: 115.6792862 | M208: 194.2886237 | N208: 725.6680096 | O208: =(I208/(2*3.14159*O$202*D208))*(1/F208)*L208 -> 227243.6734 | P208: 6.638452173e-05 | Q208: =Q207+(P208) -> 0.0001815955805 | R208: =Q208*500/1440 -> 6.305402099e-05 | S208: =G208*BESSELK(G208,1)*100 -> 99.97995449 | T208: =H208*S208/100 -> 14.99699317 | U208: 424.4149068 | V208: =J208-U208 -> 0.08509319383 | W208: =V208-V207 -> 0.01351949322 | X208: =(3.14159*A208*A208)-(3.14159*A207*A207) -> 0.00798278019 | Y208: =1000*W208/X208 -> 1693.582048
A209: 0.1331 | B209: 0.04056888 | C209: 86 | D209: 0.5 | E209: 172 | F209: 14 | G209: 0.009507142857 | H209: 15 | I209: 21600 | J209: 424.5 | K209: 4.771773823 | L209: 105.1590127 | M209: 190.4847627 | N209: 711.4605887 | O209: 206577.3495 | P209: 8.032805734e-05 | Q209: =Q208+(P209) -> 0.0002619236378 | R209: 9.094570757e-05 | S209: 99.97617562 | T209: 14.99642634 | U209: 424.3988655 | V209: 0.1011345074 | W209: =V209-V208 -> 0.01604131357 | X209: 0.00965916403 | Y209: =1000*W209/X209 -> 1660.735186
... 277 more rows
